{"text_format":"1","workbook":"xlsx","n_sheets":2,"sheets":["Pasiūlymas","Subtiekėjai"],"not_rendered":{"charts":0,"images":0,"macros":1,"external_links":1,"defined_names":0,"comments":0,"pivot_tables":0},"unopened":[],"bounds":{"document_bytes":16777216,"sheet_cells":100000,"rows_first":2000,"rows_last":500,"rows_between":2000,"halvings":0,"cell_chars":16384,"cell_head_chars":4096},"cells_cut":0,"cells_raw":0,"read":"whole","date_system":"1900"}

{"sheet":"Pasiūlymas","index":0,"n_rows":1124,"n_cols":13,"rows_kept":1124,"cut":false,"hidden":false,"merged":[[18,0,18,1],[18,2,18,4],[19,0,19,1],[19,2,19,4],[15,0,15,1],[15,2,15,4],[16,0,16,1],[16,2,16,4],[17,0,17,1],[17,2,17,4],[12,0,12,1],[12,2,12,4],[13,0,13,1],[13,2,13,4],[14,0,14,1],[14,2,14,4],[9,0,9,1],[9,2,9,4],[10,0,10,1],[10,2,10,4],[11,0,11,1],[11,2,11,4],[975,1,975,7],[1089,1,1089,7],[1118,1,1118,7],[28,1,28,7],[311,1,311,7],[572,1,572,7],[677,1,677,7],[856,1,856,7]]}
["Perkantysis subjektas, kuriam teikiamas pasiūlymas:",null,"VŠĮ Kauno klinikinė ligoninė"]
[]
[null,"PASIŪLYMAS"]
[null,"Santechnikos prekių pirkimas"]
[]
["Data:","2019-09-10"]
["Nr.:","1540-0910"]
["Vieta:","Kaunas"]
[]
["Tiekėjo arba tiekėjų grupės narių pavadinimas (-ai)",null,"AB \"LYTAGRA\""]
["Tiekėjo arba tiekėjo grupės narių juridinio asmens kodas (-ai) (tuo atveju, jei pasiūlymą teikia fizinis asmuo - verslo pažymėjimo Nr. ar pan.)",null,133370289]
["Tiekėjo arba tiekėjo grupės narių PVM mokėtojo kodas (-ai)",null,"LT333702811"]
["Tiekėjų grupės narys, atstovaujantis arba vadovaujantis  tiekėjų grupei (pildoma, jei pasiūlymą teikia tiekėjų grupė)"]
["Tiekėjo valdymo ar priežiūros organo narys (-iai) ar kitas asmuo (-ys), turintis (-ys) teisę atstovauti tiekėjui ar jį kontroliuoti, jo vardu priimti sprendimą, sudaryti sandorį",null,{"$f":"$C$17","v":"Komercijos direktorius Vaidas Povilaitis"}]
["Tiekėjo arba atstovaujančio tiekėjų grupės nario adresas, telefono numeris, fakso numeris, el. paštas",null,"Ateities pl. 50, LT-52106,﻿ Kaunas;                          Tel. Nr.: 8 (37) 405401, El. paštas: lytagra@lytagra.lt"]
["Tiekėjo arba atstovaujančio tiekėjų grupės nario banko pavadinimas, banko kodas, sąskaitos Nr.",null,"AB SEB bankas, banko kodas 70440\nA.s. LT48 7044 0600 0309 1303"]
["Asmens, įgalioto pasirašyti sutartį, vardas, pavardė, pareigos",null,"Komercijos direktorius Vaidas Povilaitis"]
["Asmens, atsakingo už pirkimą, vardas, pavardė,  telefono numeris, el. paštas",null,"Ieva Laurinaitytė 8 37 405474; i.laurinaityte@lytagra.lt"]
[]
[]
[]
[]
[]
["Siūlomas pirkimo objektas visiškai atitinka pirkimo sąlygose nustatytus reikalavimus ir jo kaina yra:"]
[]
[]
[null,null,null,null,null,null,null,null,null,null,"","",""]
["Nr.","Pavadinimas","Maksimalus kiekis","Mato vienetas","įkainis be PVM, Eur","Suma be PVM, Eur","Siūlomi produktai","Siūlomo produkto parametrai"]
["1.","Daugiasluoksniai, PPR vamzdžiai , vamzdyno dalys, šildymo sistemos, radiatoriai",null,null,null,null,null,null,null,""]
["1.1.","Daugiasluoksnis vamzdis PEX/Al/PEX 16x2,0 Tmax -90\n",1000,"m",0.5,{"$f":"IF(ISBLANK(E30),\"\", PRODUCT(C30,E30))","v":500},"VAMZDŽIAI AL-PEX 16X2"]
["1.1.1.","Daugiasluoksnis vamzdis PEX/Al/PEX 16x2,0 Tmax -90",null,null,null,null,null,"Daugiasluoksnis vamzdis PEX/AL/PEX. Maks. temp. +95., trumpalaikė max. temp. +110. Max. slėgis - PN 8-10."]
["1.2.","Daugiasluoksnis vamzdis PEX/Al/PEX 20x2,0 Tmax -90",400,"m",0.71,{"$f":"IF(ISBLANK(E32),\"\", PRODUCT(C32,E32))","v":284},"VAMZDŽIAI AL-PEX 20X2",null,null,""]
["1.2.1.","Daugiasluoksnis vamzdis PEX/Al/PEX 20x2,0 Tmax -90",null,null,null,null,null,"Daugiasluoksnis vamzdis PEX/AL/PEX. Maks. temp. +95., trumpalaikė max. temp. +110. Max. slėgis - PN 8-10.",null,null,null,""]
["1.3.","Daugiasluoksnis vamzdis PCX/AC/PEX 26x2,5 Tmax -90",100,"m",1.6,{"$f":"IF(ISBLANK(E34),\"\", PRODUCT(C34,E34))","v":160},"VAMZDŽIAI A-PEX 26",null,null,null,null,""]
["1.3.1.","Daugiasluoksnis vamzdis PEX/Al/PEX 20x2,0 Tmax -90",null,null,null,null,null,"Daugiasluoksnis vamzdis PEX/AL/PEX. Maks. temp. +95., trumpalaikė max. temp. +110. Max. slėgis - PN 8-10.",null,"","",""]
["1.4.","Vamzdžio laikiklis dvigubas plastmasinis daugiasluoksniui vamzdžiui diam. 16, tvirtinti 16-26",200,"vnt.",0.15,{"$f":"IF(ISBLANK(E36),\"\", PRODUCT(C36,E36))","v":30},"Laikiklis daugiasluoksniam vamzdžiui 16-26",null,null,"","",""]
["1.4.1.","Vamzdžio laikiklis dvigubas plastmasinis daugiasluoksniui vamzdžiui diam. 16, tvirtinti 16-26",null,null,null,null,null,"Dvigubas laikiklis 16-26",null,"","",""]
["1.5.","Daugiasluoksnis vamzdis 18x2",200,"m",0.65,{"$f":"IF(ISBLANK(E38),\"\", PRODUCT(C38,E38))","v":130},"VAMZDŽIAI AL-PEX 18X2"]
["1.5.1.","Daugiasluoksnis vamzdis 18x2",null,null,null,null,null,"Daugiasluoksnis vamzdis PEX/AL/PEX. Maks. temp. +95., trumpalaikė max. temp. +110. Max. slėgis - PN 8-10."]
["1.6.","Vamzdis PPRPN 20 karštam vandeniui d20",100,"m",{"$f":"[1]Pasiūlymas!$E$40","v":0.55000000000000004},{"$f":"IF(ISBLANK(E40),\"\", PRODUCT(C40,E40))","v":55.000000000000007}," PPR VAMZDIS KARŠTAM IR ŠALTAM VANDENIUI  PN20  D20",null,null,""]
["1.6.1.","Vamzdis PPRPN 20 karštam vandeniui d20",null,null,null,null,null,"  PPR Vamzdis Maks.temp +90C Max slėgis 10-20bar"]
["1.7.","Vamzdis PPRPN 20 karštam vandeniui d25",100,"m",{"$f":"[1]Pasiūlymas!$E$42","v":0.87},{"$f":"IF(ISBLANK(E42),\"\", PRODUCT(C42,E42))","v":87}," PPR VAMZDIS KARŠTAM IR ŠALTAM VANDENIUI  PN20  D25",null,null,null,null,""]
["1.7.1.","Vamzdis PPRPN 20 karštam vandeniui d25",null,null,null,null,null,{"$f":"[1]Pasiūlymas!$H$43","v":"  PPR Vamzdis Maks.temp +90C Max slėgis 10-20bar"},null,"",null,""]
["1.8.","Vamzdis PPRPN 20 karštam vandeniui d32",100,"m",{"$f":"[1]Pasiūlymas!$E$44","v":1.45},{"$f":"IF(ISBLANK(E44),\"\", PRODUCT(C44,E44))","v":145}," PPR VAMZDIS KARŠTAM IR ŠALTAM VANDENIUI  PN20 D32",null,null,null,null,""]
["1.8.1.","Vamzdis PPRPN 20 karštam vandeniui d32",null,null,null,null,null,{"$f":"[1]Pasiūlymas!$H$45","v":"  PPR Vamzdis Maks.temp +90C Max slėgis 10-20bar"}]
["1.9.","Vamzdis PPRPN 20 karštam vandeniui d40",100,"m",{"$f":"[1]Pasiūlymas!$E$46","v":2.15},{"$f":"IF(ISBLANK(E46),\"\", PRODUCT(C46,E46))","v":215}," PPR VAMZDIS KARŠTAM IR ŠALTAM VANDENIUI  PN20 D40",null,null,"","",""]
["1.9.1.","Vamzdis PPRPN 20 karštam vandeniui d40",null,null,null,null,null,"  PPR Vamzdis Maks.temp +90C Max slėgis 10-20bar",null,"","",""]
["1.10.","Vamzdžiams  PPR dviguba mova d20",100,"vnt.",{"$f":"[1]Pasiūlymas!$E$48","v":0.08},{"$f":"IF(ISBLANK(E48),\"\", PRODUCT(C48,E48))","v":8},{"$f":"[1]Pasiūlymas!$G$48","v":"PPR MOVA 20"},null,null,"","",""]
["1.10.1.","Vamzdžiams  PPR dviguba mova d20",null,null,null,null,null,{"$f":"[1]Pasiūlymas!$H$49","v":"  PPR Vamzdis Maks.temp +90C Max slėgis 10-20bar"}]
["1.11.","Vamzdžiams  PPR dviguba mova d25",100,"vnt.",{"$f":"[1]Pasiūlymas!$E$50","v":0.11},{"$f":"IF(ISBLANK(E50),\"\", PRODUCT(C50,E50))","v":11},{"$f":"[1]Pasiūlymas!$G$50","v":"PPR MOVA 25"}]
["1.11.1.","Vamzdžiams  PPR dviguba mova d25",null,null,null,null,null,{"$f":"[1]Pasiūlymas!$H$51","v":"  PPR Vamzdis Maks.temp +90C Max slėgis 10-20bar"}]
["1.12.","Vamzdžiams  PPR dviguba mova d32",50,"vnt.",{"$f":"[1]Pasiūlymas!$E$52","v":0.17},{"$f":"IF(ISBLANK(E52),\"\", PRODUCT(C52,E52))","v":8.5},{"$f":"[1]Pasiūlymas!$G$52","v":" PPR  MOVA 32"}]
["1.12.1.","Vamzdžiams  PPR dviguba mova d32",null,null,null,null,null,{"$f":"[1]Pasiūlymas!$H$53","v":"  PPR Vamzdis Maks.temp +90C Max slėgis 10-20bar"}]
["1.13.","Vamzdžiams  PPR dviguba mova d40",50,"vnt.",{"$f":"[1]Pasiūlymas!$E$54","v":0.28000000000000003},{"$f":"IF(ISBLANK(E54),\"\", PRODUCT(C54,E54))","v":14.000000000000002},{"$f":"[1]Pasiūlymas!$G$54","v":"PPR MOVA 40"}]
["1.13.1.","Vamzdžiams  PPR dviguba mova d40",null,null,null,null,null,{"$f":"[1]Pasiūlymas!$H$55","v":"  PPR Vamzdis Maks.temp +90C Max slėgis 10-20bar"}]
["1.14.","PPR vamzdžių laikikliai d20",100,"vnt.",{"$f":"[1]Pasiūlymas!$E$56","v":0.08},{"$f":"IF(ISBLANK(E56),\"\", PRODUCT(C56,E56))","v":8},{"$f":"[1]Pasiūlymas!$G$56","v":"PPR Vamzdžiu laikiliai d20"}]
["1.14.1.","PPR vamzdžių laikikliai d20",null,null,null,null,null,{"$f":"[1]Pasiūlymas!$G$56","v":"PPR Vamzdžiu laikiliai d20"}]
["1.15.","PPR vamzdžių laikikliai d25",100,"vnt.",{"$f":"[1]Pasiūlymas!$E$58","v":0.1},{"$f":"IF(ISBLANK(E58),\"\", PRODUCT(C58,E58))","v":10},{"$f":"[1]Pasiūlymas!$G$58","v":"PPR Vamzdžiu laikiliai d25"}]
["1.15.1.","PPR vamzdžių laikikliai d25",null,null,null,null,null,{"$f":"[1]Pasiūlymas!$G$58","v":"PPR Vamzdžiu laikiliai d25"}]
["1.16.","PPR vamzdžių laikikliai d32",50,"vnt.",{"$f":"[1]Pasiūlymas!$E$60","v":0.12},{"$f":"IF(ISBLANK(E60),\"\", PRODUCT(C60,E60))","v":6},{"$f":"[1]Pasiūlymas!$G$60","v":"PPR Vamzdžiu laikiliai d32"}]
["1.16.1.","PPR vamzdžių laikikliai d32",null,null,null,null,null,{"$f":"[1]Pasiūlymas!$G$60","v":"PPR Vamzdžiu laikiliai d32"}]
["1.17.","PPR vamzdžių laikikliai d40",50,"vnt.",{"$f":"[1]Pasiūlymas!$E$62","v":0.14000000000000001},{"$f":"IF(ISBLANK(E62),\"\", PRODUCT(C62,E62))","v":7.0000000000000009},{"$f":"[1]Pasiūlymas!$G$62","v":"PPR Vamzdžiu laikiliai d40"}]
["1.17.1.","PPR vamzdžių laikikliai d40",null,null,null,null,null,{"$f":"[1]Pasiūlymas!$G$62","v":"PPR Vamzdžiu laikiliai d40"}]
["1.18.","Antgalis srieginis išorinis 16x1/2\" suveržiamas",200,"vnt.",0.66,{"$f":"IF(ISBLANK(E64),\"\", PRODUCT(C64,E64))","v":132},"TIESI JUNGTIS SU IŠOR.SR.16X1/2"]
["1.18.1.","Turi tikti objektui 1.1",null,null,null,null,null,"Mežiaga: žalvaris. Sriegiai atitinka ISO 2528. Max. temp. +90. Max. slėgis PN 8-10."]
["1.19.","Antgalis srieginis išorinis 16x1/2\" presuojamas",200,"vnt.",1.31,{"$f":"IF(ISBLANK(E66),\"\", PRODUCT(C66,E66))","v":262},"PRES. JUNGTIS IŠ. SR. 16X1/2"]
["1.19.1.","Turi tikti objektui 1.1",null,null,null,null,null,"Mežiaga: žalvaris. Atitinka standartą ISO 21003  Max. temp.: -20 / +90. Max. slėgis PN10."]
["1.20.","Antgalis srieginis išorinis 20x3/4\" suveržiamas",100,"vnt.",1.1299999999999999,{"$f":"IF(ISBLANK(E68),\"\", PRODUCT(C68,E68))","v":112.99999999999999},"TIESI JUNGTIS SU IŠOR.SR.20X3/4"]
["1.20.1.","Turi tikti objektui 1.2",null,null,null,null,null,"Mežiaga: žalvaris. Sriegiai atitinka ISO 2528. Max. temp. +90. Max. slėgis PN 8-10."]
["1.21.","Antgalis srieginis išorinis 20x3/4\" presuojamas",100,"vnt.",1.95,{"$f":"IF(ISBLANK(E70),\"\", PRODUCT(C70,E70))","v":195},"PRES. JUNGTIS IŠ. SR. 20X3/4"]
["1.21.1.","Turi tikti objektui 1.2",null,null,null,null,null,"Mežiaga: žalvaris. Atitinka standartą ISO 21003  Max. temp.: -20 / +90. Max. slėgis PN10."]
["1.22.","Antgalis srieginis išorinis 26x4/4\" suveržiamas",50,"vnt.",{"$f":"[1]Pasiūlymas!$E$72","v":3.08},{"$f":"IF(ISBLANK(E72),\"\", PRODUCT(C72,E72))","v":154},{"$f":"[1]Pasiūlymas!$G$72","v":"Užveržiama Jungtis 26*3/4 išorinis sriegis"}]
["1.22.1.","Turi tikti objektui 1.3",null,null,null,null,null,{"$f":"$H$71","v":"Mežiaga: žalvaris. Atitinka standartą ISO 21003  Max. temp.: -20 / +90. Max. slėgis PN10."}]
["1.23.","Antgalis srieginis išorinis 26x4/4\" presuojamas",50,"vnt.",3.3,{"$f":"IF(ISBLANK(E74),\"\", PRODUCT(C74,E74))","v":165},"PRES. JUNGTIS IŠ. SR. 26X1"]
["1.23.1.","Turi tikti objektui 1.3",null,null,null,null,null,"Mežiaga: žalvaris. Atitinka standartą ISO 21003  Max. temp.: -20 / +90. Max. slėgis PN10."]
["1.24.","Antgalis srieginis išorinis 26x3/4\" suveržiamas",50,"vnt.",{"$f":"[1]Pasiūlymas!$E$76","v":3.08},{"$f":"IF(ISBLANK(E76),\"\", PRODUCT(C76,E76))","v":154},{"$f":"[1]Pasiūlymas!$G$76","v":"Užveržiama Jungtis 26*3/4 išorinis sriegis"}]
["1.24.1.","Turi tikti objektui 1.3",null,null,null,null,null,{"$f":"$H$75","v":"Mežiaga: žalvaris. Atitinka standartą ISO 21003  Max. temp.: -20 / +90. Max. slėgis PN10."}]
["1.25.","Antgalis srieginis išorinis 26x3/4\" presuojamas",50,"vnt.",2.7,{"$f":"IF(ISBLANK(E78),\"\", PRODUCT(C78,E78))","v":135},"PRES. JUNGTIS IŠ. SR. 26X3/4"]
["1.25.1.","Turi tikti objektui 1.3",null,null,null,null,null,"Mežiaga: žalvaris. Atitinka standartą ISO 21003  Max. temp.: -20 / +90. Max. slėgis PN10."]
["1.26.","Sujungimas daugiasluoksniui vamzdžiui 16x16 suveržiamas",100,"vnt.",1.07,{"$f":"IF(ISBLANK(E80),\"\", PRODUCT(C80,E80))","v":107},"SUJUNGIMAS 16X16"]
["1.26.1.","Turi tikti objektui 1.1",null,null,null,null,null,"Mežiaga: žalvaris. Sriegiai atitinka ISO 2528. Max. temp. +90. Max. slėgis PN 8-10."]
["1.27.","Sujungimas daugiasluoksniui vamzdžiui 16x16 presuojamas",100,"vnt.",1.77,{"$f":"IF(ISBLANK(E82),\"\", PRODUCT(C82,E82))","v":177},"PRES. JUNGTIS 16X16"]
["1.27.1.","Turi tikti objektui 1.3",null,null,null,null,null,"Mežiaga: žalvaris. Atitinka standartą ISO 21003  Max. temp.: -20 / +90. Max. slėgis PN10."]
["1.28.","Sujungimas daugiasluoksniui vamzdžiui 20x20 suveržiamas",100,"vnt.",2.0099999999999998,{"$f":"IF(ISBLANK(E84),\"\", PRODUCT(C84,E84))","v":200.99999999999997},"SUJUNGIMAS 20X20"]
["1.28.1.","Turi tikti objektui 1.2",null,null,null,null,null,"Mežiaga: žalvaris. Sriegiai atitinka ISO 2528. Max. temp. +90. Max. slėgis PN 8-10."]
["1.29.","Sujungimas daugiasluoksniui vamzdžiui 20x20 presuojamas",100,"vnt.",1.99,{"$f":"IF(ISBLANK(E86),\"\", PRODUCT(C86,E86))","v":199},"PRES. JUNGTIS 20X20"]
["1.29.1.","Turi tikti objektui 1.2",null,null,null,null,null,"Mežiaga: žalvaris. Atitinka standartą ISO 21003  Max. temp.: -20 / +90. Max. slėgis PN10."]
["1.30.","Sujungimas daugiasluoksniui vamzdžiui 26x26 suveržiamas",100,"vnt.",{"$f":"[1]Pasiūlymas!$E$88","v":4.7},{"$f":"IF(ISBLANK(E88),\"\", PRODUCT(C88,E88))","v":470},{"$f":"[1]Pasiūlymas!$G$88","v":"Sujungimas  26*26"}]
["1.30.1.","Turi tikti objektui 1.3",null,null,null,null,null,{"$f":"$H$85","v":"Mežiaga: žalvaris. Sriegiai atitinka ISO 2528. Max. temp. +90. Max. slėgis PN 8-10."}]
["1.31.","Sujungimas daugiasluoksniui vamzdžiui 26x26 presuojamas",100,"vnt.",3.13,{"$f":"IF(ISBLANK(E90),\"\", PRODUCT(C90,E90))","v":313},"PRES. JUNGTIS 26X26"]
["1.31.1.","Turi tikti objektui 1.3",null,null,null,null,null,"Mežiaga: žalvaris. Atitinka standartą ISO 21003  Max. temp.: -20 / +90. Max. slėgis PN10."]
["1.32.","Antgalis srieginis vidinis 16x1/2\" suveržiamas",200,"vnt.",0.7,{"$f":"IF(ISBLANK(E92),\"\", PRODUCT(C92,E92))","v":140},"TIESI JUNGTIS SU VID.SR.16X1/2"]
["1.32.1.","Turi tikti objektui 1.1",null,null,null,null,null,"Mežiaga: žalvaris. Sriegiai atitinka ISO 2528. Max. temp. +90. Max. slėgis PN 8-10."]
["1.33.","Antgalis srieginis vidinis 16x1/2\" presuojamas",200,"vnt.",1.39,{"$f":"IF(ISBLANK(E94),\"\", PRODUCT(C94,E94))","v":278},"PRES. JUNGTIS VID. SR. 16X1/2"]
["1.33.1.","Turi tikti objektui 1.1",null,null,null,null,null,"Mežiaga: žalvaris. Atitinka standartą ISO 21003  Max. temp.: -20 / +90. Max. slėgis PN10."]
["1.34.","Antgalis srieginis vidinis 20x3/4\" suveržiamas",100,"vnt.",1.1399999999999999,{"$f":"IF(ISBLANK(E96),\"\", PRODUCT(C96,E96))","v":113.99999999999999},"TIESI JUNGTIS SU VID.SR.20X3/4"]
["1.34.1.","Turi tikti objektui 1.2",null,null,null,null,null,"Mežiaga: žalvaris. Sriegiai atitinka ISO 2528. Max. temp. +90. Max. slėgis PN 8-10."]
["1.35.","Antgalis srieginis vidinis 20x3/4\" presuojamas",100,"vnt.",2.34,{"$f":"IF(ISBLANK(E98),\"\", PRODUCT(C98,E98))","v":234},"PRES. JUNGTIS VID. SR. 16X1/2"]
["1.35.1.","Turi tikti objektui 1.2",null,null,null,null,null,"Mežiaga: žalvaris. Atitinka standartą ISO 21003  Max. temp.: -20 / +90. Max. slėgis PN10."]
["1.36.","Antgalis srieginis vidinis 26x3/4\" suveržiamas",100,"vnt.",{"$f":"[1]Pasiūlymas!$E$100","v":2.89},{"$f":"IF(ISBLANK(E100),\"\", PRODUCT(C100,E100))","v":289},{"$f":"[1]Pasiūlymas!$G$100","v":"Tiesi Jungtis 26"}]
["1.36.1.","Turi tikti objektui 1.3",null,null,null,null,null,"Tiesi Jungtis 26"]
["1.37.","Antgalis srieginis vidinis 26x3/4\" presuojamas",100,"vnt.",2.85,{"$f":"IF(ISBLANK(E102),\"\", PRODUCT(C102,E102))","v":285},"PRES. JUNGTIS VID. SR. 26X3/4"]
["1.37.1.","Turi tikti objektui 1.3",null,null,null,null,null,"Mežiaga: žalvaris. Atitinka standartą ISO 21003  Max. temp.: -20 / +90. Max. slėgis PN10."]
["1.38.","Antgalis srieginis išorinis kampinis 16x1/2\" suveržiamas",100,"vnt.",0.97,{"$f":"IF(ISBLANK(E104),\"\", PRODUCT(C104,E104))","v":97},"ALKŪNĖ IŠOR.SR.16X1/2"]
["1.38.1.","Turi tikti objektui 1.1",null,null,null,null,null,"Mežiaga: žalvaris. Sriegiai atitinka ISO 2528. Max. temp. +90. Max. slėgis PN 8-10."]
["1.39.","Antgalis srieginis išorinis kampinis 16x1/2\" presuojamas",100,"vnt.",1.91,{"$f":"IF(ISBLANK(E106),\"\", PRODUCT(C106,E106))","v":191},"PRES. ALKŪNĖ IŠ. SR. 16X1/2"]
["1.39.1.","Turi tikti objektui 1.1",null,null,null,null,null,"Mežiaga: žalvaris. Atitinka standartą ISO 21003  Max. temp.: -20 / +90. Max. slėgis PN10."]
["1.40.","Antgalis srieginis išorinis kampinis 20x3/4\" suveržiamas",100,"vnt.",1.69,{"$f":"IF(ISBLANK(E108),\"\", PRODUCT(C108,E108))","v":169},"ALKŪNĖ SU IŠOR.SR.20X3/4"]
["1.40.1.","Turi tikti objektui 1.2",null,null,null,null,null,"Mežiaga: žalvaris. Sriegiai atitinka ISO 2528. Max. temp. +90. Max. slėgis PN 8-10."]
["1.41.","Antgalis srieginis išorinis kampinis 20x3/4\" presuojamas",100,"vnt.",3.56,{"$f":"IF(ISBLANK(E110),\"\", PRODUCT(C110,E110))","v":356},"PRES. ALKŪNĖ IŠ. SR. 20X3/4"]
["1.41.1.","Turi tikti objektui 1.2",null,null,null,null,null,"Mežiaga: žalvaris. Atitinka standartą ISO 21003  Max. temp.: -20 / +90. Max. slėgis PN10."]
["1.42.","Antgalis srieginis išorinis 20x1/2\" suveržiamas",100,"vnt.",1.07,{"$f":"IF(ISBLANK(E112),\"\", PRODUCT(C112,E112))","v":107},"TIESI JUNGTIS SU IŠOR.SR.20X1/2"]
["1.42.1.","Turi tikti objektui 1.2",null,null,null,null,null,"Mežiaga: žalvaris. Sriegiai atitinka ISO 2528. Max. temp. +90. Max. slėgis PN 8-10."]
["1.43.","Antgalis srieginis išorinis  20x1/2\" presuojamas",100,"vnt.",2.16,{"$f":"IF(ISBLANK(E114),\"\", PRODUCT(C114,E114))","v":216},"PRES. ALKŪNĖ IŠ. SR. 20X1/2"]
["1.43.1.","Turi tikti objektui 1.2",null,null,null,null,null,"Mežiaga: žalvaris. Atitinka standartą ISO 21003  Max. temp.: -20 / +90. Max. slėgis PN10."]
["1.44.","Antgalis kampinis su tvirtinimu vidinis 16x1/2\" suveržiamas",200,"vnt.",1.45,{"$f":"IF(ISBLANK(E116),\"\", PRODUCT(C116,E116))","v":290},"PRIETAIS.ALKŪNĖS 16X1/2"]
["1.44.1.","Turi tikti objektui 1.1",null,null,null,null,null,"Mežiaga: žalvaris. Sriegiai atitinka ISO 2528. Max. temp. +90. Max. slėgis PN 8-10."]
["1.45.","Antgalis kampinis su tvirtinimu vidinis 16x1/2\" presuojamas",200,"vnt.",2.7,{"$f":"IF(ISBLANK(E118),\"\", PRODUCT(C118,E118))","v":540},"PRES. ALKŪNĖ SU TVIRT. VID. SR. 16X1/2"]
["1.45.1.","Turi tikti objektui 1.1",null,null,null,null,null,"Mežiaga: žalvaris. Atitinka standartą ISO 21003  Max. temp.: -20 / +90. Max. slėgis PN10."]
["1.46.","PPR perėjimas su išoriniu metaliniu sriegiu d20x1/2\"",100,"vnt.",0.82,{"$f":"IF(ISBLANK(E120),\"\", PRODUCT(C120,E120))","v":82},"PPR ANTGALIS IŠ.SR.20X1/2"]
["1.46.1.","PPR perėjimas su išoriniu metaliniu sriegiu d20x1/2\"",null,null,null,null,null,"Medžiaga  polipropileno kopolimeras Temperatura  90C Max slėgis  20ba"]
["1.47.","PPR perėjimas su išoriniu metaliniu sriegiu d20x3/4\"",60,"vnt.",1.26,{"$f":"IF(ISBLANK(E122),\"\", PRODUCT(C122,E122))","v":75.599999999999994},"PPR ANTGALIS IŠ.SR.20X3/4"]
["1.47.1.","PPR perėjimas su išoriniu metaliniu sriegiu d20x3/4\"",null,null,null,null,null,"Medžiaga  polipropileno kopolimeras Temperatura  90C Max slėgis  20ba"]
["1.48.","PPR perėjimas su išoriniu metaliniu sriegiu d25x3/4\"",50,"vnt.",1.18,{"$f":"IF(ISBLANK(E124),\"\", PRODUCT(C124,E124))","v":59},"PPR ANTGALIS IŠ.SR.25x3/4"]
["1.48.1.","PPR perėjimas su išoriniu metaliniu sriegiu d25x3/4\"",null,null,null,null,null,"Medžiaga  polipropileno kopolimeras Temperatura  90C Max slėgis  20ba"]
["1.49.","PPR perėjimas su išoriniu metaliniu sriegiu d32/1\"",40,"vnt.",2.27,{"$f":"IF(ISBLANK(E126),\"\", PRODUCT(C126,E126))","v":90.8},"PPR ANTGALIS IŠ.SR.32x1"]
["1.49.1.","PPR perėjimas su išoriniu metaliniu sriegiu d32/1\"",null,null,null,null,null,"Medžiaga  polipropileno kopolimeras Temperatura  90C Max slėgis  20ba"]
["1.50.","PPR perėjimas su vidiniu sriegiu d20x1/2\"",100,"vnt.",{"$f":"[1]Pasiūlymas!$E$128","v":0.72},{"$f":"IF(ISBLANK(E128),\"\", PRODUCT(C128,E128))","v":72},"PPR ANTGALIS VID.SR.20X1/2"]
["1.50.1.","PPR perėjimas su vidiniu sriegiu d20x1/2\"",null,null,null,null,null,"Medžiaga  polipropileno kopolimeras Temperatura  90C Max slėgis  20ba"]
["1.51.","PPR perėjimas su vidiniu sriegiu d20x3/4\"",60,"vnt.",0.97,{"$f":"IF(ISBLANK(E130),\"\", PRODUCT(C130,E130))","v":58.199999999999996},"PPR ANTGALIS VID.SR.20X3/4"]
["1.51.1.","PPR perėjimas su vidiniu sriegiu d20x3/4\"",null,null,null,null,null,"Medžiaga  polipropileno kopolimeras Temperatura  90C Max slėgis  20ba"]
["1.52.","PPR perėjimas su vidiniu sriegiu d25x3/4\"",40,"vnt.",1.02,{"$f":"IF(ISBLANK(E132),\"\", PRODUCT(C132,E132))","v":40.799999999999997},"PPR ANTGALIS IŠ.SR.25x3/4"]
["1.52.1.","PPR perėjimas su vidiniu sriegiu d25x3/4\"",null,null,null,null,null,"Medžiaga  polipropileno kopolimeras Temperatura  90C Max slėgis  20ba"]
["1.53.","PPR perėjimas su vidiniu sriegiu d32x1\"",20,"vnt.",2.15,{"$f":"IF(ISBLANK(E134),\"\", PRODUCT(C134,E134))","v":43},"PPR ANTGALIS IŠ.SR.32x1"]
["1.53.1.","PPR perėjimas su vidiniu sriegiu d32x1\"",null,null,null,null,null,"Medžiaga  polipropileno kopolimeras Temperatura  90C Max slėgis  20ba"]
["1.54.","PPR kompensatoriai d20",20,"vnt.",0.42,{"$f":"IF(ISBLANK(E136),\"\", PRODUCT(C136,E136))","v":8.4},"PPR KOMPESACINE KILPA D20"]
["1.54.1.","PPR kompensatoriai d20",null,null,null,null,null,"Medžiaga  polipropileno kopolimeras Temperatura  90C Max slėgis  20ba"]
["1.55.","PPR kompensatoriai d25",20,"vnt.",0.57999999999999996,{"$f":"IF(ISBLANK(E138),\"\", PRODUCT(C138,E138))","v":11.6},"PPR KOMPESACINE KILPA D25"]
["1.55.1.","PPR kompensatoriai d25",null,null,null,null,null,"Medžiaga  polipropileno kopolimeras Temperatura  90C Max slėgis  20ba"]
["1.56.","PPR kompensatoriai d32",20,"vnt.",1.54,{"$f":"IF(ISBLANK(E140),\"\", PRODUCT(C140,E140))","v":30.8},"PPR KOMPESACINE KILPA D32"]
["1.56.1.","PPR kompensatoriai d32",null,null,null,null,null,"Medžiaga  polipropileno kopolimeras Temperatura  90C Max slėgis  20ba"]
["1.57.","PPR kompensatoriai d40",20,"vnt.",1.33,{"$f":"IF(ISBLANK(E142),\"\", PRODUCT(C142,E142))","v":26.6},"PPR KOMPESACINE KILPA D40"]
["1.57.1.","PPR kompensatoriai d40",null,null,null,null,null,"Medžiaga  polipropileno kopolimeras Temperatura  90C Max slėgis  20ba"]
["1.58.","Antgalis srieginis vidinis 18x1/2\" presuojamas",100,"vnt.",1.7,{"$f":"IF(ISBLANK(E144),\"\", PRODUCT(C144,E144))","v":170},"PRES. JUNGTIS VID. SR. 18X1/2"]
["1.58.1.","Turi tikti objektui 1.5",null,null,null,null,null,"Mežiaga: žalvaris. Atitinka standartą ISO 21003  Max. temp.: -20 / +90. Max. slėgis PN10."]
["1.59.","Antgalis srieginis vidinis 18x1/2\" suveržiamas",100,"vnt.",0.98,{"$f":"IF(ISBLANK(E146),\"\", PRODUCT(C146,E146))","v":98},"TIESI JUNGTIS SU VID.SR.18X1/2"]
["1.59.1.","Turi tikti objektui 1.5",null,null,null,null,null,"Mežiaga: žalvaris. Sriegiai atitinka ISO 2528. Max. temp. +90. Max. slėgis PN 8-10."]
["1.60.","Antgalis srieginis vidinis 18x3/4\" presuojamas",100,"vnt.",2.2200000000000002,{"$f":"IF(ISBLANK(E148),\"\", PRODUCT(C148,E148))","v":222.00000000000003},"PRES. JUNGTIS VID. SR. 18X3/4"]
["1.60.1.","Turi tikti objektui 1.5",null,null,null,null,null,"Mežiaga: žalvaris. Atitinka standartą ISO 21003  Max. temp.: -20 / +90. Max. slėgis PN10."]
["1.61.","Antgalis srieginis vidinis 18x3/4\" suveržiamas",100,"vnt.",2.04,{"$f":"IF(ISBLANK(E150),\"\", PRODUCT(C150,E150))","v":204},"TIESI JUNGTIS VID.SR.18X3/4"]
["1.61.1.","Turi tikti objektui 1.5",null,null,null,null,null,"Mežiaga: žalvaris. Sriegiai atitinka ISO 2528. Max. temp. +90. Max. slėgis PN 8-10."]
["1.62.","Antgalis  [eurokonusas] d16",100,"vnt.",1.05,{"$f":"IF(ISBLANK(E152),\"\", PRODUCT(C152,E152))","v":105},"Eurokonusas d16"]
["1.62.1.","Antgalis  [eurokonusas] d16",null,null,null,null,null,"Mežiaga: žalvaris. Sriegiai atitinka ISO 2528. Max. temp. +90. Max. slėgis PN 8-10."]
["1.63.","Antgalis  [eurokonusas] d18",100,"vnt.",1.05,{"$f":"IF(ISBLANK(E154),\"\", PRODUCT(C154,E154))","v":105},"Eurokonusas d18"]
["1.63.1.","Antgalis  [eurokonusas] d18",null,null,null,null,null,"Mežiaga: žalvaris. Sriegiai atitinka ISO 2528. Max. temp. +90. Max. slėgis PN 8-10."]
["1.64.","Antgalis  [eurokonusas] d20",100,"vnt.",1.05,{"$f":"IF(ISBLANK(E156),\"\", PRODUCT(C156,E156))","v":105},"Eurokonusas d20"]
["1.64.1.","Antgalis  [eurokonusas] d20",null,null,null,null,null,"Mežiaga: žalvaris. Sriegiai atitinka ISO 2528. Max. temp. +90. Max. slėgis PN 8-10."]
["1.65.","Antgalis išoriniu sriegiu daugiasluoksniam vamzdžiui 16x1/2\"",100,"vnt.",0.66,{"$f":"IF(ISBLANK(E158),\"\", PRODUCT(C158,E158))","v":66},"TIESI JUNGTIS SU IŠOR.SR.16X1/2"]
["1.65.1.","Turi tikti objektui 1.1",null,null,null,null,null,"Mežiaga: žalvaris. Sriegiai atitinka ISO 2528. Max. temp. +90. Max. slėgis PN 8-10."]
["1.66.","Antgalis išoriniu sriegiu daugiasluoksniam vamzdžiui 16x1/2\" presuojama",100,"vnt.",1.31,{"$f":"IF(ISBLANK(E160),\"\", PRODUCT(C160,E160))","v":131},"PRES. JUNGTIS IŠ. SR. 16X1/2"]
["1.66.1.","Turi tikti objektui 1.1",null,null,null,null,null,"Mežiaga: žalvaris. Atitinka standartą ISO 21003  Max. temp.: -20 / +90. Max. slėgis PN10."]
["1.67.","Antgalis išoriniu sriegiu daugiasluoksniam vamzdžiui 16x3/4\"",100,"vnt.",1.35,{"$f":"IF(ISBLANK(E162),\"\", PRODUCT(C162,E162))","v":135},"TIESI JUNGTIS SU IŠOR.SR.16X3/4"]
["1.67.1.","Turi tikti objektui 1.1",null,null,null,null,null,"Mežiaga: žalvaris. Atitinka standartą ISO 21003  Max. temp.: -20 / +90. Max. slėgis PN10."]
["1.68.","Antgalis išoriniu sriegiu daugiasluoksniam vamzdžiui 16x3/4\" presuojama",100,"vnt.",1.85,{"$f":"IF(ISBLANK(E164),\"\", PRODUCT(C164,E164))","v":185},"PRES. JUNGTIS IŠ. SR. 16X3/4"]
["1.68.1.","Turi tikti objektui 1.5",null,null,null,null,null,"Mežiaga: žalvaris. Atitinka standartą ISO 21003  Max. temp.: -20 / +90. Max. slėgis PN10."]
["1.69.","Antgalis išoriniu sriegiu daugiasluoksniam vamzdžiui 18x1/2\"",100,"vnt.",0.9,{"$f":"IF(ISBLANK(E166),\"\", PRODUCT(C166,E166))","v":90},"TIESI JUNGTIS SU IŠOR.SR.18x1/2"]
["1.69.1.","Turi tikti objektui 1.5",null,null,null,null,null,"Mežiaga: žalvaris. Sriegiai atitinka ISO 2528. Max. temp. +90. Max. slėgis PN 8-10."]
["1.70.","Antgalis išoriniu sriegiu daugiasluoksniam vamzdžiui 18x1/2\" presuojama",100,"vnt.",1.4,{"$f":"IF(ISBLANK(E168),\"\", PRODUCT(C168,E168))","v":140},"PRES. JUNGTIS IŠ. SR. 18X1/2"]
["1.70.1.","Turi tikti objektui 1.5",null,null,null,null,null,"Mežiaga: žalvaris. Atitinka standartą ISO 21003  Max. temp.: -20 / +90. Max. slėgis PN10."]
["1.71.","Antgalis išoriniu sriegiu daugiasluoksniam vamzdžiui 18x3/4\"",100,"vnt.",1.42,{"$f":"IF(ISBLANK(E170),\"\", PRODUCT(C170,E170))","v":142},"TIESI JUNGTIS SU IŠOR.SR.18X3/4"]
["1.71.1.","Turi tikti objektui 1.5",null,null,null,null,null,"Mežiaga: žalvaris. Sriegiai atitinka ISO 2528. Max. temp. +90. Max. slėgis PN 8-10."]
["1.72.","Antgalis išoriniu sriegiu daugiasluoksniam vamzdžiui 18x3/4\" presuojama",100,"vnt.",1.84,{"$f":"IF(ISBLANK(E172),\"\", PRODUCT(C172,E172))","v":184},"PRES. JUNGTIS IŠ. SR. 18X3/4"]
["1.72.1.","Turi tikti objektui 1.5",null,null,null,null,null,"Mežiaga: žalvaris. Atitinka standartą ISO 21003  Max. temp.: -20 / +90. Max. slėgis PN10."]
["1.73.","Antgalis išoriniu sriegiu daugiasluoksniam vamzdžiui 20x1/2\"",100,"vnt.",1.07,{"$f":"IF(ISBLANK(E174),\"\", PRODUCT(C174,E174))","v":107},"TIESI JUNGTIS SU IŠOR.SR.20X1/2"]
["1.73.1.","Turi tikti objektui 1.2",null,null,null,null,null,"Mežiaga: žalvaris. Sriegiai atitinka ISO 2528. Max. temp. +90. Max. slėgis PN 8-10."]
["1.74.","Antgalis išoriniu sriegiu daugiasluoksniam vamzdžiui 20x1/2\" presuojama",100,"vnt.",1.48,{"$f":"IF(ISBLANK(E176),\"\", PRODUCT(C176,E176))","v":148},"PRES. JUNGTIS IŠ. SR. 20X1/2"]
["1.74.1.","Turi tikti objektui 1.2",null,null,null,null,null,"Mežiaga: žalvaris. Atitinka standartą ISO 21003  Max. temp.: -20 / +90. Max. slėgis PN10."]
["1.75.","Antgalis išoriniu sriegiu daugiasluoksniam vamzdžiui 20x3/4\"",100,"vnt.",1.1299999999999999,{"$f":"IF(ISBLANK(E178),\"\", PRODUCT(C178,E178))","v":112.99999999999999},"TIESI JUNGTIS SU IŠOR.SR.20X3/4"]
["1.75.1.","Turi tikti objektui 1.2",null,null,null,null,null,"Mežiaga: žalvaris. Sriegiai atitinka ISO 2528. Max. temp. +90. Max. slėgis PN 8-10."]
["1.76.","Antgalis išoriniu sriegiu daugiasluoksniam vamzdžiui 20x3/4\" presuojama",100,"vnt.",1.95,{"$f":"IF(ISBLANK(E180),\"\", PRODUCT(C180,E180))","v":195},"PRES. JUNGTIS IŠ. SR. 20X3/4"]
["1.76.1.","Turi tikti objektui 1.2",null,null,null,null,null,"Mežiaga: žalvaris. Atitinka standartą ISO 21003  Max. temp.: -20 / +90. Max. slėgis PN10."]
["1.77.","Antgalis išoriniu sriegiu daugiasluoksniam vamzdžiui 26x3/4\"",100,"vnt.",3.25,{"$f":"IF(ISBLANK(E182),\"\", PRODUCT(C182,E182))","v":325},"Tiesi jungtis iš sr 26*3/4"]
["1.77.1.","Turi tikti objektui 1.3",null,null,null,null,null,"Mežiaga: žalvaris. Atitinka standartą ISO 21003  Max. temp.: -20 / +90. Max. slėgis PN10"]
["1.78.","Antgalis išoriniu sriegiu daugiasluoksniam vamzdžiui 26x3/4\" presuojama",100,"vnt.",2.7,{"$f":"IF(ISBLANK(E184),\"\", PRODUCT(C184,E184))","v":270},"PRES. JUNGTIS IŠ. SR. 26X3/4"]
["1.78.1.","Turi tikti objektui 1.3",null,null,null,null,null,"Mežiaga: žalvaris. Atitinka standartą ISO 21003  Max. temp.: -20 / +90. Max. slėgis PN10."]
["1.79.","Antgalis išoriniu sriegiu daugiasluoksniam vamzdžiui 26x4/4\"",100,"vnt.",3.4,{"$f":"IF(ISBLANK(E186),\"\", PRODUCT(C186,E186))","v":340},"TIESI JUNGTIS IŠ SR 26*1"]
["1.79.1.","Turi tikti objektui 1.3",null,null,null,null,null,"Mežiaga: žalvaris. Atitinka standartą ISO 21003  Max. temp.: -20 / +90. Max. slėgis PN10."]
["1.80.","Antgalis išoriniu sriegiu daugiasluoksniam vamzdžiui 26x4/4\" presuojama",100,"vnt.",3.3,{"$f":"IF(ISBLANK(E188),\"\", PRODUCT(C188,E188))","v":330},"PRES. JUNGTIS IŠ. SR. 26X1"]
["1.80.1.","Turi tikti objektui 1.3",null,null,null,null,null,"Mežiaga: žalvaris. Atitinka standartą ISO 21003  Max. temp.: -20 / +90. Max. slėgis PN10."]
["1.81.","PVC trišakis 16x1/2\"x16 suveržiamas sriegis-metrinis-vidinis",160,"vnt.",1.88,{"$f":"IF(ISBLANK(E190),\"\", PRODUCT(C190,E190))","v":300.79999999999995},"TRIŠAKIS VID.SR.16X1/2"]
["1.81.1.","PVC trišakis 16x1/2\"x16 suveržiamas sriegis-metrinis-vidinis",null,null,null,null,null,"Mežiaga: žalvaris. Sriegiai atitinka ISO 2528. Max. temp. +90. Max. slėgis PN 8-10."]
["1.82.","PVC trišakis 16x1/2\"x16 suveržiamas sriegis-metrinis-vidinis presuojamas",160,"vnt.",4.8899999999999997,{"$f":"IF(ISBLANK(E192),\"\", PRODUCT(C192,E192))","v":782.4},"TRIŠAKIS VID. SR. 16X1/2X16 PPSU/WAVIN 275011000"]
["1.82.1.","PVC trišakis 16x1/2\"x16 suveržiamas sriegis-metrinis-vidinis presuojamas",null,null,null,null,null,"Mežiaga: polifenilsulfonas (PPSU). Sistema atitinka LST EN 21003 standartą. Max. temp. +95. Max. slėgis PN10."]
["1.83.","PVC trišakis 20x1/2\"x20 suveržiamas sriegis-metrinis-vidinis",140,"vnt.",2.8,{"$f":"IF(ISBLANK(E194),\"\", PRODUCT(C194,E194))","v":392},"TRIŠAKIS VID.SR.20X1/2"]
["1.83.1.","PVC trišakis 20x1/2\"x20 suveržiamas sriegis-metrinis-vidinis",null,null,null,null,null,"Mežiaga: žalvaris. Sriegiai atitinka ISO 2528. Max. temp. +90. Max. slėgis PN 8-10."]
["1.84.","PVC trišakis 20x1/2\"x20 suveržiamas sriegis-metrinis-vidinis presuojamas",140,"vnt.",6.35,{"$f":"IF(ISBLANK(E196),\"\", PRODUCT(C196,E196))","v":889},"TRIŠAKIS VID. SR. 20X1/2X20 PPSU/WAVIN 275011030"]
["1.84.1.","PVC trišakis 20x1/2\"x20 suveržiamas sriegis-metrinis-vidinis presuojamas",null,null,null,null,null,"Mežiaga: polifenilsulfonas (PPSU). Sistema atitinka LST EN 21003 standartą. Max. temp. +95. Max. slėgis PN10."]
["1.85.","PVC trišakis 20x20x20 suveržiamas ",130,"vnt.",3.23,{"$f":"IF(ISBLANK(E198),\"\", PRODUCT(C198,E198))","v":419.9},"TRIŠAKIS 20X20X20"]
["1.85.1.","PVC trišakis 20x20x20 suveržiamas",null,null,null,null,null,"Mežiaga: žalvaris. Sriegiai atitinka ISO 2528. Max. temp. +90. Max. slėgis PN 8-10."]
["1.86.","PVC trišakis 20x20x20 suveržiamas presuojamas",130,"vnt.",3.82,{"$f":"IF(ISBLANK(E200),\"\", PRODUCT(C200,E200))","v":496.59999999999997},"TRIŠAKIS 20X20X20 PPSU/WAVIN 275022100"]
["1.86.1.","PVC trišakis 20x20x20 suveržiamas presuojamas",null,null,null,null,null,"Mežiaga: polifenilsulfonas (PPSU). Sistema atitinka LST EN 21003 standartą. Max. temp. +95. Max. slėgis PN10."]
["1.87.","Trišakis B-1diam. 1/2' [vidinis] , bronzinis, užveržiamas, atitinkantis 16mm daugiasluoksnio vamzdžio diametrą",140,"vnt.",1.88,{"$f":"IF(ISBLANK(E202),\"\", PRODUCT(C202,E202))","v":263.2},"TRIŠAKIS VID.SR.16X1/2"]
["1.87.1.","Trišakis B-1diam. 1/2' [vidinis] , bronzinis, užveržiamas, atitinkantis 16mm daugiasluoksnio vamzdžio diametrą",null,null,null,null,null,"Mežiaga: žalvaris. Sriegiai atitinka ISO 2528. Max. temp. +90. Max. slėgis PN 8-10."]
["1.88.","Trišakis B-1diam. 1/2' [vidinis] , presuojamas, atitinkantis 18mm daugiasluoksnio vamzdžio diametrą",140,"vnt.",3.38,{"$f":"IF(ISBLANK(E204),\"\", PRODUCT(C204,E204))","v":473.2},"PRES. TRIŠAKIS VID. SR. 18X1/2X18"]
["1.88.1.","Trišakis B-1diam. 1/2' [vidinis] , presuojamas, atitinkantis 18mm daugiasluoksnio vamzdžio diametrą",null,null,null,null,null,"Mežiaga: žalvaris. Atitinka standartą ISO 21003  Max. temp.: -20 / +90. Max. slėgis PN10."]
["1.89.","Trišakis B-1diam. 1/2' [vidinis] , presuojamas, atitinkantis 26mm daugiasluoksnio vamzdžio diametrą",140,"vnt.",6.15,{"$f":"IF(ISBLANK(E206),\"\", PRODUCT(C206,E206))","v":861},"PRES.TRIŠAKIS VID 26X1/2X26"]
["1.89.1.","Trišakis B-1diam. 1/2' [vidinis] , presuojamas, atitinkantis 26mm daugiasluoksnio vamzdžio diametrą",null,null,null,null,null,{"$f":"$H$205","v":"Mežiaga: žalvaris. Atitinka standartą ISO 21003  Max. temp.: -20 / +90. Max. slėgis PN10."}]
["1.90.","Trišakis B-1diam. 1/2' [vidinis] , bronzinis, užveržiamas, atitinkantis 20mm daugiasluoksnio vamzdžio diametrą",140,"vnt.",2.8,{"$f":"IF(ISBLANK(E208),\"\", PRODUCT(C208,E208))","v":392},"TRIŠAKIS VID.SR.20X1/2"]
["1.90.1.","Trišakis B-1diam. 1/2' [vidinis] , bronzinis, užveržiamas, atitinkantis 20mm daugiasluoksnio vamzdžio diametrą",null,null,null,null,null,"Mežiaga: žalvaris. Sriegiai atitinka ISO 2528. Max. temp. +90. Max. slėgis PN 8-10."]
["1.91.","Trišakis pereinamas [vidus]16x1/2\"x16 bronzinis,suveržiamas ",130,"vnt.",1.88,{"$f":"IF(ISBLANK(E210),\"\", PRODUCT(C210,E210))","v":244.39999999999998},"TRIŠAKIS VID.SR.16X1/2"]
["1.91.1.","Trišakis pereinamas [vidus] 16x1/2\"x16 bronzinis ,suveržiamas ",null,null,null,null,null,"Mežiaga: žalvaris. Sriegiai atitinka ISO 2528. Max. temp. +90. Max. slėgis PN 8-10."]
["1.92.","Trišakis pereinamas [vidus] 16x1/2\"x16 presuojamas",130,"vnt.",2.65,{"$f":"IF(ISBLANK(E212),\"\", PRODUCT(C212,E212))","v":344.5},"PRES. TRIŠAKIS VID. SR. 16X1/2X16"]
["1.92.1.","Trišakis pereinamas [vidus] 16x1/2\"x16 presuojamas",null,null,null,null,null,"Mežiaga: žalvaris. Atitinka standartą ISO 21003  Max. temp.: -20 / +90. Max. slėgis PN10."]
["1.93.","Trišakis pereinamas [vidus]18x1/2\"x18 bronzinis,suveržiamas ",130,"vnt.",3.74,{"$f":"IF(ISBLANK(E214),\"\", PRODUCT(C214,E214))","v":486.20000000000005},"TRIŠAKIS VID.SR.18X1/2"]
["1.93.1.","Trišakis pereinamas [vidus] 18x1/2\"x18 bronzinis ,suveržiamas ",null,null,null,null,null,"Mežiaga: žalvaris. Sriegiai atitinka ISO 2528. Max. temp. +90. Max. slėgis PN 8-10."]
["1.94.","Trišakis pereinamas [vidus] 18x1/2\"x18 presuojamas",130,"vnt.",3.38,{"$f":"IF(ISBLANK(E216),\"\", PRODUCT(C216,E216))","v":439.4},"PRES. TRIŠAKIS VID. SR. 18X1/2X18"]
["1.94.1.","Trišakis pereinamas [vidus] 18x1/2\"x18 presuojamas",null,null,null,null,null,"Mežiaga: žalvaris. Atitinka standartą ISO 21003  Max. temp.: -20 / +90. Max. slėgis PN10."]
["1.95.","Trišakis pereinamas [vidus]26x1/2\"x26 bronzinis,suveržiamas ",130,"vnt.",6.55,{"$f":"IF(ISBLANK(E218),\"\", PRODUCT(C218,E218))","v":851.5},"Pres.trIŠAKIS VID 26X1/2X26"]
["1.95.1.","Trišakis pereinamas [vidus] 26x1/2\"x26 bronzinis ,suveržiamas ",null,null,null,null,null,"Mežiaga: žalvaris. Atitinka standartą ISO 21003  Max. temp.: -20 / +90. Max. slėgis PN10."]
["1.96.","Trišakis pereinamas [vidus] 26x1/2\"x26 presuojamas",130,"vnt.",6.55,{"$f":"IF(ISBLANK(E220),\"\", PRODUCT(C220,E220))","v":851.5},"Pres.trIŠAKIS VID 26X1/2X26"]
["1.96.1.","Trišakis pereinamas [vidus] 26x1/2\"x26 presuojamas",null,null,null,null,null,"Mežiaga: žalvaris. Atitinka standartą ISO 21003  Max. temp.: -20 / +90. Max. slėgis PN10."]
["1.97.","PPR pereinama mova vidus-vidus 20x16",100,"vnt.",0.13,{"$f":"IF(ISBLANK(E222),\"\", PRODUCT(C222,E222))","v":13},"PPR MOVA 20*16"]
["1.97.1.","PPR pereinama mova vidus-vidus 20x16",null,null,null,null,null,"Medžiaga  polipropileno kopolimeras Temperatura  90C Max slėgis  20bar"]
["1.98.","PPR pereinama mova vidus-vidus 25x20",100,"vnt.",0.13,{"$f":"IF(ISBLANK(E224),\"\", PRODUCT(C224,E224))","v":13},"PPR MOVA 25*20"]
["1.98.1.","PPR pereinama mova vidus-vidus 25x20",null,null,null,null,null,"Medžiaga  polipropileno kopolimeras Temperatura  90C Max slėgis  20bar"]
["1.99.","PPR pereinama mova vidus-vidus 32x20",100,"vnt.",0.15,{"$f":"IF(ISBLANK(E226),\"\", PRODUCT(C226,E226))","v":15},"PPR MOVA 32*20"]
["1.99.1.","PPR pereinama mova vidus-vidus 32x20",null,null,null,null,null,"Medžiaga  polipropileno kopolimeras Temperatura  90C Max slėgis  20bar"]
["1.100.","PPR pereinama mova vidus-vidus 32x25",100,"vnt.",0.18,{"$f":"IF(ISBLANK(E228),\"\", PRODUCT(C228,E228))","v":18},"PPR MOVA 32*25"]
["1.100.1.","PPR pereinama mova vidus-vidus 32x25",null,null,null,null,null,"Medžiaga  polipropileno kopolimeras Temperatura  90C Max slėgis  20bar"]
["1.101.","PPR redukcinis trišakis 20x16x20",100,"vnt.",0.17,{"$f":"IF(ISBLANK(E230),\"\", PRODUCT(C230,E230))","v":17},"PPR TRIŠAKIS 20*16*20"]
["1.101.1.","PPR redukcinis trišakis 20x16x20",null,null,null,null,null,"Medžiaga  polipropileno kopolimeras Temperatura  90C Max slėgis  20bar"]
["1.102.","PPR redukcinis trišakis 25x20x20",100,"vnt.",{"$f":"[1]Pasiūlymas!$E$232","v":0.18},{"$f":"IF(ISBLANK(E232),\"\", PRODUCT(C232,E232))","v":18},"PPR TRIŠAKIS 25*20*20"]
["1.102.1.","PPR redukcinis trišakis 25x20x20",null,null,null,null,null,"Medžiaga  polipropileno kopolimeras Temperatura  90C Max slėgis  20bar"]
["1.103.","PPR redukcinis trišakis 25x20x25",50,"vnt.",0.2,{"$f":"IF(ISBLANK(E234),\"\", PRODUCT(C234,E234))","v":10},"PPR TRIŠAKIS 25*20*25"]
["1.103.1.","PPR redukcinis trišakis 25x20x25",null,null,null,null,null,"Medžiaga  polipropileno kopolimeras Temperatura  90C Max slėgis  20bar"]
["1.104.","PPR redukcinis trišakis 32x20x32",50,"vnt.",0.31,{"$f":"IF(ISBLANK(E236),\"\", PRODUCT(C236,E236))","v":15.5},"PPR TRIŠAKIS 32x20x32"]
["1.104.1.","PPR redukcinis trišakis 32x20x32",null,null,null,null,null,"Medžiaga  polipropileno kopolimeras Temperatura  90C Max slėgis  20bar"]
["1.105.","PPR redukcinis trišakis 32x25x32",20,"vnt.",0.31,{"$f":"IF(ISBLANK(E238),\"\", PRODUCT(C238,E238))","v":6.2},"PPR TRIŠAKIS 35x25x32"]
["1.105.1.","PPR redukcinis trišakis 32x25x32",null,null,null,null,null,"Medžiaga  polipropileno kopolimeras Temperatura  90C Max slėgis  20bar"]
["1.106.","PPR trišakis su vidiniu metaliniu sriegiu 20x1/2\"x20",100,"vnt.",0.75,{"$f":"IF(ISBLANK(E240),\"\", PRODUCT(C240,E240))","v":75},"PPR TRIŠAKIS MET VID,SR 20x1/2x20"]
["1.106.1.","PPR trišakis su vidiniu metaliniu sriegiu 20x1/2\"x20",null,null,null,null,null,"Medžiaga  polipropileno kopolimeras Temperatura  90C Max slėgis  20bar"]
["1.107.","PPR trišakis su vidiniu metaliniu sriegiu 25x1/2\"x25",100,"vnt.",0.84,{"$f":"IF(ISBLANK(E242),\"\", PRODUCT(C242,E242))","v":84},"PPR TRIŠAKIS MET VID,SR 25x1/2x25"]
["1.107.1.","PPR trišakis su vidiniu metaliniu sriegiu 25x1/2\"x25",null,null,null,null,null,"Medžiaga  polipropileno kopolimeras Temperatura  90C Max slėgis  20bar"]
["1.108.","PPR trišakis su vidiniu metaliniu sriegiu 25x3/4\"x25",50,"vnt.",0.67,{"$f":"IF(ISBLANK(E244),\"\", PRODUCT(C244,E244))","v":33.5},"PPR TRIŠAKIS MET VID,SR 25x3/4x25"]
["1.108.1.","PPR trišakis su vidiniu metaliniu sriegiu 25x3/4\"x25",null,null,null,null,null,"Medžiaga  polipropileno kopolimeras Temperatura  90C Max slėgis  20bar"]
["1.109.","PPR trišakis su vidiniu metaliniu sriegiu 32x1\"x32",30,"vnt.",1.22,{"$f":"IF(ISBLANK(E246),\"\", PRODUCT(C246,E246))","v":36.6},"PPR TRIŠAKIS MET VID,SR 32x1x32"]
["1.109.1.","PPR trišakis su vidiniu metaliniu sriegiu 32x1\"x32",null,null,null,null,null,"Medžiaga  polipropileno kopolimeras Temperatura  90C Max slėgis  20bar"]
["1.110.","PPR perėjimas su vidiniu metaliniu sriegiu-veržle 20x1/2\"",80,"vnt.",1.4,{"$f":"IF(ISBLANK(E248),\"\", PRODUCT(C248,E248))","v":112},"PPR PERĖJIMAS VID .SR 20x1/2"]
["1.110.1.","PPR perėjimas su vidiniu metaliniu sriegiu-veržle 20x1/2\"",null,null,null,null,null,"Medžiaga  polipropileno kopolimeras Temperatura  90C Max slėgis  20bar"]
["1.111.","PPR perėjimas su vidiniu metaliniu sriegiu-veržle 20x3/4\"",60,"vnt.",1.8,{"$f":"IF(ISBLANK(E250),\"\", PRODUCT(C250,E250))","v":108},"PPR PERĖJIMAS VID .SR 20x3/4"]
["1.111.1.","PPR perėjimas su vidiniu metaliniu sriegiu-veržle 20x3/4\"",null,null,null,null,null,"Medžiaga  polipropileno kopolimeras Temperatura  90C Max slėgis  20bar"]
["1.112.","PPR perėjimas su vidiniu metaliniu sriegiu-veržle 20x1\"",40,"vnt.",2.2000000000000002,{"$f":"IF(ISBLANK(E252),\"\", PRODUCT(C252,E252))","v":88},"PPR PERĖJIMAS VID .SR 20x1"]
["1.112.1.","PPR perėjimas su vidiniu metaliniu sriegiu-veržle 20x1\"",null,null,null,null,null,"Medžiaga  polipropileno kopolimeras Temperatura  90C Max slėgis  20bar"]
["1.113.","Trišakis daugiasluoksniam vamzdžiui 16x16x16",250,"vnt.",1.93,{"$f":"IF(ISBLANK(E254),\"\", PRODUCT(C254,E254))","v":482.5},"TRIŠAKIS 16X16"]
["1.113.1.","Turi tikti objektui 1.1",null,null,null,null,null,"Mežiaga: žalvaris. Sriegiai atitinka ISO 2528. Max. temp. +90. Max. slėgis PN 8-10."]
["1.114.","Trišakis daugiasluoksniam vamzdžiui 18x18x18",250,"vnt.",3.3,{"$f":"IF(ISBLANK(E256),\"\", PRODUCT(C256,E256))","v":825},"TRIŠAKIS 18X18X18"]
["1.114.1.","Turi tikti objektui 1.5",null,null,null,null,null,"Mežiaga: žalvaris. Sriegiai atitinka ISO 2528. Max. temp. +90. Max. slėgis PN 8-10."]
["1.115.","Trišakis daugiasluoksniam vamzdžiui 20x20x20",250,"vnt.",3.23,{"$f":"IF(ISBLANK(E258),\"\", PRODUCT(C258,E258))","v":807.5},"TRIŠAKIS 20X20X20"]
["1.115.1.","Turi tikti objektui 1.2",null,null,null,null,null,"Mežiaga: žalvaris. Sriegiai atitinka ISO 2528. Max. temp. +90. Max. slėgis PN 8-10."]
["1.116.","PPR vamzdžio trišakis d20",120,"vnt.",0.11,{"$f":"IF(ISBLANK(E260),\"\", PRODUCT(C260,E260))","v":13.2},"PPR TRIŠAKIS D20"]
["1.116.1.","PPR vamzdžio trišakis d20",null,null,null,null,null,"Medžiaga  polipropileno kopolimeras Temperatura  90C Max slėgis  20bar"]
["1.117.","PPR vamzdžio trišakis d25",120,"vnt.",0.14000000000000001,{"$f":"IF(ISBLANK(E262),\"\", PRODUCT(C262,E262))","v":16.8},"PPR TRIŠAKIS D25"]
["1.117.1.","PPR vamzdžio trišakis d25",null,null,null,null,null,"Medžiaga  polipropileno kopolimeras Temperatura  90C Max slėgis  20bar"]
["1.118.","PPR vamzdžio trišakis d32",120,"vnt.",0.26,{"$f":"IF(ISBLANK(E264),\"\", PRODUCT(C264,E264))","v":31.200000000000003},"PPR TRIŠAKIS D32"]
["1.118.1.","PPR vamzdžio trišakis d32",null,null,null,null,null,"Medžiaga  polipropileno kopolimeras Temperatura  90C Max slėgis  20bar"]
["1.119.","PPR vamzdžio trišakis d40",120,"vnt.",0.44,{"$f":"IF(ISBLANK(E266),\"\", PRODUCT(C266,E266))","v":52.8},"PPR TRIŠAKIS D40"]
["1.119.1.","PPR vamzdžio trišakis d40",null,null,null,null,null,"Medžiaga  polipropileno kopolimeras Temperatura  90C Max slėgis  20bar"]
["1.120.","PPR tvirtinimo alkūnės su vidiniu sriegiu 20x1/2\"",100,"vnt.",0.69,{"$f":"IF(ISBLANK(E268),\"\", PRODUCT(C268,E268))","v":69},"ALKŪNĖ SU TVIRT. 90 20*1/2\"VID."]
["1.120.1.","PPR tvirtinimo alkūnės su vidiniu sriegiu 20x1/2\"",null,null,null,null,null,"Medžiaga  polipropileno kopolimeras Temperatura  90C Max slėgis  20bar"]
["1.121.","PPR tvirtinimo alkūnės su vidiniu sriegiu 25x3/4\"",60,"vnt.",0.76,{"$f":"IF(ISBLANK(E270),\"\", PRODUCT(C270,E270))","v":45.6}," ALKŪNĖ SU TVIRT. 90 25*3/4\"vid"]
["1.121.1.","PPR tvirtinimo alkūnės su vidiniu sriegiu 25x3/4\"",null,null,null,null,null,"Medžiaga  polipropileno kopolimeras Temperatura  90C Max slėgis  20bar"]
["1.122.","PPR vamzdžio alkūnė d20, 90 laipsnių",100,"vnt.",0.1,{"$f":"IF(ISBLANK(E272),\"\", PRODUCT(C272,E272))","v":10},"PPR ALKUNĖ 20/90"]
["1.122.1.","PPR vamzdžio alkūnė d20, 90 laipsnių",null,null,null,null,null,"Medžiaga  polipropileno kopolimeras Temperatura  90C Max slėgis  20bar"]
["1.123.","PPR vamzdžio alkūnė d25, 90 laipsnių",100,"vnt.",0.15,{"$f":"IF(ISBLANK(E274),\"\", PRODUCT(C274,E274))","v":15},"PPR ALKUNĖ 25/90"]
["1.123.1.","PPR vamzdžio alkūnė d25, 90 laipsnių",null,null,null,null,null,"Medžiaga  polipropileno kopolimeras Temperatura  90C Max slėgis  20bar"]
["1.124.","PPR vamzdžio alkūnė d32, 90 laipsnių",40,"vnt.",0.22,{"$f":"IF(ISBLANK(E276),\"\", PRODUCT(C276,E276))","v":8.8000000000000007},"PPR ALKUNĖ 32/90"]
["1.124.1.","PPR vamzdžio alkūnė d32, 90 laipsnių",null,null,null,null,null,"Medžiaga  polipropileno kopolimeras Temperatura  90C Max slėgis  20bar"]
["1.125.","PPR vamzdžio alkūnė d40, 90 laipsnių",20,"vnt.",0.47,{"$f":"IF(ISBLANK(E278),\"\", PRODUCT(C278,E278))","v":9.3999999999999986},"PPR ALKUNĖ 40/90"]
["1.125.1.","PPR vamzdžio alkūnė d40, 90 laipsnių",null,null,null,null,null,"Medžiaga  polipropileno kopolimeras Temperatura  90C Max slėgis  20bar"]
["1.126.","PPR vamzdžio alkūnė d20, 45 laipsnių",100,"vnt.",0.09,{"$f":"IF(ISBLANK(E280),\"\", PRODUCT(C280,E280))","v":9},"PPR ALKUNĖ 20/45"]
["1.126.1.","PPR vamzdžio alkūnė d20, 45 laipsnių",null,null,null,null,null,"Medžiaga  polipropileno kopolimeras Temperatura  90C Max slėgis  20bar"]
["1.127.","PPR vamzdžio alkūnė d25, 45 laipsnių",100,"vnt.",0.12,{"$f":"IF(ISBLANK(E282),\"\", PRODUCT(C282,E282))","v":12},"PPR ALKUNĖ 25/45"]
["1.127.1.","PPR vamzdžio alkūnė d25, 45 laipsnių",null,null,null,null,null,"Medžiaga  polipropileno kopolimeras Temperatura  90C Max slėgis  20bar"]
["1.128.","PPR vamzdžio alkūnė d32, 45 laipsnių",40,"vnt.",0.2,{"$f":"IF(ISBLANK(E284),\"\", PRODUCT(C284,E284))","v":8},"PPR ALKUNĖ 32/45"]
["1.128.1.","PPR vamzdžio alkūnė d32, 45 laipsnių",null,null,null,null,null,"Medžiaga  polipropileno kopolimeras Temperatura  90C Max slėgis  20bar"]
["1.129.","PPR vamzdžio alkūnė d40, 45 laipsnių",20,"vnt.",0.35,{"$f":"IF(ISBLANK(E286),\"\", PRODUCT(C286,E286))","v":7},"PPR ALKUNĖ 40/45"]
["1.129.1.","PPR vamzdžio alkūnė d40, 45 laipsnių",null,null,null,null,null,"Medžiaga  polipropileno kopolimeras Temperatura  90C Max slėgis  20bar"]
["1.130.","PPR vamzdžio aklė d15",20,"vnt.",0.08,{"$f":"IF(ISBLANK(E288),\"\", PRODUCT(C288,E288))","v":1.6},"PPR AKLĖ D15"]
["1.130.1.","PPR vamzdžio aklė d15",null,null,null,null,null,"Medžiaga  polipropileno kopolimeras Temperatura  90C Max slėgis  20bar"]
["1.131.","PPR vamzdžio aklė d20",20,"vnt.",0.09,{"$f":"IF(ISBLANK(E290),\"\", PRODUCT(C290,E290))","v":1.7999999999999998},"PPR AKLĖ D20"]
["1.131.1.","PPR vamzdžio aklė d20",null,null,null,null,null,"Medžiaga  polipropileno kopolimeras Temperatura  90C Max slėgis  20bar"]
["1.132.","PPR vamzdžio aklė d25",20,"vnt.",0.12,{"$f":"IF(ISBLANK(E292),\"\", PRODUCT(C292,E292))","v":2.4},"PPR AKLĖ D25"]
["1.132.1.","PPR vamzdžio aklė d25",null,null,null,null,null,"Medžiaga  polipropileno kopolimeras Temperatura  90C Max slėgis  20bar"]
["1.133.","Montažinė alkūnė d16-1/2\" vidus, presuojama",50,"vnt.",2.7,{"$f":"IF(ISBLANK(E294),\"\", PRODUCT(C294,E294))","v":135},"PRES. ALKŪNĖ SU TVIRT. VID. SR. 16X1/2"]
["1.133.1.","Montažinė alkūnė d16-1/2\" vidus, presuojama",null,null,null,null,null,"Mežiaga: žalvaris. Atitinka standartą ISO 21003  Max. temp.: -20 / +90. Max. slėgis PN10."]
["1.134.","Alkūnė su tvirtinimu d16-1/2\" vidus, užveržiama",50,"vnt.",1.46,{"$f":"IF(ISBLANK(E296),\"\", PRODUCT(C296,E296))","v":73},"PRIETAIS.ALKŪNĖS 16X1/2"]
["1.134.1.","Alkūnė su tvirtinimu d16-1/2\" vidus, užveržiama",null,null,null,null,null,"Mežiaga: žalvaris. Sriegiai atitinka ISO 2528. Max. temp. +90. Max. slėgis PN 8-10."]
["1.135.","Antgalis APE d16-3/4\" užveržiamas",50,"vnt.",1.46,{"$f":"IF(ISBLANK(E298),\"\", PRODUCT(C298,E298))","v":73},"PRIETAIS.ALKŪNĖS 16X1/2"]
["1.135.1.","Alkūnė su tvirtinimu d16-1/2\" vidus, užveržiam",null,null,null,null,null,"Mežiaga: žalvaris. Sriegiai atitinka ISO 2528. Max. temp. +90. Max. slėgis PN 8-10."]
["1.136.","Radiatoriai plieniniai HC-11-800 , šoninis, aukštis 500 mm",10,"vnt.",33,{"$f":"IF(ISBLANK(E300),\"\", PRODUCT(C300,E300))","v":330}," RADIATORIUS HC 11X500X800 (ŠON."]
["1.136.1.","Radiatoriai plieniniai HC-11-800 , šoninis, aukštis 500 mm",null,null,null,null,null,"Medžiaga PLIENAS TIPAS 11  AUKŠTIS 500 ILGIS 800mm  Pajungimas šoninis"]
["1.137.","Radiatoriai plieniniai HC-11-1000 , šoninis, aukštis 500 mm",10,"vnt.",35.700000000000003,{"$f":"IF(ISBLANK(E302),\"\", PRODUCT(C302,E302))","v":357},"RADIATORIUS HC 11X500X1000 (ŠON."]
["1.137.1.","Radiatoriai plieniniai HC-11-1000 , šoninis, aukštis 500 mm",null,null,null,null,null,"Medžiaga PLIENAS TIPAS 11  AUKŠTIS 500 ILGIS 1000mm  Pajungimas šoninis"]
["1.138.","Radiatoriai plieniniai HC-22-1000 , šoninis, aukštis 500 mm",10,"vnt.",37.799999999999997,{"$f":"IF(ISBLANK(E304),\"\", PRODUCT(C304,E304))","v":378},"RADIATORIUS HC 22X500X1000 (ŠON."]
["1.138.1.","Radiatoriai plieniniai HC-22-1000 , šoninis, aukštis 500 mm",null,null,null,null,null,"Medžiaga PLIENAS TIPAS 22  AUKŠTIS 500 ILGIS 1000mm  Pajungimas šoninis"]
["1.139.","Radiatoriai plieniniai HC-22-800 , šoninis, aukštis 500 mm",10,"vnt.",49,{"$f":"IF(ISBLANK(E306),\"\", PRODUCT(C306,E306))","v":490},"RADIATORIUSHC 22X500X800 (ŠON."]
["1.139.1.","Radiatoriai plieniniai HC-1-800 , šoninis, aukštis 500 mm",null,null,null,null,null,"Medžiaga PLIENAS TIPAS 11  AUKŠTIS 500 ILGIS 800mm  Pajungimas šoninis"]
[null,null,null,null,"Suma be PVM",{"$f":"IF((COUNT(C30:C307)<>COUNT(F30:F307)),\"\", SUM(F30:F307))","v":25685.300000000003},{"$f":"IF((COUNT(C30:C307)<>COUNT(F30:F307)),\"Neužpildytos visų objektų kainos\", \"\")","v":""}]
[null,null,null,null,"PVM suma",5393.91]
[null,null,null,null,"Suma su PVM",{"$f":"IF(ISBLANK(F309), \"\", SUM(F308:F309))","v":31079.210000000003}]
[]
["2.","Plieninis vamzdynas ir jo dalys, žalvariniai fitingai"]
["2.1.","Vamzdžiai plieniniai cinkuoti diam.15x2,6",100,"m",null,{"$f":"IF(ISBLANK(E313),\"\", PRODUCT(C313,E313))","v":""}]
["2.1.1.","Vamzdžiai plieniniai cinkuoti diam.15x2,6"]
["2.2.","Vamzdžiai plieniniai cinkuoti diam.20x2,6",100,"m",null,{"$f":"IF(ISBLANK(E315),\"\", PRODUCT(C315,E315))","v":""}]
["2.2.1.","Vamzdžiai plieniniai cinkuoti diam.20x2,6"]
["2.3.","Vamzdžiai plieniniai cinkuoti diam.25x3,2",100,"m",null,{"$f":"IF(ISBLANK(E317),\"\", PRODUCT(C317,E317))","v":""}]
["2.3.1.","Vamzdžiai plieniniai cinkuoti diam.25x3,2"]
["2.4.","Vamzdžiai plieniniai cinkuoti diam.40x3,2",100,"m",null,{"$f":"IF(ISBLANK(E319),\"\", PRODUCT(C319,E319))","v":""}]
["2.4.1.","Vamzdžiai plieniniai cinkuoti diam.40x3,2"]
["2.5.","Vamzdžiai plieniniai cinkuoti diam.50x3,6",50,"m",null,{"$f":"IF(ISBLANK(E321),\"\", PRODUCT(C321,E321))","v":""}]
["2.5.1.","Vamzdžiai plieniniai cinkuoti diam.50x3,6"]
["2.6.","Vamzdžiai plieniniai diam.89x4,0",50,"m",null,{"$f":"IF(ISBLANK(E323),\"\", PRODUCT(C323,E323))","v":""}]
["2.6.1.","Vamzdžiai plieniniai diam.89x4,0"]
["2.7.","Vamzdžiai plieniniai cinkuoti diam.32x3,2",100,"m",null,{"$f":"IF(ISBLANK(E325),\"\", PRODUCT(C325,E325))","v":""}]
["2.7.1.","Vamzdžiai plieniniai cinkuoti diam.32x3,2"]
["2.8.","Vamzdžių izoliacija perlonini diam. 22/6\"",50,"m",null,{"$f":"IF(ISBLANK(E327),\"\", PRODUCT(C327,E327))","v":""}]
["2.8.1.","Vamzdžių izoliacija perlonini diam. 22/6\""]
["2.9.","Vamzdžių izoliacija perlonini diam. 27/6\"",50,"m",null,{"$f":"IF(ISBLANK(E329),\"\", PRODUCT(C329,E329))","v":""}]
["2.9.1.","Vamzdžių izoliacija perlonini diam. 27/6\""]
["2.10.","Vamzdžių izoliacija perlonini diam. 35/6\"",50,"m",null,{"$f":"IF(ISBLANK(E331),\"\", PRODUCT(C331,E331))","v":""}]
["2.10.1.","Vamzdžių izoliacija perlonini diam. 35/6\""]
["2.11.","Vamzdžių izoliacija perlonini diam. 59/6\"",50,"m",null,{"$f":"IF(ISBLANK(E333),\"\", PRODUCT(C333,E333))","v":""}]
["2.11.1.","Vamzdžių izoliacija perlonini diam. 59/6\""]
["2.12.","Vamzdžių izoliacija perlonini diam. 15/6",100,"m",null,{"$f":"IF(ISBLANK(E335),\"\", PRODUCT(C335,E335))","v":""}]
["2.12.1.","Vamzdžių izoliacija perlonini diam. 15/6"]
["2.13.","Trumpasriegiai plieniniai cinkuoti 15x2,6 L-50",40,"vnt.",null,{"$f":"IF(ISBLANK(E337),\"\", PRODUCT(C337,E337))","v":""}]
["2.13.1.","Trumpasriegiai plieniniai cinkuoti 15x2,6 L-50"]
["2.14.","Trumpasriegiai plieniniai cinkuoti 20x2,6 L-50",40,"vnt.",null,{"$f":"IF(ISBLANK(E339),\"\", PRODUCT(C339,E339))","v":""}]
["2.14.1.","Trumpasriegiai plieniniai cinkuoti 20x2,6 L-50"]
["2.15.","Trumpasriegiai plieniniai cinkuoti 25x3,2 L-60",20,"vnt.",null,{"$f":"IF(ISBLANK(E341),\"\", PRODUCT(C341,E341))","v":""}]
["2.15.1.","Trumpasriegiai plieniniai cinkuoti 25x3,2 L-60"]
["2.16.","Trumpasriegiai plieniniai cinkuoti 32x3,2 L-70",20,"vnt.",null,{"$f":"IF(ISBLANK(E343),\"\", PRODUCT(C343,E343))","v":""}]
["2.16.1.","Trumpasriegiai plieniniai cinkuoti 32x3,2 L-70"]
["2.17.","Trumpasriegiai plieniniai cinkuoti 40x3,2 L-80",20,"vnt.",null,{"$f":"IF(ISBLANK(E345),\"\", PRODUCT(C345,E345))","v":""}]
["2.17.1.","Trumpasriegiai plieniniai cinkuoti 40x3,2 L-80"]
["2.18.","Trumpasriegiai plieniniai cinkuoti 50x3,6 L-90",10,"vnt.",null,{"$f":"IF(ISBLANK(E347),\"\", PRODUCT(C347,E347))","v":""}]
["2.18.1.","Trumpasriegiai plieniniai cinkuoti 50x3,6 L-90"]
["2.19.","Trumpasriegiai plieniniai juodi 15x2,6 L-50",20,"vnt.",null,{"$f":"IF(ISBLANK(E349),\"\", PRODUCT(C349,E349))","v":""}]
["2.19.1.","Trumpasriegiai plieniniai juodi 15x2,6 L-50"]
["2.20.","Trumpasriegiai plieniniai juodi 20x2,6 L-50",20,"vnt.",null,{"$f":"IF(ISBLANK(E351),\"\", PRODUCT(C351,E351))","v":""}]
["2.20.1.","Trumpasriegiai plieniniai juodi 20x2,6 L-50"]
["2.21.","Trumpasriegiai plieniniai juodi 25x3,2 L-60",20,"vnt.",null,{"$f":"IF(ISBLANK(E353),\"\", PRODUCT(C353,E353))","v":""}]
["2.21.1.","Trumpasriegiai plieniniai juodi 25x3,2 L-60"]
["2.22.","Trumpasriegiai plieniniai juodi 32x3,2 L-70",20,"vnt.",null,{"$f":"IF(ISBLANK(E355),\"\", PRODUCT(C355,E355))","v":""}]
["2.22.1.","Trumpasriegiai plieniniai juodi 32x3,2 L-70"]
["2.23.","Trumpasriegiai plieniniai juodi 40x3,2 L-80",20,"vnt.",null,{"$f":"IF(ISBLANK(E357),\"\", PRODUCT(C357,E357))","v":""}]
["2.23.1.","Trumpasriegiai plieniniai juodi 40x3,2 L-80"]
["2.24.","Trumpasriegiai plieniniai juodi 50x3,6 L-90",10,"vnt.",null,{"$f":"IF(ISBLANK(E359),\"\", PRODUCT(C359,E359))","v":""}]
["2.24.1.","Trumpasriegiai plieniniai juodi 50x3,6 L-90"]
["2.25.","Ilgasriegiai plieniniai juodi 15x2,6 ",20,"vnt.",null,{"$f":"IF(ISBLANK(E361),\"\", PRODUCT(C361,E361))","v":""}]
["2.25.1.","Ilgasriegiai plieniniai juodi 15x2,6 "]
["2.26.","Ilgasriegiai plieniniai juodi 20x2,6 ",20,"vnt.",null,{"$f":"IF(ISBLANK(E363),\"\", PRODUCT(C363,E363))","v":""}]
["2.26.1.","Ilgasriegiai plieniniai juodi 20x2,6 "]
["2.27.","Ilgasriegiai plieniniai juodi 25x3,2 ",20,"vnt.",null,{"$f":"IF(ISBLANK(E365),\"\", PRODUCT(C365,E365))","v":""}]
["2.27.1.","Ilgasriegiai plieniniai juodi 25x3,2"]
["2.28.","Ilgasriegiai plieniniai juodi 32x3,2 ",20,"vnt.",null,{"$f":"IF(ISBLANK(E367),\"\", PRODUCT(C367,E367))","v":""}]
["2.28.1.","Ilgasriegiai plieniniai juodi 32x3,2"]
["2.29.","Ilgasriegiai plieniniai juodi 40x3,2 ",20,"vnt.",null,{"$f":"IF(ISBLANK(E369),\"\", PRODUCT(C369,E369))","v":""}]
["2.29.1.","Ilgasriegiai plieniniai juodi 40x3,2"]
["2.30.","Ilgasriegiai plieniniai juodi 50x3,6 ",20,"vnt.",null,{"$f":"IF(ISBLANK(E371),\"\", PRODUCT(C371,E371))","v":""}]
["2.30.1.","Ilgasriegiai plieniniai juodi 50x3,6"]
["2.31.","Sąvaržos 10-16",100,"vnt.",null,{"$f":"IF(ISBLANK(E373),\"\", PRODUCT(C373,E373))","v":""}]
["2.31.1.","Sąvaržos 10-16"]
["2.32.","Sąvaržos 16-25",50,"vnt.",null,{"$f":"IF(ISBLANK(E375),\"\", PRODUCT(C375,E375))","v":""}]
["2.32.1.","Sąvaržos 16-25"]
["2.33.","Sąvaržos 25",50,"vnt.",null,{"$f":"IF(ISBLANK(E377),\"\", PRODUCT(C377,E377))","v":""}]
["2.33.1.","Sąvaržos 25"]
["2.34.","Sąvaržos 40",50,"vnt.",null,{"$f":"IF(ISBLANK(E379),\"\", PRODUCT(C379,E379))","v":""}]
["2.34.1.","Sąvaržos 40"]
["2.35.","Plieninis laikiklis vamzdžiui [su varžtu M8x100] d50mm",200,"vnt.",null,{"$f":"IF(ISBLANK(E381),\"\", PRODUCT(C381,E381))","v":""}]
["2.35.1.","Plieninis laikiklis vamzdžiui [su varžtu M8x100] d50mm"]
["2.36.","Plieninis laikiklis vamzdžiui [su varžtu M8x100] d110mm",200,"vnt.",null,{"$f":"IF(ISBLANK(E383),\"\", PRODUCT(C383,E383))","v":""}]
["2.36.1.","Plieninis laikiklis vamzdžiui [su varžtu M8x100] d110mm"]
["2.37.","Plieninis laikiklis vamzdžiui [su varžtu M8x100] d20mm",50,"vnt.",null,{"$f":"IF(ISBLANK(E385),\"\", PRODUCT(C385,E385))","v":""}]
["2.37.1.","Plieninis laikiklis vamzdžiui [su varžtu M8x100] d20mm"]
["2.38.","Mova M2 diam. 1/2\" ketinė cinkuota",50,"vnt.",null,{"$f":"IF(ISBLANK(E387),\"\", PRODUCT(C387,E387))","v":""}]
["2.38.1.","Mova M2 diam. 1/2\" ketinė, cinkuota"]
["2.39.","Mova M2 diam. 3/4\" ketinė, cinkuota",50,"vnt.",null,{"$f":"IF(ISBLANK(E389),\"\", PRODUCT(C389,E389))","v":""}]
["2.39.1.","Mova M2 diam. 3/4\" ketinė, cinkuota"]
["2.40.","Mova redukuota diam. vid.-vid.  3/4\"-1/2\"  žalvarinė",100,"vnt.",null,{"$f":"IF(ISBLANK(E391),\"\", PRODUCT(C391,E391))","v":""}]
["2.40.1.","Mova redukuota diam. vid.-vid.  3/4\"-1/2\"  žalvarinė"]
["2.41.","Mova redukuota diam. vid.-vid.  1\"-1/2\"  žalvarinė",100,"vnt.",null,{"$f":"IF(ISBLANK(E393),\"\", PRODUCT(C393,E393))","v":""}]
["2.41.1.","Mova redukuota diam. vid.-vid.  1\"-3/4\"  žalvarinė"]
["2.42.","Mova redukuota diam. vid.-vid.  1\"-1/2\"  žalvarinė",100,"vnt.",null,{"$f":"IF(ISBLANK(E395),\"\", PRODUCT(C395,E395))","v":""}]
["2.42.1.","Mova redukuota diam. vid.-vid.  1\"-1/2\"  žalvarinė"]
["2.43.","Prailgintojas chromuotas vid.-išor. 1\"-2\"x10 , žalvaris, chromuotas",100,"vnt.",null,{"$f":"IF(ISBLANK(E397),\"\", PRODUCT(C397,E397))","v":""}]
["2.43.1.","Prailgintojas chromuotas vid.-išor. 1\"-2\"x10 , žalvaris, chromuotas"]
["2.44.","Prailgintojas chromuotas vid.-išor. 1\"-2\"x15 , žalvaris, chromuotas",100,"vnt.",null,{"$f":"IF(ISBLANK(E399),\"\", PRODUCT(C399,E399))","v":""}]
["2.44.1.","Prailgintojas chromuotas vid.-išor. 1\"-2\"x15 , žalvaris, chromuotas"]
["2.45.","Sujungimas bronza, nikeliuotas išor./išor. 1/2\"",100,"vnt.",null,{"$f":"IF(ISBLANK(E401),\"\", PRODUCT(C401,E401))","v":""}]
["2.45.1.","Sujungimas bronza, nikeliuotas išor./išor. 1/2\""]
["2.46.","Sujungimas bronza, nikeliuotas išor./išor. 3/4\"",100,"vnt.",null,{"$f":"IF(ISBLANK(E403),\"\", PRODUCT(C403,E403))","v":""}]
["2.46.1.","Sujungimas bronza, nikeliuotas išor./išor. 3/4\""]
["2.47.","Redukcija išor./vid. 1/2\"-3/8\" bronzinė",100,"vnt.",null,{"$f":"IF(ISBLANK(E405),\"\", PRODUCT(C405,E405))","v":""}]
["2.47.1.","Redukcija išor./vid. 1/2\"-3/8\" bronzinė"]
["2.48.","Redukcija vid./išor. 1/2\"-3/8\" bronzinė",100,"vnt.",null,{"$f":"IF(ISBLANK(E407),\"\", PRODUCT(C407,E407))","v":""}]
["2.48.1.","Redukcija vid./išor. 1/2\"-3/8\" bronzinė"]
["2.49.","Redukcija išor./vid. 1/2\"-3/4\" bronzinė",100,"vnt.",null,{"$f":"IF(ISBLANK(E409),\"\", PRODUCT(C409,E409))","v":""}]
["2.49.1.","Redukcija išor./vid. 1/2\"-3/4\" bronzinė"]
["2.50.","Redukcija išor./vid. 1\"-1/2\" bronzinė",100,"vnt.",null,{"$f":"IF(ISBLANK(E411),\"\", PRODUCT(C411,E411))","v":""}]
["2.50.1.","Redukcija išor./vid. 1\"-1/2\" bronzinė"]
["2.51.","Redukcija išor./vid. 3/8\"-1/2\" bronzinė",100,"vnt.",null,{"$f":"IF(ISBLANK(E413),\"\", PRODUCT(C413,E413))","v":""}]
["2.51.1.","Redukcija išor./vid. 3/8\"-1/2\" bronzinė"]
["2.52.","Sujungimas redukuotas bronzinis išor./išor. 3/4\"-1/2\"",200,"vnt.",null,{"$f":"IF(ISBLANK(E415),\"\", PRODUCT(C415,E415))","v":""}]
["2.52.1.","Sujungimas redukuotas bronzinis išor./išor. 3/4\"-1/2\""]
["2.53.","Sujungimas redukuotas bronzinis išor./išor. 1\"-1/2\"",100,"vnt.",null,{"$f":"IF(ISBLANK(E417),\"\", PRODUCT(C417,E417))","v":""}]
["2.53.1.","Sujungimas redukuotas bronzinis išor./išor. 1\"-1/2\""]
["2.54.","Sujungimas redukuotas bronzinis išor./išor. 1\"-3/4\"",100,"vnt.",null,{"$f":"IF(ISBLANK(E419),\"\", PRODUCT(C419,E419))","v":""}]
["2.54.1.","Sujungimas redukuotas bronzinis išor./išor. 1\"-3/4\""]
["2.55.","Sujungimas išardomas tiesus vid./išor. 1/2\" bronzinis",100,"vnt.",null,{"$f":"IF(ISBLANK(E421),\"\", PRODUCT(C421,E421))","v":""}]
["2.55.1.","Sujungimas išardomas tiesus vid./išor. 1/2\" bronzinis"]
["2.56.","Sujungimas išardomas tiesus vid./išor. 3/4\" bronzinis",100,"vnt.",null,{"$f":"IF(ISBLANK(E423),\"\", PRODUCT(C423,E423))","v":""}]
["2.56.1.","Sujungimas išardomas tiesus vid./išor. 3/4\" bronzinis"]
["2.57.","Sujungimas išardomas tiesus vid./išor. 1\" bronzinis",50,"vnt.",null,{"$f":"IF(ISBLANK(E425),\"\", PRODUCT(C425,E425))","v":""}]
["2.57.1.","Sujungimas išardomas tiesus vid./išor. 1\" bronzinis"]
["2.58.","Ilgasriegis juodas cinkuotas 1/2\"",50,"vnt.",null,{"$f":"IF(ISBLANK(E427),\"\", PRODUCT(C427,E427))","v":""}]
["2.58.1.","Ilgasriegis juodas cinkuotas 1/2\""]
["2.59.","Ilgasriegis juodas cinkuotas dn40",50,"vnt.",null,{"$f":"IF(ISBLANK(E429),\"\", PRODUCT(C429,E429))","v":""}]
["2.59.1.","Ilgasriegis juodas cinkuotas dn40"]
["2.60.","Ilgasriegis juodas cinkuotas dn50",50,"vnt.",null,{"$f":"IF(ISBLANK(E431),\"\", PRODUCT(C431,E431))","v":""}]
["2.60.1.","Ilgasriegis juodas cinkuotas dn50"]
["2.61.","Ilgasriegis juodas cinkuotas 3/4\"",50,"vnt.",null,{"$f":"IF(ISBLANK(E433),\"\", PRODUCT(C433,E433))","v":""}]
["2.61.1.","Ilgasriegis juodas cinkuotas 3/4\""]
["2.62.","Ilgasriegis juodas cinkuotas 1\"",20,"vnt.",null,{"$f":"IF(ISBLANK(E435),\"\", PRODUCT(C435,E435))","v":""}]
["2.62.1.","Ilgasriegis juodas cinkuotas 1\""]
["2.63.","Ilgasriegis juodas cinkuotas 1 3/8\" [32]",20,"vnt.",null,{"$f":"IF(ISBLANK(E437),\"\", PRODUCT(C437,E437))","v":""}]
["2.63.1.","Ilgasriegis juodas cinkuotas 1 3/8\" [32]"]
["2.64.","Kontraveržlė 1/2\" juoda cinkuota",50,"vnt.",null,{"$f":"IF(ISBLANK(E439),\"\", PRODUCT(C439,E439))","v":""}]
["2.64.1.","Kontraveržlė 1/2\" juoda cinkuota"]
["2.65.","Kontraveržlė 3/4\" juoda cinkuota",50,"vnt.",null,{"$f":"IF(ISBLANK(E441),\"\", PRODUCT(C441,E441))","v":""}]
["2.65.1.","Kontraveržlė 3/4\" juoda cinkuota"]
["2.66.","Antgalis žarnoms išoriniu sriegiu 1/2x12 metalinis",50,"vnt.",null,{"$f":"IF(ISBLANK(E443),\"\", PRODUCT(C443,E443))","v":""}]
["2.66.1.","Antgalis žarnoms išoriniu sriegiu 1/2x12 metalinis"]
["2.67.","Ketinės užveržiamos jungtys , [GEBO] mova cinkuota vid-išor 1/2\"",50,"vnt.",null,{"$f":"IF(ISBLANK(E445),\"\", PRODUCT(C445,E445))","v":""}]
["2.67.1.","Ketinės užveržiamos jungtys , [GEBO] mova cinkuota vid-išor 1/2\""]
["2.68.","Ketinės užveržiamos jungtys , [GEBO] mova cinkuota vid-išor 3/4\"",50,"vnt.",null,{"$f":"IF(ISBLANK(E447),\"\", PRODUCT(C447,E447))","v":""}]
["2.68.1.","Ketinės užveržiamos jungtys , [GEBO] mova cinkuota vid-išor 3/4\""]
["2.69.","Ketinės užveržiamos jungtys , [GEBO] mova cinkuota vid-išor 1\"",50,"vnt.",null,{"$f":"IF(ISBLANK(E449),\"\", PRODUCT(C449,E449))","v":""}]
["2.69.1.","Ketinės užveržiamos jungtys , [GEBO] mova cinkuota vid-išor 1\""]
["2.70.","Ketinės užveržiamos jungtys , [GEBO] mova cinkuota vid-išor 1\"3/8",50,"vnt.",null,{"$f":"IF(ISBLANK(E451),\"\", PRODUCT(C451,E451))","v":""}]
["2.70.1.","Ketinės užveržiamos jungtys , [GEBO] mova cinkuota vid-išor 1\"3/8"]
["2.71.","Sujungimas perėjimas išoriniais sriegiais 1/2\"x3/8\"",100,"vnt.",null,{"$f":"IF(ISBLANK(E453),\"\", PRODUCT(C453,E453))","v":""}]
["2.71.1.","Sujungimas perėjimas išoriniais sriegiais 1/2\"x3/8\""]
["2.72.","Mova cinkuota vid/vid 1/2\"",50,"vnt.",null,{"$f":"IF(ISBLANK(E455),\"\", PRODUCT(C455,E455))","v":""}]
["2.72.1.","Mova cinkuota vid/vid 1/2\""]
["2.73.","Mova cinkuota vid/vid 3/4\"",30,"vnt.",null,{"$f":"IF(ISBLANK(E457),\"\", PRODUCT(C457,E457))","v":""}]
["2.73.1.","Mova cinkuota vid/vid 3/4\""]
["2.74.","Mova cinkuota vid/vid 1\"",30,"vnt.",null,{"$f":"IF(ISBLANK(E459),\"\", PRODUCT(C459,E459))","v":""}]
["2.74.1.","Mova cinkuota vid/vid 1\""]
["2.75.","Remontinės nerūdijančio plieno skardos movos . Mini D21-51mm, L-60mm [21*51*60]",40,"vnt.",null,{"$f":"IF(ISBLANK(E461),\"\", PRODUCT(C461,E461))","v":""}]
["2.75.1.","Remontinės nerūdijančio plieno skardos movos . Mini D21-51mm, L-60mm [21*51*60]"]
["2.76.","Remontinės nerūdijančio plieno skardos movos . Midle  D52-85mm, L-150mm [52*85*150]",30,"vnt.",null,{"$f":"IF(ISBLANK(E463),\"\", PRODUCT(C463,E463))","v":""}]
["2.76.1.","Remontinės nerūdijančio plieno skardos movos . Midle  D52-85mm, L-150mm [52*85*150]"]
["2.77.","Remontinės nerūdijančio plieno skardos movos . Maxi  D87-135mm, L-200mm [87*135*200]",10,"vnt.",null,{"$f":"IF(ISBLANK(E465),\"\", PRODUCT(C465,E465))","v":""}]
["2.77.1.","Remontinės nerūdijančio plieno skardos movos . Maxi  D87-135mm, L-200mm [87*135*200]"]
["2.78.","Trišakis bronzinis nikeliuotas 1/2\"",120,"vnt.",null,{"$f":"IF(ISBLANK(E467),\"\", PRODUCT(C467,E467))","v":""}]
["2.78.1.","Trišakis bronzinis nikeliuotas 1/2\""]
["2.79.","Alkūnė A1 diam. 1/2\"vid-vid bronzinė srieginė",100,"vnt.",null,{"$f":"IF(ISBLANK(E469),\"\", PRODUCT(C469,E469))","v":""}]
["2.79.1.","Alkūnė A1 diam. 1/2\"vid-vid bronzinė srieginė"]
["2.80.","Alkūnė A1 diam. 3/4\"vid-vid bronzinė srieginė",80,"vnt.",null,{"$f":"IF(ISBLANK(E471),\"\", PRODUCT(C471,E471))","v":""}]
["2.80.1.","Alkūnė A1 diam. 3/4\"vid-vid bronzinė srieginė"]
["2.81.","Alkūnė A1 diam. 1\"vid-vid bronzinė srieginė",60,"vnt.",null,{"$f":"IF(ISBLANK(E473),\"\", PRODUCT(C473,E473))","v":""}]
["2.81.1.","Alkūnė A1 diam. 1\"vid-vid bronzinė srieginė"]
["2.82.","Alkūnė A4 diam. 1/2\"vid-išor bronzinė srieginė",100,"vnt.",null,{"$f":"IF(ISBLANK(E475),\"\", PRODUCT(C475,E475))","v":""}]
["2.82.1.","Alkūnė A4 diam. 1/2\"vid-išor bronzinė srieginė"]
["2.83.","Alkūnė A4 diam. 3/4\"vid-išor bronzinė srieginė",80,"vnt.",null,{"$f":"IF(ISBLANK(E477),\"\", PRODUCT(C477,E477))","v":""}]
["2.83.1.","Alkūnė A4 diam. 3/4\"vid-išor bronzinė srieginė"]
["2.84.","Plieninė alkūnė štampuota diametras 1/2\"",80,"vnt.",null,{"$f":"IF(ISBLANK(E479),\"\", PRODUCT(C479,E479))","v":""}]
["2.84.1.","Plieninė alkūnė štampuota diametras 1/2\""]
["2.85.","Plieninė alkūnė štampuota diametras 3/4\"",80,"vnt.",null,{"$f":"IF(ISBLANK(E481),\"\", PRODUCT(C481,E481))","v":""}]
["2.85.1.","Plieninė alkūnė štampuota diametras 3/4\""]
["2.86.","Alkūnė pereinama vidiniu sriegiu 90 laipsnių 3/4\"x1/2\" ,bronzinė , srieginė",60,"vnt.",null,{"$f":"IF(ISBLANK(E483),\"\", PRODUCT(C483,E483))","v":""}]
["2.86.1.","Alkūnė pereinama vidiniu sriegiu 90 laipsnių 3/4\"x1/2\" ,bronzinė , srieginė"]
["2.87.","Alkūnė pereinama vidiniu sriegiu 90 laipsnių 1\"x1/2\" ,bronzinė , srieginė",60,"vnt.",null,{"$f":"IF(ISBLANK(E485),\"\", PRODUCT(C485,E485))","v":""}]
["2.87.1.","Alkūnė pereinama vidiniu sriegiu 90 laipsnių 1\"x1/2\" ,bronzinė , srieginė"]
["2.88.","Alkūnė pereinama vidiniu sriegiu 90 laipsnių 1\"x3/4\" ,bronzinė , srieginė",40,"vnt.",null,{"$f":"IF(ISBLANK(E487),\"\", PRODUCT(C487,E487))","v":""}]
["2.88.1.","Alkūnė pereinama vidiniu sriegiu 90 laipsnių 1\"x3/4\" ,bronzinė , srieginė"]
["2.89.","Alkūnė bronzinė, nikeliuota 1/2\" vid/vid",100,"vnt.",null,{"$f":"IF(ISBLANK(E489),\"\", PRODUCT(C489,E489))","v":""}]
["2.89.1.","Alkūnė bronzinė, nikeliuota 1/2\" vid/vid"]
["2.90.","Alkūnė bronzinė, nikeliuota 3/4\" vid/vid",80,"vnt.",null,{"$f":"IF(ISBLANK(E491),\"\", PRODUCT(C491,E491))","v":""}]
["2.90.1.","Alkūnė bronzinė, nikeliuota 3/4\" vid/vid"]
["2.91.","Rutulinis kranas su ardomu sujungimu 3/4\"",40,"vnt.",null,{"$f":"IF(ISBLANK(E493),\"\", PRODUCT(C493,E493))","v":""}]
["2.91.1.","Rutulinis kranas su ardomu sujungimu 3/4\""]
["2.92.","Rutulinis kranas su ardomu sujungimu 1/2\"",60,"vnt.",null,{"$f":"IF(ISBLANK(E495),\"\", PRODUCT(C495,E495))","v":""}]
["2.92.1.","Rutulinis kranas su ardomu sujungimu 1/2\""]
["2.93.","Ventilis rutulinis v-v vandeniui 1/2\" ",100,"vnt.",null,{"$f":"IF(ISBLANK(E497),\"\", PRODUCT(C497,E497))","v":""}]
["2.93.1.","Ventilis rutulinis v-v vandeniui 1/2\" "]
["2.94.","Ventilis rutulinis v-v vandeniui 3/4\" ",100,"vnt.",null,{"$f":"IF(ISBLANK(E499),\"\", PRODUCT(C499,E499))","v":""}]
["2.94.1.","Ventilis rutulinis v-v vandeniui 3/4\" "]
["2.95.","Ventilis rutulinis v-v vandeniui 1\" ",50,"vnt.",null,{"$f":"IF(ISBLANK(E501),\"\", PRODUCT(C501,E501))","v":""}]
["2.95.1.","Ventilis rutulinis v-v vandeniui 1\" "]
["2.96.","Ventilis rutulinis v-v vandeniui 1\" 1/2",10,"vnt.",null,{"$f":"IF(ISBLANK(E503),\"\", PRODUCT(C503,E503))","v":""}]
["2.96.1.","Ventilis rutulinis v-v vandeniui 1\" 1/2"]
["2.97.","Kranelis kampinis prietaisinis maišytuvui prijungti 1/2\"x1/2\"\n",100,"vnt.",null,{"$f":"IF(ISBLANK(E505),\"\", PRODUCT(C505,E505))","v":""}]
["2.97.1.","Kranelis kampinis prietaisinis maišytuvui prijungti 1/2\"x1/2\"\n"]
["2.98.","Manometrinis kranelis žalvarinis vid/vid dn15",40,"vnt.",null,{"$f":"IF(ISBLANK(E507),\"\", PRODUCT(C507,E507))","v":""}]
["2.98.1.","Manometrinis kranelis žalvarinis vid/vid dn15"]
["2.99.","Ventilis rutulinis vid/išor vandeniui diametras 1/2\"",100,"vnt.",null,{"$f":"IF(ISBLANK(E509),\"\", PRODUCT(C509,E509))","v":""}]
["2.99.1.","Ventilis rutulinis vid/išor vandeniui diametras 1/2\""]
["2.100.","Ventilis rutulinis vid/išor vandeniui diametras 3/4\"",50,"vnt.",null,{"$f":"IF(ISBLANK(E511),\"\", PRODUCT(C511,E511))","v":""}]
["2.100.1.","Ventilis rutulinis vid/išor vandeniui diametras 3/4\""]
["2.101.","Ventilis rutulinis vid/išor vandeniui diametras 1\"",80,"vnt.",null,{"$f":"IF(ISBLANK(E513),\"\", PRODUCT(C513,E513))","v":""}]
["2.101.1.","Ventilis rutulinis vid/išor vandeniui diametras 1\""]
["2.102.","Ventilis rutulinis vid/išor vandeniui diametras 1\"1/4",40,"vnt.",null,{"$f":"IF(ISBLANK(E515),\"\", PRODUCT(C515,E515))","v":""}]
["2.102.1.","Ventilis rutulinis vid/išor vandeniui diametras 1\"1/4"]
["2.103.","Ventilis rutulinis vid/išor vandeniui diametras 2\"",10,"vnt.",null,{"$f":"IF(ISBLANK(E517),\"\", PRODUCT(C517,E517))","v":""}]
["2.103.1.","Ventilis rutulinis vid/išor vandeniui diametras 2\""]
["2.104.","Atbulinis vožtuvas vertikalus su tinkleliu d20",5,"vnt.",null,{"$f":"IF(ISBLANK(E519),\"\", PRODUCT(C519,E519))","v":""}]
["2.104.1.","Atbulinis vožtuvas vertikalus su tinkleliu d20"]
["2.105.","Atbulinis vožtuvas vertikalus su tinkleliu d25",5,"vnt.",null,{"$f":"IF(ISBLANK(E521),\"\", PRODUCT(C521,E521))","v":""}]
["2.105.1.","Atbulinis vožtuvas vertikalus su tinkleliu d25"]
["2.106.","Automatiniai nuorintojai ketiniams radiatoriams",10,"vnt.",null,{"$f":"IF(ISBLANK(E523),\"\", PRODUCT(C523,E523))","v":""}]
["2.106.1.","Automatiniai nuorintojai ketiniams radiatoriams"]
["2.107.","Automatiniai nuorintojai plieniniams radiatoriams 80mm",10,"vnt.",null,{"$f":"IF(ISBLANK(E525),\"\", PRODUCT(C525,E525))","v":""}]
["2.107.1.","Automatiniai nuorintojai plieniniams radiatoriams 80mm"]
["2.108.","Plieninės sklendės 100mm skerspjūvio, flanšinės GOST ilgio",10,"vnt.",null,{"$f":"IF(ISBLANK(E527),\"\", PRODUCT(C527,E527))","v":""}]
["2.108.1.","Plieninės sklendės 100mm skerspjūvio, flanšinės GOST ilgio"]
["2.109.","Vožtuvas atbulinis žalvarinis vid/vid PN16, spyruoklinis, d15",25,"vnt.",null,{"$f":"IF(ISBLANK(E529),\"\", PRODUCT(C529,E529))","v":""}]
["2.109.1.","Vožtuvas atbulinis žalvarinis vid/vid PN16, spyruoklinis, d15"]
["2.110.","Vožtuvas atbulinis žalvarinis vid/vid PN16, spyruoklinis, d20",25,"vnt.",null,{"$f":"IF(ISBLANK(E531),\"\", PRODUCT(C531,E531))","v":""}]
["2.110.1.","Vožtuvas atbulinis žalvarinis vid/vid PN16, spyruoklinis, d20"]
["2.111.","Vožtuvas atbulinis žalvarinis vid/vid PN16, spyruoklinis, d25",20,"vnt.",null,{"$f":"IF(ISBLANK(E533),\"\", PRODUCT(C533,E533))","v":""}]
["2.111.1.","Vožtuvas atbulinis žalvarinis vid/vid PN16, spyruoklinis, d25"]
["2.112.","Vožtuvas atbulinis žalvarinis vid/vid PN16, spyruoklinis, d32",10,"vnt.",null,{"$f":"IF(ISBLANK(E535),\"\", PRODUCT(C535,E535))","v":""}]
["2.112.1.","Vožtuvas atbulinis žalvarinis vid/vid PN16, spyruoklinis, d32"]
["2.113.","Aklė 1/2\" vid. žalvarinė",40,"vnt.",null,{"$f":"IF(ISBLANK(E537),\"\", PRODUCT(C537,E537))","v":""}]
["2.113.1.","Aklė 1/2\" vid. žalvarinė"]
["2.114.","Aklė 1/2\" išor. žalvarinė",40,"vnt.",null,{"$f":"IF(ISBLANK(E539),\"\", PRODUCT(C539,E539))","v":""}]
["2.114.1.","Aklė 1/2\" išor. žalvarinė"]
["2.115.","Aklė 3/4\" vid. žalvarinė",40,"vnt.",null,{"$f":"IF(ISBLANK(E541),\"\", PRODUCT(C541,E541))","v":""}]
["2.115.1.","Aklė 3/4\" vid. žalvarinė"]
["2.116.","Aklė 3/4\" išor. žalvarinė",40,"vnt.",null,{"$f":"IF(ISBLANK(E543),\"\", PRODUCT(C543,E543))","v":""}]
["2.116.1.","Aklė 3/4\" išor. žalvarinė"]
["2.117.","Aklė 1\" vid. žalvarinė",40,"vnt.",null,{"$f":"IF(ISBLANK(E545),\"\", PRODUCT(C545,E545))","v":""}]
["2.117.1.","Aklė 1\" vid. žalvarinė"]
["2.118.","Aklė 1\" išor. žalvarinė",30,"vnt.",null,{"$f":"IF(ISBLANK(E547),\"\", PRODUCT(C547,E547))","v":""}]
["2.118.1.","Aklė 1\" išor. žalvarinė"]
["2.119.","Automatinis nuorintojas , žalvarinis DN15 ",20,"vnt.",null,{"$f":"IF(ISBLANK(E549),\"\", PRODUCT(C549,E549))","v":""}]
["2.119.1.","Automatinis nuorintojas , žalvarinis DN15 "]
["2.120.","Filtras grubaus valymo, žalvarinis PN10, vid. vid. DN15",10,"vnt.",null,{"$f":"IF(ISBLANK(E551),\"\", PRODUCT(C551,E551))","v":""}]
["2.120.1.","Filtras grubaus valymo, žalvarinis PN10, vid. vid. DN15"]
["2.121.","Filtras grubaus valymo, žalvarinis PN10, vid. vid. DN20",10,"vnt.",null,{"$f":"IF(ISBLANK(E553),\"\", PRODUCT(C553,E553))","v":""}]
["2.121.1.","Filtras grubaus valymo, žalvarinis PN10, vid. vid. DN20"]
["2.122.","Filtras grubaus valymo, žalvarinis PN10, vid. vid. DN25",10,"vnt.",null,{"$f":"IF(ISBLANK(E555),\"\", PRODUCT(C555,E555))","v":""}]
["2.122.1.","Filtras grubaus valymo, žalvarinis PN10, vid. vid. DN25"]
["2.123.","Filtras grubaus valymo, žalvarinis PN10, vid. vid. DN32",10,"vnt.",null,{"$f":"IF(ISBLANK(E557),\"\", PRODUCT(C557,E557))","v":""}]
["2.123.1.","Filtras grubaus valymo, žalvarinis PN10, vid. vid. DN32"]
["2.124.","Filtras grubaus valymo, žalvarinis PN10, vid. vid. DN40",6,"vnt.",null,{"$f":"IF(ISBLANK(E559),\"\", PRODUCT(C559,E559))","v":""}]
["2.124.1.","Filtras grubaus valymo, žalvarinis PN10, vid. vid. DN40"]
["2.125.","Trišakis žalvarinis srieginis, vid. vid. DN15",40,"vnt.",null,{"$f":"IF(ISBLANK(E561),\"\", PRODUCT(C561,E561))","v":""}]
["2.125.1.","Trišakis žalvarinis srieginis, vid. vid. DN15"]
["2.126.","Trišakis žalvarinis srieginis, vid. vid. DN20",40,"vnt.",null,{"$f":"IF(ISBLANK(E563),\"\", PRODUCT(C563,E563))","v":""}]
["2.126.1.","Trišakis žalvarinis srieginis, vid. vid. DN20"]
["2.127.","Trišakis žalvarinis srieginis, vid. vid. DN32",40,"vnt.",null,{"$f":"IF(ISBLANK(E565),\"\", PRODUCT(C565,E565))","v":""}]
["2.127.1.","Trišakis žalvarinis srieginis, vid. vid. DN32"]
["2.128.","Trišakis žalvarinis srieginis, vid. vid. DN40",20,"vnt.",null,{"$f":"IF(ISBLANK(E567),\"\", PRODUCT(C567,E567))","v":""}]
["2.128.1.","Trišakis žalvarinis srieginis, vid. vid. DN40"]
[null,null,null,null,"Suma be PVM",{"$f":"IF((COUNT(C313:C568)<>COUNT(F313:F568)),\"\", SUM(F313:F568))","v":""},{"$f":"IF((COUNT(C313:C568)<>COUNT(F313:F568)),\"Neužpildytos visų objektų kainos\", \"\")","v":"Neužpildytos visų objektų kainos"}]
[null,null,null,null,"PVM suma"]
[null,null,null,null,"Suma su PVM",{"$f":"IF(ISBLANK(F570), \"\", SUM(F569:F570))","v":""}]
[]
["3.","Vidaus kanalizacijos vamzdžiai, vamzdyno dalys"]
["3.1.","PVC vidaus kanalizacijos vamzdis su galine mova ir gumine tarpine , ilgis 250mm , diam. 40",100,"vnt.",0.47,{"$f":"IF(ISBLANK(E574),\"\", PRODUCT(C574,E574))","v":47},"VID.KANAL.VAMZDŽIAI 40X250"]
["3.1.1.","PVC vidaus kanalizacijos vamzdis su galine mova ir gumine tarpine , ilgis 250mm , diam. 40",null,null,null,null,null,"Standartas: EN 1451-1:2001. Nuolatinė darbinė temp. iki +90. Maksimali trumpalaikė temp. iki +95."]
["3.2.","PVC vidaus kanalizacijos vamzdis su galine mova ir gumine tarpine , ilgis 250mm , diam. 50",100,"vnt.",0.56000000000000005,{"$f":"IF(ISBLANK(E576),\"\", PRODUCT(C576,E576))","v":56.000000000000007},"50X3X250 OPTIMA VID.NUOTEKŲ VAMZDIS /WAVIN 106052042"]
["3.2.1.","PVC vidaus kanalizacijos vamzdis su galine mova ir gumine tarpine , ilgis 250mm , diam. 50",null,null,null,null,null,"Standartas: EN 1453-1. Nuolatinė darbinė nuotekų temp. iki +60. Maksimali trumpalaikė temp. iki +95."]
["3.3.","PVC vidaus kanalizacijos vamzdis su galine mova ir gumine tarpine , ilgis 250mm , diam. 100",100,"vnt.",1.37,{"$f":"IF(ISBLANK(E578),\"\", PRODUCT(C578,E578))","v":137},"110X3,2X250 OPTIMA VID. NUOT VAMZDIS/WAVIN 106052222"]
["3.3.1.","PVC vidaus kanalizacijos vamzdis su galine mova ir gumine tarpine , ilgis 250mm , diam. 100",null,null,null,null,null,"Standartas: EN 1453-1. Nuolatinė darbinė nuotekų temp. iki +60. Maksimali trumpalaikė temp. iki +95."]
["3.4.","PVC vidaus kanalizacijos vamzdis su galine mova ir gumine tarpine , ilgis 500mm , diam. 40",100,"vnt.",0.57999999999999996,{"$f":"IF(ISBLANK(E580),\"\", PRODUCT(C580,E580))","v":57.999999999999993},"VID.KANAL.VAMZDŽIAI 40X500"]
["3.4.1.","PVC vidaus kanalizacijos vamzdis su galine mova ir gumine tarpine , ilgis 500mm , diam. 40",null,null,null,null,null,"Standartas: EN 1451-1:2001. Nuolatinė darbinė temp. iki +90. Maksimali trumpalaikė temp. iki +95."]
["3.5.","PVC vidaus kanalizacijos vamzdis su galine mova ir gumine tarpine , ilgis 500mm , diam. 50",100,"vnt.",0.9,{"$f":"IF(ISBLANK(E582),\"\", PRODUCT(C582,E582))","v":90},"50X3X500 OPTIMA VID.NUOTEKŲ VAMZDIS 106052044/WAVIN"]
["3.5.1.","PVC vidaus kanalizacijos vamzdis su galine mova ir gumine tarpine , ilgis 500mm , diam. 50",null,null,null,null,null,"Standartas: EN 1453-1. Nuolatinė darbinė nuotekų temp. iki +60. Maksimali trumpalaikė temp. iki +95."]
["3.6.","PVC vidaus kanalizacijos vamzdis su galine mova ir gumine tarpine , ilgis 500mm , diam. 100",100,"vnt.",2.09,{"$f":"IF(ISBLANK(E584),\"\", PRODUCT(C584,E584))","v":209},"110X3,2X500 OPTIMA VID.NUOTEK VAMZDIS /WAVIN 106052224"]
["3.6.1.","PVC vidaus kanalizacijos vamzdis su galine mova ir gumine tarpine , ilgis 500mm , diam. 100",null,null,null,null,null,"Standartas: EN 1453-1. Nuolatinė darbinė nuotekų temp. iki +60. Maksimali trumpalaikė temp. iki +95."]
["3.7.","PVC vidaus kanalizacijos vamzdis su galine mova ir gumine tarpine , ilgis 1000mm , diam. 40",100,"vnt.",0.89,{"$f":"IF(ISBLANK(E586),\"\", PRODUCT(C586,E586))","v":89},"VID.KANAL.VAMZDŽIAI 40X1000"]
["3.7.1.","PVC vidaus kanalizacijos vamzdis su galine mova ir gumine tarpine , ilgis 1000mm , diam. 40",null,null,null,null,null,"Standartas: EN 1451-1:2001. Nuolatinė darbinė temp. iki +90. Maksimali trumpalaikė temp. iki +95."]
["3.8.","PVC vidaus kanalizacijos vamzdis su galine mova ir gumine tarpine , ilgis 1000mm , diam. 50",100,"vnt.",1.4,{"$f":"IF(ISBLANK(E588),\"\", PRODUCT(C588,E588))","v":140},"50X3X1000 OPTIMA VID.NUOTEKŲ VAMZDIS 106052046/WAVIN"]
["3.8.1.","PVC vidaus kanalizacijos vamzdis su galine mova ir gumine tarpine , ilgis 1000mm , diam. 50",null,null,null,null,null,"Standartas: EN 1453-1. Nuolatinė darbinė nuotekų temp. iki +60. Maksimali trumpalaikė temp. iki +95."]
["3.9.","PVC vidaus kanalizacijos vamzdis su galine mova ir gumine tarpine , ilgis 1000mm , diam. 100",100,"vnt.",3.47,{"$f":"IF(ISBLANK(E590),\"\", PRODUCT(C590,E590))","v":347},"110X3,2X1000 OPTIMA VID.NUOTEK VAMZDIS /WAVIN 106052226"]
["3.9.1.","PVC vidaus kanalizacijos vamzdis su galine mova ir gumine tarpine , ilgis 1000mm , diam. 100",null,null,null,null,null,"Standartas: EN 1453-1. Nuolatinė darbinė nuotekų temp. iki +60. Maksimali trumpalaikė temp. iki +95."]
["3.10.","PVC vidaus kanalizacijos vamzdis su galine mova ir gumine tarpine , ilgis 2000mm , diam. 100",100,"vnt.",5.81,{"$f":"IF(ISBLANK(E592),\"\", PRODUCT(C592,E592))","v":581},"110X3,2X2000 OPTIMA VID.NUOTEK. VAMZDIS 106052230/WAVIN"]
["3.10.1.","PVC vidaus kanalizacijos vamzdis su galine mova ir gumine tarpine , ilgis 2000mm , diam. 100",null,null,null,null,null,"Standartas: EN 1453-1. Nuolatinė darbinė nuotekų temp. iki +60. Maksimali trumpalaikė temp. iki +95."]
["3.11.","Mova [remontinė] diam. 50 su gumine tarpine",100,"vnt.",0.53,{"$f":"IF(ISBLANK(E594),\"\", PRODUCT(C594,E594))","v":53},"VID. KANAL. REM. MOVA HTU 50"]
["3.11.1.","Mova [remontinė] diam. 50 su gumine tarpine",null,null,null,null,null,"Standartas: EN 1451-1:2001. Nuolatinė darbinė temp. iki +90. Maksimali trumpalaikė temp. iki +95."]
["3.12.","Mova [remontinė] diam. 100 su gumine tarpine",100,"vnt.",0.86,{"$f":"IF(ISBLANK(E596),\"\", PRODUCT(C596,E596))","v":86},"VID.KANA.REM.MOVA HTU 110"]
["3.12.1.","Mova [remontinė] diam. 100 su gumine tarpine",null,null,null,null,null,"Standartas: EN 1451-1:2001. Nuolatinė darbinė temp. iki +90. Maksimali trumpalaikė temp. iki +95."]
["3.13.","Perėjimas PVC špižius-plastmasė diam. 50 su gumine tarpine",100,"vnt.",1.94,{"$f":"IF(ISBLANK(E598),\"\", PRODUCT(C598,E598))","v":194},"50 OPTIMA VID.NUOT.JUNGTIS SU KETUM 206034000/WAVIN"]
["3.13.1.","Perėjimas PVC špižius-plastmasė diam. 50 su gumine tarpine",null,null,null,null,null,"Techninė specifikacija: PN-EN 1329-1+A1:2018. Nuolatinė darbinė nuotekų temp. iki +60. Maksimali trumpalaikė temp. iki +95."]
["3.14.","Perėjimas PVC špižius-plastmasė diam. 100 su gumine tarpine",100,"vnt.",3.33,{"$f":"IF(ISBLANK(E600),\"\", PRODUCT(C600,E600))","v":333},"110 OPTIMA VID.NUOT.JUNGTIS SU KETUM 206034030/WAVIN"]
["3.14.1.","Perėjimas PVC špižius-plastmasė diam. 100 su gumine tarpine",null,null,null,null,null,"Techninė specifikacija: PN-EN 1329-1+A1:2018. Nuolatinė darbinė nuotekų temp. iki +60. Maksimali trumpalaikė temp. iki +95."]
["3.15.","Guminė tarpinė špižius-plastmasė diam. 50",200,"vnt.",0.84,{"$f":"IF(ISBLANK(E602),\"\", PRODUCT(C602,E602))","v":168},"GUMINĖ TARPINĖ HTUG 50"]
["3.15.1.","Guminė tarpinė špižius-plastmasė diam. 50",null,null,null,null,null,"Medžiaga: guma. Montuojama į spyžinio vamzdžio kaklelį. Vidinis diametras: 50mm"]
["3.16.","Guminė tarpinė špižius-plastmasė diam. 100",200,"vnt.",1.3,{"$f":"IF(ISBLANK(E604),\"\", PRODUCT(C604,E604))","v":260},"GUMINĖ TARPINĖ HTUG 110"]
["3.16.1.","Guminė tarpinė špižius-plastmasė diam. 100",null,null,null,null,null,"Medžiaga: guma. Montuojama į spyžinio vamzdžio kaklelį. Vidinis diametras: 110mm."]
["3.17.","Guminė redukcija 50/32",100,"vnt.",0.53,{"$f":"IF(ISBLANK(E606),\"\", PRODUCT(C606,E606))","v":53},"REDUKCIJA PVC BALTA 32-50"]
["3.17.1.","Guminė redukcija 50/32,spalva balta",null,null,null,null,null,"Medžiaga: guma. Spalva: balta. Išorinis diametras: 50mm, vidinis: 32mm."]
["3.18.","Guminė redukcija 40/32",100,"vnt.",0.53,{"$f":"IF(ISBLANK(E608),\"\", PRODUCT(C608,E608))","v":53},"REDUKCIJA PVC BALTA 40-32"]
["3.18.1.","Guminė redukcija 40/32,spalva balta",null,null,null,null,null,"Medžiaga: guma. Spalva: balta. Išorinis diametras: 40mm, vidinis: 32mm."]
["3.19.","Guminė redukcija 50/40",100,"vnt.",0.49,{"$f":"IF(ISBLANK(E610),\"\", PRODUCT(C610,E610))","v":49},"REDUKCIJA GUMINĖ BALTA 40-50"]
["3.19.1.","Guminė redukcija 50/40,spalva balta",null,null,null,null,null,"Medžiaga: guma. Spalva: balta. Išorinis diametras: 50mm, vidinis: 40mm."]
["3.20.","Vidaus nuotekų PVC perėjimas 50/40",100,"vnt.",1.1599999999999999,{"$f":"IF(ISBLANK(E612),\"\", PRODUCT(C612,E612))","v":115.99999999999999},"50/40 OPTIMA VID.NUOTEKŲ PERĖJIMAS 216131021/WAVIN"]
["3.20.1.","Perėjimas 110/50 PVC",null,null,null,null,null,"Techninė specifikacija: PN-EN 1329-1+A1:2018. Nuolatinė darbinė nuotekų temp. iki +60. Maksimali trumpalaikė temp. iki +95."]
["3.21.","Vidaus nuotekų PVC perėjimas 110/50",100,"vnt.",1.01,{"$f":"IF(ISBLANK(E614),\"\", PRODUCT(C614,E614))","v":101},"110/50 OPTIMA VID.NUOTEKŲ PERĖJIMAS 206032020/WAVIN"]
["3.21.1.","Vidaus nuotekų PVC perėjimas 110/50",null,null,null,null,null,"Techninė specifikacija: PN-EN 1329-1+A1:2018. Nuolatinė darbinė nuotekų temp. iki +60. Maksimali trumpalaikė temp. iki +95."]
["3.22.","Revizijos PVC d100",50,"vnt.",3.44,{"$f":"IF(ISBLANK(E616),\"\", PRODUCT(C616,E616))","v":172},"110 OPTIMA VID.NUOTEKŲ PRAVALA/WAVIN 206030210"]
["3.22.1.","Revizijos  PVC d100",null,null,null,null,null,"Techninė specifikacija: PN-EN 1329-1+A1:2018. Nuolatinė darbinė nuotekų temp. iki +60. Maksimali trumpalaikė temp. iki +95."]
["3.23.","Revizijos PVC d50",50,"vnt.",2.76,{"$f":"IF(ISBLANK(E618),\"\", PRODUCT(C618,E618))","v":138},"50 OPTIMA VID.NUOTEKŲ PRAVALA/WAVIN 206030090"]
["3.23.1.","Revizijos  PVC d50",null,null,null,null,null,"Techninė specifikacija: PN-EN 1329-1+A1:2018. Nuolatinė darbinė nuotekų temp. iki +60. Maksimali trumpalaikė temp. iki +95."]
["3.24.","Montažinės movos PVC d100",80,"vnt.",1.37,{"$f":"IF(ISBLANK(E620),\"\", PRODUCT(C620,E620))","v":109.60000000000001},"110 MOVA VID.NUOTEKŲ DVIG.OPTIMA 206040210/WAVIN"]
["3.24.1.","Montažinės movos PVC d100",null,null,null,null,null,"Techninė specifikacija: PN-EN 1329-1+A1:2018. Nuolatinė darbinė nuotekų temp. iki +60. Maksimali trumpalaikė temp. iki +95."]
["3.25.","Montažinės movos PVC d50",80,"vnt.",0.76,{"$f":"IF(ISBLANK(E622),\"\", PRODUCT(C622,E622))","v":60.8},"50 OPTIMA VID.NUOT.DVIGUBA MOVA /WAVIN 206040020"]
["3.25.1.","Montažinės movos PVC d50",null,null,null,null,null,"Techninė specifikacija: PN-EN 1329-1+A1:2018. Nuolatinė darbinė nuotekų temp. iki +60. Maksimali trumpalaikė temp. iki +95."]
["3.26.","Trišakis 67 laipsnių d50 , PVC su gumine tarpine",120,"vnt.",0.9,{"$f":"IF(ISBLANK(E624),\"\", PRODUCT(C624,E624))","v":108},"50X50/67* OPTIMA NUOTEKŲ TRIŠAKIS 206020430/WAVIN"]
["3.26.1.","Trišakis 67 laipsnių d50 , PVC su gumine tarpine",null,null,null,null,null,"Techninė specifikacija: PN-EN 1329-1+A1:2018. Nuolatinė darbinė nuotekų temp. iki +60. Maksimali trumpalaikė temp. iki +95."]
["3.27.","Trišakis 67 laipsnių d100 , PVC su gumine tarpine",100,"vnt.",2.3199999999999998,{"$f":"IF(ISBLANK(E626),\"\", PRODUCT(C626,E626))","v":231.99999999999997},"110X110/67* OPTIMA VID.NUOTEK.TRIŠAKIS 206020480/WAVIN"]
["3.27.1.","Trišakis 67 laipsnių d100 , PVC su gumine tarpine",null,null,null,null,null,"Techninė specifikacija: PN-EN 1329-1+A1:2018. Nuolatinė darbinė nuotekų temp. iki +60. Maksimali trumpalaikė temp. iki +95."]
["3.28.","Trišakis 67 laipsnių d40 , PVC su gumine tarpine",100,"vnt.",0.67,{"$f":"IF(ISBLANK(E628),\"\", PRODUCT(C628,E628))","v":67},"VID.KANAL.TRIŠAKIS 40X40/67"]
["3.28.1.","Trišakis 67 laipsnių d40 , PVC su gumine tarpine",null,null,null,null,null,"Standartas: EN 1451-1:2001. Nuolatinė darbinė temp. iki +90. Maksimali trumpalaikė temp. iki +95."]
["3.29.","Trišakis 87 laipsnių d40 , PVC su gumine tarpine",100,"vnt.",0.65,{"$f":"IF(ISBLANK(E630),\"\", PRODUCT(C630,E630))","v":65},"VID.KANAL.TRIŠAKIS 40X40/87"]
["3.29.1.","Trišakis 87 laipsnių d40 , PVC su gumine tarpine",null,null,null,null,null,"Standartas: EN 1451-1:2001. Nuolatinė darbinė temp. iki +90. Maksimali trumpalaikė temp. iki +95."]
["3.30.","Trišakis 87 laipsnių d50 , PVC su gumine tarpine",100,"vnt.",0.87,{"$f":"IF(ISBLANK(E632),\"\", PRODUCT(C632,E632))","v":87},"50X50/88* OPTIMA NUOTEKŲ TRIŠAKIS 206020530/WAVIN"]
["3.30.1.","Trišakis 87 laipsnių d50 , PVC su gumine tarpine",null,null,null,null,null,"Techninė specifikacija: PN-EN 1329-1+A1:2018. Nuolatinė darbinė nuotekų temp. iki +60. Maksimali trumpalaikė temp. iki +95."]
["3.31.","Trišakis 87 laipsnių d100 , PVC su gumine tarpine",100,"vnt.",2.14,{"$f":"IF(ISBLANK(E634),\"\", PRODUCT(C634,E634))","v":214},"110X110/87*PVC OPTIMA VID.NUOTEKŲ TRIŠAKIS /WAVIN 206020580"]
["3.31.1.","Trišakis 87 laipsnių d100 , PVC su gumine tarpine",null,null,null,null,null,"Techninė specifikacija: PN-EN 1329-1+A1:2018. Nuolatinė darbinė nuotekų temp. iki +60. Maksimali trumpalaikė temp. iki +95."]
["3.32.","Alkūnė 30 laipsnių d40  PVC su gumine tarpine",100,"vnt.",0.3,{"$f":"IF(ISBLANK(E636),\"\", PRODUCT(C636,E636))","v":30},"VID.KANAL.ALKŪNĖ 40/30"]
["3.32.1.","Alkūnė 30 laipsnių d40  PVC su gumine tarpine",null,null,null,null,null,"Standartas: EN 1451-1:2001. Nuolatinė darbinė temp. iki +90. Maksimali trumpalaikė temp. iki +95."]
["3.33.","Alkūnė 30 laipsnių d50  PVC su gumine tarpine",100,"vnt.",0.59,{"$f":"IF(ISBLANK(E638),\"\", PRODUCT(C638,E638))","v":59},"50X30 OPTIMA VID.NUOT.ALKŪNĖ 206010202/WAVIN"]
["3.33.1.","Alkūnė 30 laipsnių d50  PVC su gumine tarpine",null,null,null,null,null,"Techninė specifikacija: PN-EN 1329-1+A1:2018. Nuolatinė darbinė nuotekų temp. iki +60. Maksimali trumpalaikė temp. iki +95."]
["3.34.","Alkūnė 30 laipsnių d100  PVC su gumine tarpine",100,"vnt.",1.19,{"$f":"IF(ISBLANK(E640),\"\", PRODUCT(C640,E640))","v":119},"110X30 OPTIMA VID.NUOTEKŲ ALKŪNĖ /WAVIN 206010221"]
["3.34.1.","Alkūnė 30 laipsnių d100  PVC su gumine tarpine",null,null,null,null,null,"Techninė specifikacija: PN-EN 1329-1+A1:2018. Nuolatinė darbinė nuotekų temp. iki +60. Maksimali trumpalaikė temp. iki +95."]
["3.35.","Alkūnė 45 laipsnių d40  PVC su gumine tarpine",150,"vnt.",0.3,{"$f":"IF(ISBLANK(E642),\"\", PRODUCT(C642,E642))","v":45},"VID.KANAL.ALKŪNĖ 40/45"]
["3.35.1.","Alkūnė 45 laipsnių d40  PVC su gumine tarpine",null,null,null,null,null,"Standartas: EN 1451-1:2001. Nuolatinė darbinė temp. iki +90. Maksimali trumpalaikė temp. iki +95."]
["3.36.","Alkūnė 45 laipsnių d50  PVC su gumine tarpine",150,"vnt.",0.48,{"$f":"IF(ISBLANK(E644),\"\", PRODUCT(C644,E644))","v":72},"50X45 OPTIMA VID.NUOT.ALKŪNĖ 206010302/WAVIN"]
["3.36.1.","Alkūnė 45 laipsnių d50  PVC su gumine tarpine",null,null,null,null,null,"Techninė specifikacija: PN-EN 1329-1+A1:2018. Nuolatinė darbinė nuotekų temp. iki +60. Maksimali trumpalaikė temp. iki +95."]
["3.37.","Alkūnė 45 laipsnių d100  PVC su gumine tarpine",100,"vnt.",1.28,{"$f":"IF(ISBLANK(E646),\"\", PRODUCT(C646,E646))","v":128},"110X45 OPTIMA VID.NUOTEK.ALKŪNĖ 206010321/WAVIN"]
["3.37.1.","Alkūnė 45 laipsnių d100  PVC su gumine tarpine",null,null,null,null,null,"Techninė specifikacija: PN-EN 1329-1+A1:2018. Nuolatinė darbinė nuotekų temp. iki +60. Maksimali trumpalaikė temp. iki +95."]
["3.38.","Alkūnė 88 laipsnių d40  PVC su gumine tarpine",100,"vnt.",0.3,{"$f":"IF(ISBLANK(E648),\"\", PRODUCT(C648,E648))","v":30},"VID.KANAL.ALKŪNĖ 40/88.5"]
["3.38.1.","Alkūnė 88 laipsnių d40  PVC su gumine tarpine",null,null,null,null,null,"Standartas: EN 1451-1:2001. Nuolatinė darbinė temp. iki +90. Maksimali trumpalaikė temp. iki +95."]
["3.39.","Alkūnė 88 laipsnių d50  PVC su gumine tarpine",150,"vnt.",0.55000000000000004,{"$f":"IF(ISBLANK(E650),\"\", PRODUCT(C650,E650))","v":82.5},"50X88 OPTIMA VID.NUOT.ALKŪNĖ 206010502/WAVIN"]
["3.39.1.","Alkūnė 88 laipsnių d50  PVC su gumine tarpine",null,null,null,null,null,"Techninė specifikacija: PN-EN 1329-1+A1:2018. Nuolatinė darbinė nuotekų temp. iki +60. Maksimali trumpalaikė temp. iki +95."]
["3.40.","Alkūnė 88 laipsnių d100  PVC su gumine tarpine",100,"vnt.",1.37,{"$f":"IF(ISBLANK(E652),\"\", PRODUCT(C652,E652))","v":137},"110X88.5 OPTIMA VID.NUOT.ALKŪNĖ 206010521/WAVIN"]
["3.40.1.","Alkūnė 88 laipsnių d100  PVC su gumine tarpine",null,null,null,null,null,"Techninė specifikacija: PN-EN 1329-1+A1:2018. Nuolatinė darbinė nuotekų temp. iki +60. Maksimali trumpalaikė temp. iki +95."]
["3.41.","Alkūnė WC ,45 laipsnių d110  ",50,"vnt.",2.66,{"$f":"IF(ISBLANK(E654),\"\", PRODUCT(C654,E654))","v":133},"WC ALKŪNĖ 110/45"]
["3.41.1.","Alkūnė WC ,45 laipsnių d110  ",null,null,null,null,null,"Medžiaga: polipropilenas. Pajungimo diametras: 110mm. Aukštis (tiesios dalies): 205mm. Lenkimo kampas: 45 laipsniai."]
["3.42.","Alkūnė WC ,75 laipsnių d110  ",50,"vnt.",1.84,{"$f":"IF(ISBLANK(E656),\"\", PRODUCT(C656,E656))","v":92},"WC ALKŪNĖ 110/75"]
["3.42.1.","Alkūnė WC ,75 laipsnių d110  ",null,null,null,null,null,"Medžiaga: polipropilenas. Pajungimo diametras: 110mm.  Lenkimo kampas: 75 laipsniai."]
["3.43.","Alkūnė WC ,90 laipsnių d110  ",150,"vnt.",2.75,{"$f":"IF(ISBLANK(E658),\"\", PRODUCT(C658,E658))","v":412.5},"WC ALKŪNĖ 110/88"]
["3.43.1.","Alkūnė WC ,90 laipsnių d110  ",null,null,null,null,null,"Medžiaga: polipropilenas. Pajungimo diametras: 110mm. Bendras aukštis: 230mm. Lenkimo kampas: 90 laipsnių."]
["3.44.","Alkūnė sifonas plastmasinė, balta d40 , ilgis 680 mm",60,"vnt.",3.1,{"$f":"IF(ISBLANK(E660),\"\", PRODUCT(C660,E660))","v":186},"ALKŪNĖ SIFONUI D40"]
["3.44.1.","Alkūnė sifonas plastmasinė, balta d40 , ilgis 680 mm",null,null,null,null,null,"Medžiaga polipropilenas Matmenys 40*220*680"]
["3.45.","Alkūnė sifonui 50/40*",60,"vnt.",2.1,{"$f":"IF(ISBLANK(E662),\"\", PRODUCT(C662,E662))","v":126},"LANKSTI ŽARNA 11/2X40/50 L-950-365 (22043)"]
["3.45.1.","Alkūnė sifonui 50/40*",null,null,null,null,null,"Medžiaga polipropilenas Matmenys 40*50"]
["3.46.","Alsuoklis PP alkūnė 90 laipsnių kampu, 50mm skersmens",10,"vnt.",2,{"$f":"IF(ISBLANK(E664),\"\", PRODUCT(C664,E664))","v":20},"ALSUOKLIS D 50 /90"]
["3.46.1.","Alsuoklis PP alkūnė 90 laipsnių kampu, 50mm skersmens",null,null,null,null,null,"Medžiaga: polipropilenas. Pajungimo diametras: 50mm. "]
["3.47.","Alsuoklis PP  50mm skersmens",10,"vnt.",0.9,{"$f":"IF(ISBLANK(E666),\"\", PRODUCT(C666,E666))","v":9},"ALSUOKLIS D 50 ART.2700 900055"]
["3.47.1.","Alsuoklis PP 50mm skersmens",null,null,null,null,null,"Medžiaga: polipropilenas. Pajungimo diametras: 50mm. Bendras aukštis: 75mm. "]
["3.48.","Aklės vidaus kanalizacijos vamzdžiui d50",50,"vnt.",0.27,{"$f":"IF(ISBLANK(E668),\"\", PRODUCT(C668,E668))","v":13.5},"PP VID.KANAL.KAMŠTIS HTM 50"]
["3.48.1.","Aklės vidaus kanalizacijos vamzdžiui d50",null,null,null,null,null,"Standartas: EN 1451-1:2001. Nuolatinė darbinė temp. iki +90. Maksimali trumpalaikė temp. iki +95."]
["3.49.","Aklės vidaus kanalizacijos vamzdžiui d110",50,"vnt.",0.46,{"$f":"IF(ISBLANK(E670),\"\", PRODUCT(C670,E670))","v":23},"PP VID.KANAL.KAMŠTIS HTM 110"]
["3.49.1.","Aklės vidaus kanalizacijos vamzdžiui d110",null,null,null,null,null,"Standartas: EN 1451-1:2001. Nuolatinė darbinė temp. iki +90. Maksimali trumpalaikė temp. iki +95."]
["3.50.","Drenažinis vamzdis PVC su kokosu d100",100,"m",2.21,{"$f":"IF(ISBLANK(E672),\"\", PRODUCT(C672,E672))","v":221},"DRENAŽO VAMZDŽIAI 94/110 SU KOKOSO FILTRU EVODRAIN"]
["3.50.1.","Drenažinis vamzdis PVC su kokosu d100",null,null,null,null,null,"Techninė specifikacija: DIN4262-1. Perforacija: 120-360 laipsnių. Žiedo standumo klasė: SN4/SN8."]
[null,null,null,null,"Suma be PVM",{"$f":"IF((COUNT(C574:C673)<>COUNT(F574:F673)),\"\", SUM(F574:F673))","v":6411.9},{"$f":"IF((COUNT(C574:C673)<>COUNT(F574:F673)),\"Neužpildytos visų objektų kainos\", \"\")","v":""}]
[null,null,null,null,"PVM suma",1346.5]
[null,null,null,null,"Suma su PVM",{"$f":"IF(ISBLANK(F675), \"\", SUM(F674:F675))","v":7758.4}]
[]
["4.","Vonios ir virtuvės įranga"]
["4.1.","Trapas su nerūdijančio plieno grotelėmis , reguliuojamas aukštis, kampinis, d50",30,"vnt.",5.63,{"$f":"IF(ISBLANK(E679),\"\", PRODUCT(C679,E679))","v":168.9},"0623620 TRAPAS HORIZONT* D50REGUL. SU MET. GROTEL "]
["4.1.1.","Trapas su nerūdijančio plieno grotelėmis , reguliuojamas aukštis, kampinis, d50",null,null,null,null,null,"0623620 TRAPAS HORIZONT* D50REGUL. SU MET. GROTEL  Gamintojas Aniplast Lietuva"]
["4.2.","Unitazo tvirtinimo varžtai WC 6x8 su kepurėle",100,"kompl.",0.55000000000000004,{"$f":"IF(ISBLANK(E681),\"\", PRODUCT(C681,E681))","v":55.000000000000007},"VARŽTŲ KOMPL.WC TVIRTINIMUI"]
["4.2.1.","Unitazo tvirtinimo varžtai WC 6x8 su kepurėle",null,null,null,null,null,"Varžto sriegis - M6, varžto ilgis - 80mm. Su apdailiniais dangteliais ir kaiščiais."]
["4.3.","Tvirtinimo varžtai praustuvui, 8x120mm",100,"kompl.",0.8,{"$f":"IF(ISBLANK(E683),\"\", PRODUCT(C683,E683))","v":80},"VARŽTŲ KOMPL.KRIAUKLĖS TVIRT."]
["4.3.1.","Tvirtinimo varžtai praustuvui, 8x120mm",null,null,null,null,null,"Varžto sriegis - M8, varžto ilgis - 12mm. Su plastikiniais centruokliais ir kaisčiais."]
["4.4.","Tvirtinimo varžtai praustuvui, 10x140mm",100,"kompl.",0.9,{"$f":"IF(ISBLANK(E685),\"\", PRODUCT(C685,E685))","v":90},"VARŽTŲ KOMPL.Praustuvo  10*140 TVIRT."]
["4.4.1.","Tvirtinimo varžtai praustuvui, 10x140mm",null,null,null,null,null,"Tvirtinimo varžtai 10*140 Lenkija"]
["4.5.","Sifonas praustuvui universalus, su ventiliu,dangtelis nerūdijančio plieno, su pajungimo ir išbėgimo vamzdžiu d40mm ",100,"vnt.",2.75,{"$f":"IF(ISBLANK(E687),\"\", PRODUCT(C687,E687))","v":275},"06-2-3-230 SIFONAS ANI GROT 1 1/2 40MM SU LANKS.Ž."]
["4.5.1.","Sifonas praustuvui universalus, su ventiliu,dangtelis nerūdijančio plieno, su pajungimo ir išbėgimo vamzdžiu d40mm ",null,null,null,null,null,"Medžiaga polipropilenas Spalva balta  Pajungimas 40mm išbegimas 40mm su ventiliu"]
["4.6.","Sifonas pisuarui PVC",50,"vnt.",6.15,{"$f":"IF(ISBLANK(E689),\"\", PRODUCT(C689,E689))","v":307.5},"Sifonas pisuarui  ALCAPLAST A45a"]
["4.6.1.","Sifonas pisuarui PVC, tinkantis objektui 4.46",null,null,null,null,null,"Tinka  objektui 4.46"]
["4.7.","WC vandens padavimo automatika, apatinis pajungimas ",100,"vnt.",6.81,{"$f":"IF(ISBLANK(E691),\"\", PRODUCT(C691,E691))","v":681},"BAKELIO UŽPILDYMO MECH.1/2APATINIO PAJUNGIMO"]
["4.7.1.","WC vandens padavimo automatika, apatinis pajungimas ",null,null,null,null,null,"Pajungimas: apatinis. Diametras: 1/2\" (DN15). Sriegis - išorinis"]
["4.8.","WC vandens padavimo automatika, šoninis pajungimas A15-1/2\"",100,"vnt.",2.13,{"$f":"IF(ISBLANK(E693),\"\", PRODUCT(C693,E693))","v":213},"BAKELIO UŽPILDYMO MECH.1/2ŠONINIO PAJUNGIMO"]
["4.8.1.","WC vandens padavimo automatika, šoninis pajungimas A15-1/2\"",null,null,null,null,null,"Pajungimas: šoninis/kampinis. Diametras: 1/2\" (DN15). Sriegis - išorinis"]
["4.9.","WC bakelio vandens nuleidimas su dvigubu mygtuku [universalus]",100,"vnt.",7.7,{"$f":"IF(ISBLANK(E695),\"\", PRODUCT(C695,E695))","v":770},"MECHANIZMAS NULEID.ALCAPLASTDVIGUBAS A08A"]
["4.9.1.","WC bakelio vandens nuleidimas su dvigubu mygtuku [universalus]",null,null,null,null,null,"Galima nuleisti 3/6 litrus vandens"]
["4.9.2.","Taikomi minimalūs Aplinkos apsaugos kriterijai, patvirtinti LR Aplinkos ministro 2011-06-28 įsakymu Nr.D1-508 ( aktualia redakcija),  XXV skyrius, punktas 56.1 . Privalu pateikti atitiktį Aplinkos apsaugos kriterijams įrodančius dokumentus, nurodytus punkte 56.1",null,null,null,null,null,"Tiekėjo  deklaracija"]
["4.10.","Sifono ventilis plieninei plautuvei",100,"vnt.",0.92,{"$f":"IF(ISBLANK(E698),\"\", PRODUCT(C698,E698))","v":92},"06-2-3-510 SIFONO VENTILIS 11/2 METAL(M100)"]
["4.10.1.","Sifono ventilis plieninei plautuvei",null,null,null,null,null,"atitinka techninius duomenis"]
["4.11.","Sifono ventilio grotelės nerūdijančio plieno",50,"vnt.",0.35,{"$f":"IF(ISBLANK(E700),\"\", PRODUCT(C700,E700))","v":17.5},"Lėkštutė sifono"]
["4.11.1.","Sifono ventilio grotelės nerūdijančio plieno",null,null,null,null,null,"atitinka techninius duomenis"]
["4.12.","Sifonas voniai su persipylimo sistema 40/50",50,"vnt.",4.07,{"$f":"IF(ISBLANK(E702),\"\", PRODUCT(C702,E702))","v":203.5},"0623134 SIFONAS ANI VONIAI 1 1/2 PLOKŠ.SU PERLAJA,"]
["4.12.1.","Sifono ventilio grotelės nerūdijančio plieno",null,null,null,null,null,"atitinka techninius duomenis"]
["4.13.","Kolonėlė vandens nuleidimo G2+2 ,21/4 , arba analogiška",20,"vnt.",6.15,{"$f":"IF(ISBLANK(E704),\"\", PRODUCT(C704,E704))","v":123},"0601021 KOLONĖLĖ VANDENS NULEIDIMO G2+G 21/4"]
["4.13.1.","Kolonėlė vandens nuleidimo G2+2 ,21/4 , arba analogiška",null,null,null,null,null,"atitinka techninius duomenis"]
["4.14.","Žarnelės maišytuvui 1/2\" -M10, 400mm, nerūdijančio plieno avalkalu",200,"kompl.",2.6,{"$f":"IF(ISBLANK(E706),\"\", PRODUCT(C706,E706))","v":520},"Lanksti žarnelė 40 cm ilgu trumpu antgaliu"]
["4.14.1.","Žarnelės maišytuvui 1/2\" -M10, 400mm, nerūdijančio plieno avalkalu",null,null,null,null,null,"Nerudijancio plieno, EPDM guminė žarna"]
["4.15.","Žarnelės maišytuvui 1/2\" -M10, 500mm, nerūdijančio plieno avalkalu",200,"kompl.",1.74,{"$f":"IF(ISBLANK(E708),\"\", PRODUCT(C708,E708))","v":348},"ŽARNELĖ 1/2xM10-50CM ILG.ANT.MAIŠYTUVO PAJUNGIMUI"]
["4.15.1.","Žarnelės maišytuvui 1/2\" -M10, 500mm, nerūdijančio plieno avalkalu",null,null,null,null,null,"Sriegiai: 1/2\" vid./ M10 išor. (ilgas antgalis). Max. slėgis: PN10. Max. temp. +90. Ilgis - 50cm. Apvalkalas - nerūdijančio plieno."]
["4.16.","Žarnelė dušui 1,5m imp/imp su kūginiu galu",200,"vnt.",1.85,{"$f":"IF(ISBLANK(E710),\"\", PRODUCT(C710,E710))","v":370},"Dušo žarna imp/imp 1,5m"]
["4.16.1.","Žarnelė dušui 1,5m imp/imp su kūginiu galu",null,null,null,null,null,"Metalinis šarvas, metaliniai antgaliai Ilgis 1,5metro"]
["4.17.","Dušo žarnelės laikiklis chromuotas, tvirtinamas 2 varžtais",30,"vnt.",0.6,{"$f":"IF(ISBLANK(E712),\"\", PRODUCT(C712,E712))","v":18},"DUŠO LAIKIKLIS EKONOM 14684"]
["4.17.1.","Dušo žarnelės laikiklis chromuotas, tvirtinamas 2 varžtais",null,null,null,null,null,"Chromuotas tvirtinimas 2 varžtais"]
["4.18.","Dušo galvutė chromuota",100,"vnt.",2.0499999999999998,{"$f":"IF(ISBLANK(E714),\"\", PRODUCT(C714,E714))","v":204.99999999999997},"Dušo Galvute Milo"]
["4.18.1.","Dušo galvutė chromuota",null,null,null,null,null,"Galvute chromuota 1 funkcijos dušo rankena"]
["4.18.2.","Taikomi minimalūs Aplinkos apsaugos kriterijai, patvirtinti LR Aplinkos ministro 2011-06-28 įsakymu Nr.D1-508 ( aktualia redakcija),  XXV skyrius, punktas 55.1 . Privalu pateikti atitiktį Aplinkos apsaugos kriterijams įrodančius dokumentus, nurodytus punkte 55.1",null,null,null,null,null,"atitinka techninius duomenis"]
["4.19.","Dušo galvutė chromuota, minimaliai 3 skirtingos dušo padėtys",100,"vnt.",3.3,{"$f":"IF(ISBLANK(E717),\"\", PRODUCT(C717,E717))","v":330},"Dušo galvutė Cortessa "]
["4.19.1.","Dušo galvutė chromuota, minimaliai 3 skirtingos dušo padėtys",null,null,null,null,null,"Galvutė chromuota 3 funkcijų dušo rankena"]
["4.19.2.","Taikomi minimalūs Aplinkos apsaugos kriterijai, patvirtinti LR Aplinkos ministro 2011-06-28 įsakymu Nr.D1-508 ( aktualia redakcija),  XXV skyrius, punktas 55.1 . Privalu pateikti atitiktį Aplinkos apsaugos kriterijams įrodančius dokumentus, nurodytus punkte 55.1",null,null,null,null,null,"atitinka techninius duomenis"]
["4.20.","Maišytuvų ventilis 3/8\"",100,"vnt.",1.26,{"$f":"IF(ISBLANK(E720),\"\", PRODUCT(C720,E720))","v":126},"Maišytuvo ventilis 3/8"]
["4.20.1.","Maišytuvų ventilis 3/8\"",null,null,null,null,null,"MEDŽIAGA ŽALVARIS ,DIAMETRAS 3/8"]
["4.21.","Maišytuvų ventilis 1/2\"",100,"vnt.",1.26,{"$f":"IF(ISBLANK(E722),\"\", PRODUCT(C722,E722))","v":126},"Maišytuvo ventilis 1/2"]
["4.21.1.","Maišytuvų ventilis 1/2\"",null,null,null,null,null,"MEDŽIAGA ŽALVARIS ,DIAMETRAS 1/2"]
["4.22.","Maišytuvų kasetė d35mm",100,"vnt.",2.2400000000000002,{"$f":"IF(ISBLANK(E724),\"\", PRODUCT(C724,E724))","v":224.00000000000003},"Mišytuvo kasetė 35mm"]
["4.22.1.","Maišytuvų kasetė d35mm",null,null,null,null,null,"Korpusas Plastilas DIAMETRAS 40mm"]
["4.23.","Maišytuvų kasetė d40mm",100,"vnt.",2.2400000000000002,{"$f":"IF(ISBLANK(E726),\"\", PRODUCT(C726,E726))","v":224.00000000000003},"Mišytuvo kasetė 40mm"]
["4.23.1.","Maišytuvų kasetė d40mm",null,null,null,null,null,"Korpusas Plastilas DIAMETRAS 40mm"]
["4.24.","Žarnelės WC bakeliams L-60cm,prijungimas vid-vid 1/2\"",200,"vnt.",1.7,{"$f":"IF(ISBLANK(E728),\"\", PRODUCT(C728,E728))","v":340},"ŽARNELĖ 1/2v/v 60cm"]
["4.24.1.","Žarnelės WC bakeliams L-60cm,prijungimas vid-vid 1/2\"",null,null,null,null,null,"Nerudijancio plieno, EPDM guminė žarna"]
["4.25.","Maišytuvas montuojamas į praustuvą ,stabiliu snapu, snapo ilgis 80/120 mm",120,"vnt.",15.1,{"$f":"IF(ISBLANK(E730),\"\", PRODUCT(C730,E730))","v":1812},"MAIšYTUVAS Kriaukles 3260 Lane"]
["4.25.1.","Maišytuvas montuojamas į praustuvą ,stabiliu snapu, snapo ilgis 80/120 mm",null,null,null,null,null,"Snapo  ilgis 95 mm Komplektas 2 Žarnelės i"]
["4.25.2.","Taikomi minimalūs Aplinkos apsaugos kriterijai, patvirtinti LR Aplinkos ministro 2011-06-28 įsakymu Nr.D1-508 ( aktualia redakcija),  XXV skyrius, punktas 55.1 . Privalu pateikti atitiktį Aplinkos apsaugos kriterijams įrodančius dokumentus, nurodytus punkte 55.1",null,null,null,null,null,"atitinka techninius duomenis"]
["4.25.3.","Garantija 24 mėnesiai",null,null,null,null,null,"Garantija 24 men"]
["4.26.","Maišytuvas montuojamas į praustuvą , snapo ilgis 120/180 mm",100,"vnt.",13.9,{"$f":"IF(ISBLANK(E734),\"\", PRODUCT(C734,E734))","v":1390},"Maišytuvas Optima -19"]
["4.26.1.","Maišytuvas montuojamas į praustuvą , snapo ilgis 120/180 mm",null,null,null,null,null,"Snapo  ilgis1 60 mm Komplektas 2 Žarnelės i"]
["4.26.2.","Taikomi minimalūs Aplinkos apsaugos kriterijai, patvirtinti LR Aplinkos ministro 2011-06-28 įsakymu Nr.D1-508 ( aktualia redakcija),  XXV skyrius, punktas 55.1 . Privalu pateikti atitiktį Aplinkos apsaugos kriterijams įrodančius dokumentus, nurodytus punkte 55.1",null,null,null,null,null,"Atitinka techninius duomenis"]
["4.26.3.","Garantija 24 mėnesiai",null,null,null,null,null,"Garantija  5metai"]
["4.27.","Maišytuvas virtuvinis, ilgu snapu, prijungimas 1/2\"",50,"vnt.",11.95,{"$f":"IF(ISBLANK(E738),\"\", PRODUCT(C738,E738))","v":597.5},"MAIšYTUVAS Rosa BRR4"]
["4.27.1.","Maišytuvas virtuvinis, ilgu snapu, prijungimas 1/2\"",null,null,null,null,null,"Snapo  ilgis 240 mm Komplektas 2 Žarnelės Garantija 2 metai"]
["4.27.2.","viena svirtis, valdo šiltą ir šaltą vandenį",null,null,null,null,null,"Viena svirtis"]
["4.27.3.","komplekte dvi laksčios žarnelės M10x1/2\" pintame nerūdijančio plieno šarve",null,null,null,null,null,"2 žarnelės M10x1/2"]
["4.27.4.","garantija 24 mėnesiai",null,null,null,null,null,"24 men"]
["4.27.5.","Taikomi minimalūs Aplinkos apsaugos kriterijai, patvirtinti LR Aplinkos ministro 2011-06-28 įsakymu Nr.D1-508 ( aktualia redakcija),  XXV skyrius, punktas 55.1 . Privalu pateikti atitiktį Aplinkos apsaugos kriterijams įrodančius dokumentus, nurodytus punkte 55.1",null,null,null,null,null,"atitinka techninius duomenis"]
["4.28.","Maišytuvas praustuvui vienarankis 140 mm",60,"vnt.",15.9,{"$f":"IF(ISBLANK(E744),\"\", PRODUCT(C744,E744))","v":954},"3251 MAIŠYTUVAS VIRTUVĖS(35)URAN"]
["4.28.1.","Maišytuvas praustuvui vienarankis 140 mm",null,null,null,null,null,"140 mm"]
["4.28.2.","viena svirtis, valdo šiltą ir šaltą vandenį",null,null,null,null,null,"viena svirtis"]
["4.28.3.","komplekte dvi laksčios žarnelės M10x1/2\" pintame nerūdijančio plieno šarve",null,null,null,null,null,"2 žarnelės M10x1/2"]
["4.28.4.","garantija 24 mėnesiai",null,null,null,null,null,"24 men garantija"]
["4.28.5.","Taikomi minimalūs Aplinkos apsaugos kriterijai, patvirtinti LR Aplinkos ministro 2011-06-28 įsakymu Nr.D1-508 ( aktualia redakcija),  XXV skyrius, punktas 55.1 . Privalu pateikti atitiktį Aplinkos apsaugos kriterijams įrodančius dokumentus, nurodytus punkte 55.1",null,null,null,null,null,"atitinka techninius duomenis"]
["4.29.","Maišytuvas plautuvei su ištraukiamu snapu",40,"vnt.",32.65,{"$f":"IF(ISBLANK(E750),\"\", PRODUCT(C750,E750))","v":1306},"Maišytuvas P-21 star"]
["4.29.1.","Maišytuvas plautuvei su ištraukiamu snapu",null,null,null,null,null,"Atitinka techninius duomenis"]
["4.29.2.","viena svirtis, valdo šiltą ir šaltą vandenį",null,null,null,null,null,"viena svirtis"]
["4.29.3.","komplekte dvi laksčios žarnelės M10x1/2\" pintame nerūdijančio plieno šarve",null,null,null,null,null,"2 žarnelės M10x1/2"]
["4.29.4.","garantija 24 mėnesiai",null,null,null,null,null,"5metai garantija"]
["4.29.5.","Taikomi minimalūs Aplinkos apsaugos kriterijai, patvirtinti LR Aplinkos ministro 2011-06-28 įsakymu Nr.D1-508 ( aktualia redakcija),  XXV skyrius, punktas 55.1 . Privalu pateikti atitiktį Aplinkos apsaugos kriterijams įrodančius dokumentus, nurodytus punkte 55.1",null,null,null,null,null,"atitinka techninius duomenis"]
["4.30.","Maišytuvas plautuvei aukštu snapu",50,"vnt.",20.8,{"$f":"IF(ISBLANK(E756),\"\", PRODUCT(C756,E756))","v":1040},"MAIŠYTUVAS PLAUTUVĖS DECO BDC4A AUKŠ.SN."]
["4.30.1.","Maišytuvas plautuvei aukštu snapu",null,null,null,null,null,"Snapo aukštis 205 mm"]
["4.30.2.","viena svirtis, valdo šiltą ir šaltą vandenį",null,null,null,null,null,"Viena svirtis "]
["4.30.3.","komplekte dvi laksčios žarnelės M10x1/2\" pintame nerūdijančio plieno šarve",null,null,null,null,null,"2 žarnelės M10x1/2"]
["4.30.4.","garantija 24 mėnesiai",null,null,null,null,null,"24 men"]
["4.30.5.","Taikomi minimalūs Aplinkos apsaugos kriterijai, patvirtinti LR Aplinkos ministro 2011-06-28 įsakymu Nr.D1-508 ( aktualia redakcija),  XXV skyrius, punktas 55.1 . Privalu pateikti atitiktį Aplinkos apsaugos kriterijams įrodančius dokumentus, nurodytus punkte 55.1",null,null,null,null,null,"atitinka techninius duomenis"]
["4.31.","Maišytuvas voniai ilgu snapu ir dušo komplektu,sieninis",80,"vnt.",28,{"$f":"IF(ISBLANK(E762),\"\", PRODUCT(C762,E762))","v":2240},"MAIšYTUVAS Vonios Ilgu snapu 3236 Lane"]
["4.31.1.","Maišytuvas voniai ilgu snapu ir dušo komplektu, sieninis",null,null,null,null,null,"Snapo ilgis 300mm "]
["4.31.2.","Dušo žarnelė chromuota, dušo galva chromuota",null,null,null,null,null,"Dušo žarnelė chromuota 1,5m  ir laikiklis"]
["4.31.3.","Komplekte 2 ekscentrikai, chromuoti dangteliai jiems, dušo galvos laikiklis",null,null,null,null,null,"2 ekscentrikai, 2 dangteliai"]
["4.31.4.","Garantija 24 mėnesiai",null,null,null,null,null,"24 men"]
["4.31.5.","Taikomi minimalūs Aplinkos apsaugos kriterijai, patvirtinti LR Aplinkos ministro 2011-06-28 įsakymu Nr.D1-508 ( aktualia redakcija),  XXV skyrius, punktas 55.1 . Privalu pateikti atitiktį Aplinkos apsaugos kriterijams įrodančius dokumentus, nurodytus punkte 55.1",null,null,null,null,null,"atitinka techninius duomenis"]
["4.32.","Maišytuvas voniai trumpu snapu ir dušo komplektu, sieninis",50,"vnt.",21.8,{"$f":"IF(ISBLANK(E768),\"\", PRODUCT(C768,E768))","v":1090},"MAIŠYTUVAS VONIOS ROSA BRR11"]
["4.32.1.","Maišytuvas voniai trumpu snapu ir dušo komplektu, sieninis",null,null,null,null,null,"Trumpu snapu "]
["4.32.2.","Dušo žarnelė chromuota, dušo galva chromuota",null,null,null,null,null,"Dušo galva chromuota, žarnelė chromuota,laikiklis"]
["4.32.3.","Komplekte 2 ekscentrikai, chromuoti dangteliai jiems, dušo galvos laikiklis",null,null,null,null,null,"2ekscentrikai, 2dangteliai, dušo laikiklis"]
["4.32.4.","Garantija 24 mėnesiai",null,null,null,null,null,"24 men"]
["4.32.5.","Taikomi minimalūs Aplinkos apsaugos kriterijai, patvirtinti LR Aplinkos ministro 2011-06-28 įsakymu Nr.D1-508 ( aktualia redakcija),  XXV skyrius, punktas 55.1 . Privalu pateikti atitiktį Aplinkos apsaugos kriterijams įrodančius dokumentus, nurodytus punkte 55.1",null,null,null,null,null,"atitinka techninius duomenis"]
["4.33.","Maišytuvas dušui, su dušo komplektu, sieninis",50,"vnt.",15,{"$f":"IF(ISBLANK(E774),\"\", PRODUCT(C774,E774))","v":750},"MAIŠYTUVAS DUŠO ROSA BRR77 KOMPL."]
["4.33.1.","Maišytuvas dušui, su dušo komplektu, sieninis P 1/2\"",null,null,null,null,null,"atitinka techninius duomenis"]
["4.33.2.","Dušo žarnelė chromuota, dušo galva chromuota",null,null,null,null,null,"dušo žarnelė chromuota 1,5m , dušo galva  ir laikiklis"]
["4.33.3.","Komplekte 2 ekscentrikai, chromuoti dangteliai jiems, dušo galvos laikiklis",null,null,null,null,null,"atitinka techninius duomenis"]
["4.33.4.","Garantija 24 mėnesiai",null,null,null,null,null,"24 men"]
["4.33.5.","Taikomi minimalūs Aplinkos apsaugos kriterijai, patvirtinti LR Aplinkos ministro 2011-06-28 įsakymu Nr.D1-508 ( aktualia redakcija),  XXV skyrius, punktas 55.1 . Privalu pateikti atitiktį Aplinkos apsaugos kriterijams įrodančius dokumentus, nurodytus punkte 55.1",null,null,null,null,null,"atitinka techninius duomenis"]
["4.34.","Sensorinis maišytuvas praustuvui",10,"vnt.",121,{"$f":"IF(ISBLANK(E780),\"\", PRODUCT(C780,E780))","v":1210},"Maišytuvas Ecosens sensoric"]
["4.34.1.","Bekontaktis maišytuvas praustuvui su šilto ir šalto vandens srautais",null,null,null,null,null,"atitinka techninius duomenis"]
["4.34.2.","integruota elektronika su maitinimu nuo baterijos",null,null,null,null,null,"4 baterijos A4"]
["4.34.3.","Reaguoja į rankos buvimą veikimo zonoje nuo daviklio momentiniu vandens paleidimu",null,null,null,null,null,"Atitinka techninius duomenis"]
["4.34.4.","Automatinė vandens išjungimo funkcija praėjus 5 min",null,null,null,null,null,"Atitinka techninius duomenis"]
["4.34.5.","garantija 24 mėnesiai",null,null,null,null,null,"5 metai garantija"]
["4.34.6.","Taikomi minimalūs Aplinkos apsaugos kriterijai, patvirtinti LR Aplinkos ministro 2011-06-28 įsakymu Nr.D1-508 ( aktualia redakcija),  XXV skyrius, punktas 55.1 . Privalu pateikti atitiktį Aplinkos apsaugos kriterijams įrodančius dokumentus, nurodytus punkte 55.1",null,null,null,null,null,"Atitinka techninius duomenis"]
["4.35.","Klozetas keraminis baltas, su bakeliu, nuleidimo mechanizmu, ,dangčiu",60,"vnt.",40,{"$f":"IF(ISBLANK(E787),\"\", PRODUCT(C787,E787))","v":2400},"Klozetas Lido K-90"]
["4.35.1.","Klozetas keraminis baltas, su bakeliu, nuleidimo mechanizmu, ,dangčiu",null,null,null,null,null,"Keramikinis klozetas su  bakeliu ,dangciu, nuleidimo mechanizmu,pastatomas,horizantalus išbegimas"]
["4.35.2.","Pastatomas, nubėgimas horizontalus",null,null,null,null,null,"atitinka techninius duomenis"]
["4.35.3.","Taikomi minimalūs Aplinkos apsaugos kriterijai, patvirtinti LR Aplinkos ministro 2011-06-28 įsakymu Nr.D1-508 ( aktualia redakcija),  XXV skyrius, punktas 56.1 . Privalu pateikti atitiktį Aplinkos apsaugos kriterijams įrodančius dokumentus, nurodytus punkte 56.1",null,null,null,null,null,"Gamintojo deklaracija"]
["4.36.","Praustuvas  keraminis baltas ,su skyle maišytuvui, plotis 55cm",60,"vnt.",14.1,{"$f":"IF(ISBLANK(E791),\"\", PRODUCT(C791,E791))","v":846},"Praustuvas  ASTRA 55"]
["4.36.1.","Praustuvas  keraminis baltas ,su skyle maišytuvui, plotis 55cm",null,null,null,null,null,"Keramikinis , su skyle maišytuvui ,plotis 55"]
["4.37.","Praustuvas  keraminis baltas ,su skyle maišytuvui, plotis 40cm",20,"vnt.",10.1,{"$f":"IF(ISBLANK(E793),\"\", PRODUCT(C793,E793))","v":202},"Praustuvas  WASHBASIN 40"]
["4.37.1.","Praustuvas  keraminis baltas ,su skyle maišytuvui, plotis 40cm",null,null,null,null,null,"Keramikinis, su skyle maišytuvui plotis 40"]
["4.38.","Plautuvė nerūdijančio plieno , įleidžiama, kvadratinė 45x45 cm, be staliuko",30,"vnt.",22.9,{"$f":"IF(ISBLANK(E795),\"\", PRODUCT(C795,E795))","v":687}," Nerūdijančio plieno plautuvė D4848P su sifonu"]
["4.38.1.","Plautuvė nerūdijančio plieno , įleidžiama, kvadratinė 45x45 cm, be staliuko",null,null,null,null,null,"Išmatavimai išoriniai  48*48, ileidžiama i stalviršį,sifonas komplekte"]
["4.39.","Klozeto dangtis , plastmasinis, ilgis 470mm, plotis 410mm",80,"vnt.",5.3,{"$f":"IF(ISBLANK(E797),\"\", PRODUCT(C797,E797))","v":424},"525004 DANGTIS WC CERSANIT LAGUNA K98-0007"]
["4.39.1.","Klozeto dangtis , plastmasinis, ilgis 470mm, plotis 410mm",null,null,null,null,null,"Atitinka techninius duomenis"]
["4.40.","Dušo maišytuvo keramikinis divertorius 3/4 [su kraniuku]",40,"vnt.",3.8,{"$f":"IF(ISBLANK(E799),\"\", PRODUCT(C799,E799))","v":152},"DIVERTORIUS A307"]
["4.40.1.","Dušo maišytuvo keramikinis divertorius 3/4 [su kraniuku]",null,null,null,null,null,"Atitinka techninius duomenis"]
["4.41.","Unitazo dangčių tvirtinimo varžtai",100,"kompl.",1.31,{"$f":"IF(ISBLANK(E801),\"\", PRODUCT(C801,E801))","v":131},"VARŽTŲ KOMPL.WC DANGČ.TVIRT. KAMPINIS"]
["4.41.1.","Unitazo dangčių tvirtinimo varžtai",null,null,null,null,null,"Medžiaga: plastikas. "]
["4.42.","WC bakelio tvirtinimo varžtai M8x75",100,"kompl.",0.95,{"$f":"IF(ISBLANK(E803),\"\", PRODUCT(C803,E803))","v":95},"0631013 VARŽTAI UNITAZO BAKELIUI TVIRTINTI K-TAS G"]
["4.42.1.","WC bakelio tvirtinimo varžtai M8x75",null,null,null,null,null,"Varžtas 8*95, "]
["4.43.","Snapas maišytuvui vidutinis",40,"vnt.",3.4,{"$f":"IF(ISBLANK(E805),\"\", PRODUCT(C805,E805))","v":136},"170227 SNAPAS MAIŠYTUVUI LENKTAS 240 MM"]
["4.43.1.","Snapas maišytuvui vidutinis",null,null,null,null,null,"Atitinka techninius duomenis"]
["4.44.","Snapas maišytuvui ilgas",40,"vnt.",5,{"$f":"IF(ISBLANK(E807),\"\", PRODUCT(C807,E807))","v":200},"MAIŠYTUVO SNAPAS PLOKŠČ 170037"]
["4.44.1.","Snapas maišytuvui ilgas, tinkantis objektui 4.27",null,null,null,null,null,"Atitinka techninius duomenis"]
["4.45.","Snapas maišytuvui aukštas",40,"vnt.",5.2,{"$f":"IF(ISBLANK(E809),\"\", PRODUCT(C809,E809))","v":208},"Snapas  aukštas"]
["4.45.1.","Snapas maišytuvui aukštas, tinkantis objektui 4.30",null,null,null,null,null,"Atitinka techninius duomenis"]
["4.46.","Pisuaras keramikinis, baltas, pakabinamas",10,"vnt.",22.97,{"$f":"IF(ISBLANK(E811),\"\", PRODUCT(C811,E811))","v":229.7},"Pisuaras  Cersanit President"]
["4.46.1.","Pisuaras keramikinis, baltas, pakabinamas",null,null,null,null,null,"Medžiaga keramika Pajungimas iš apacios,"]
["4.47.","Tepalas kanalizacijos vamzdžių montavimui silikoninis ne mažiau 150ml",30,"vnt.",1.35,{"$f":"IF(ISBLANK(E813),\"\", PRODUCT(C813,E813))","v":40.5},"SILIKONINIS TEPALAS 250g"]
["4.47.1.","Tepalas kanalizacijos vamzdžių montavimui silikoninis ne mažiau 150ml",null,null,null,null,null,"Silikonis tepalas skirtas kanalizacijos vamzdžių ir jungiamųjų dalių montavimui. Pakuotė: 250ml."]
["4.48.","Pasta sandarinimo, UNIPAX tipo arba lygiavertė ,ne mažiau 150ml",30,"vnt.",1.65,{"$f":"IF(ISBLANK(E815),\"\", PRODUCT(C815,E815))","v":49.5},"SANDARINIMO PASTA GB-1 250G"]
["4.48.1.","Pasta sandarinimo, UNIPAX tipo arba lygiavertė ,ne mažiau 150ml",null,null,null,null,null,"Medžiaga: įmirkęs poliamido siūlas. Paskirtis: vandentiekio, centrinio šildymo, dujų ir suspausto oro įrenginių srieginių jungčių sandarinimui.: Vand. ir cent. šildymas: temp. -20/+130, slėgis iki 7 bar. Dujos: -20/+70, slėgis iki 5 bar. Suspaustas oras: iki 15 bar. Atitinka reikalavimus: PN-En 751-2. Pakuotė: 250ml."]
["4.49.","Siūlas sriegių sandarinimui, ne mažiau 150m rulone",40,"vnt.",5.84,{"$f":"IF(ISBLANK(E817),\"\", PRODUCT(C817,E817))","v":233.6},"SRIEGIŲ SANDARINIMO SIŪLAS LOCKER 150M"]
["4.49.1.","Siūlas sriegių sandarinimui ,ne mažiau 150m rulone. Tinkantis karštam, šaltam vandeniui, šildymui, dujoms",null,null,null,null,null,"Paskirtis: vandentiekio, centrinio šildymo, dujų ir suspausto oro įrenginių srieginių jungčių sandarinimui.: Vand. ir cent. šildymas: temp. -20/+175, slėgis iki 7 bar. Dujos: -20/+70, slėgis iki 5 bar. Suspaustas oras: iki 16 bar. Atitinka reikalavimus: PN-En 751-2. "]
["4.50.","Linų pluoštas, ne mažiau 100g rulone",50,"vnt.",0.59,{"$f":"IF(ISBLANK(E819),\"\", PRODUCT(C819,E819))","v":29.5},"LINŲ PLUOŠTAS 100G"]
["4.50.1.","Linų pluoštas, ne mažiau 100g rulone",null,null,null,null,null,"Medžiaga: šukuoti linai. Paskirtis: vandentiekio, centrinio šildymo, dujų ir suspausto oro įrenginių srieginių jungčių sandarinimui, naudojama su sandarinimo pasta.:  Pakuotė: 100g."]
["4.51.","Techninė guma 4mm storio, lygaus paviršiaus",10,"kv. m",21.2,{"$f":"IF(ISBLANK(E821),\"\", PRODUCT(C821,E821))","v":212},"GUMA NBR 4mm 1200x10000mm"]
["4.51.1.","Techninė guma 4mm storio, lygaus paviršiaus",null,null,null,null,null,"Išmatavimai 1,20m*1,00m"]
["4.52.","Guminė tarpinė [manžetas] maišytuvo vamzdeliui , išorinis d15 mm",200,"vnt.",0.03,{"$f":"IF(ISBLANK(E823),\"\", PRODUCT(C823,E823))","v":6},"GUMINĖS TARPINĖS MAIŠYTUVAMS 15X4X4"]
["4.52.1.","Guminė tarpinė [manžetas] maišytuvo vamzdeliui , išorinis d15 mm",null,null,null,null,null,"Medžiaga: guma. Išorinis diametras - 15mm. Storis - 4mm. Vidinės skylės diametras: 4mm."]
["4.53.","Tarpinės guminė d18 mm [dušo šlangutei]",300,"vnt.",0.02,{"$f":"IF(ISBLANK(E825),\"\", PRODUCT(C825,E825))","v":6},"GUMINĖS TARPINĖS 1/2"]
["4.53.1.","Tarpinės guminė d18 mm [dušo šlangutei]",null,null,null,null,null,"Guma NBR"]
["4.54.","Tarpinės guminė d25 mm [dušo sieniniam maišytuvui]",300,"vnt.",0.03,{"$f":"IF(ISBLANK(E827),\"\", PRODUCT(C827,E827))","v":9},"GUMINĖS TARPINĖS 3/4"]
["4.54.1.","Tarpinės guminė d25 mm [sieniniam maišytuvui]",null,null,null,null,null,"Guma NBR"]
["4.55.","Guminė tarpinė [manžetas] maišytuvo vamzdeliui , išorinis d20mm",200,"vnt.",0.04,{"$f":"IF(ISBLANK(E829),\"\", PRODUCT(C829,E829))","v":8},"0610110 MANŽETAS IMPORTIN.MAIŠYT.VAMZDELIUI"]
["4.55.1.","Guminė tarpinė [manžetas] maišytuvo vamzdeliui , išorinis d20mm",null,null,null,null,null,"Guminis manžetas d20mm"]
["4.56.","Sandarinimo juostelė tefloninė, plotis 10[+-2]mm, rulone10[+-3]m",150,"vnt.",0.28999999999999998,{"$f":"IF(ISBLANK(E831),\"\", PRODUCT(C831,E831))","v":43.5},"SANDARINIMO JUOSTELĖ EXTRA 0.1MM/12M"]
["4.56.1.","Sandarinimo juostelė tefloninė, plotis 10[+-2]mm, rulone10[+-3]m",null,null,null,null,null,"Paskirtis: teflono juosta srieginių jungčių sandarinimui vandens įrenginiuose (metalo ir plastiko). Tinka skersmeniui <1\". Atlaiko temperatūrą nuo –260/+260 ir slėgį iki 15bar. Storis - 0,10mm; tankis - 0,35 g/cm3; plotis - 12 mm; ilgis - 12 m."]
["4.57.","Vandens filtro korpusas, darbinė to 5-40 CO ,Pmax -8 bar, prijungimas dn 32, skaidri kolba su raktu, laikikliu ir plaunamu filtravimo elementu",15,"vnt.",122,{"$f":"IF(ISBLANK(E833),\"\", PRODUCT(C833,E833))","v":1830},"Filtras NW-32"]
["4.57.1.","Vandens filtro korpusas, darbinė to 5-40 CO ,Pmax -8 bar, prijungimas dn 32, skaidri kolba su raktu, laikikliu ir plaunamu filtravimo elementu",null,null,null,null,null,"PrijungimasDN32 skaidri kolba raktas laikiklis filtravimo elementas"]
["4.58.","Filtro elementas PP 9-10",100,"vnt.",0.86,{"$f":"IF(ISBLANK(E835),\"\", PRODUCT(C835,E835))","v":86},"PP9-10 FILTRO ELEMENTAS PP 97/8''(10MIKRONŲ)"]
["4.58.1.","Filtro elementas PP 9-10",null,null,null,null,null,"Polipropilenas  10 MIKRONŲ"]
["4.59.","Filtro elementas virvelinis  SP 9-1",50,"vnt.",0.9,{"$f":"IF(ISBLANK(E837),\"\", PRODUCT(C837,E837))","v":45},"SP9-1 VIRVINIS FILTRO ELEMENTAS 9 3/4\" (1 MIKRONO)"]
["4.59.1.","Filtro elementas virvelinis  SP 9-1",null,null,null,null,null,"Siulinis 1 MIKRONO "]
["4.60.","Rankšluosčių džiovintuvas [gyvatukas] , atstumas tarp pajungimo ašių 600mm, žalvarinis, chromuotas. Pajungimas 1/2\" v",40,"vnt.",46,{"$f":"IF(ISBLANK(E839),\"\", PRODUCT(C839,E839))","v":1840}," Gyvatukas NGV-3/32     "]
["4.60.1.","Rankšluosčių džiovintuvas [gyvatukas] , atstumas tarp pajungimo ašių 600mm, žalvarinis, chromuotas. Pajungimas 1/2\" v",null,null,null,null,null,"Pajungimas 1/2 vidus"]
["4.61.","WC pajungimas lankstus [gofruotas] d100",20,"vnt.",2.2000000000000002,{"$f":"IF(ISBLANK(E841),\"\", PRODUCT(C841,E841))","v":44},"KF03B WC UNITAZO PAJUNGIMAS"]
["4.61.1.","WC pajungimas lankstus [gofruotas] d100",null,null,null,null,null,"Gofra išsitempenti iki 50cm"]
["4.62.","Žarnelės nerūdijančio plieno apvalkalu, 1/2\"x1/2\" [vienas galas 90 laipsnių kampu]",40,"vnt.",2.63,{"$f":"IF(ISBLANK(E843),\"\", PRODUCT(C843,E843))","v":105.19999999999999},"Žarnelė 1/2*1/2 60cm kampu"]
["4.62.1.","Žarnelės nerūdijančio plieno apvalkalu, 1/2\"x1/2\" [vienas galas 90 laipsnių kampu]",null,null,null,null,null,"nerudijancio plieno, EPDM guminė žarna"]
["4.63.","Žarnelės nerūdijančio plieno apvalkalu, 1/2\"x1/2\" vid/išor",250,"vnt.",1.59,{"$f":"IF(ISBLANK(E845),\"\", PRODUCT(C845,E845))","v":397.5}," ŽARNELĖ 1/2x1/2 V/I 30CMNERŪDYJANČIO PLIENO ŠARVE"]
["4.63.1.","Žarnelės nerūdijančio plieno apvalkalu, 1/2\"x1/2\" vid/išor",null,null,null,null,null,"Sriegiai: 1/2\" vid./ 1/2\" išor. Max. slėgis: PN10. Max. temp. +90. Ilgis - 30cm. Apvalkalas - nerūdijančio plieno."]
["4.64.","Praustuvo sifonas d50, plastikinis, baltas",50,"vnt.",3.6,{"$f":"IF(ISBLANK(E847),\"\", PRODUCT(C847,E847))","v":180},"Sifonas viega D50"]
["4.64.1.","Praustuvo sifonas d50, plastikinis, baltas",null,null,null,null,null,"Sifonas be ventilio,diametras 1'1/2x50"]
["4.65.","Porankiai wc, dušo [fiksuotas turėklas] 300mm ilgio, spalva balta",40,"vnt.",8.6999999999999993,{"$f":"IF(ISBLANK(E849),\"\", PRODUCT(C849,E849))","v":348},"Rankturis 30 mm baltas"]
["4.65.1.","Porankiai wc, dušo [fiksuotas turėklas] 300mm ilgio, spalva balta",null,null,null,null,null,"Rankturis tvirtinamas varžtais,skersmuo 3,6cm, tvirto plastiko"]
["4.66.","Porankiai wc, dušo [fiksuotas turėklas] 400mm ilgio, spalva balta",40,"vnt.",8.1999999999999993,{"$f":"IF(ISBLANK(E851),\"\", PRODUCT(C851,E851))","v":328},"Baltas fiksuotas rankturis 400mm"]
["4.66.1.","Porankiai wc, dušo [fiksuotas turėklas] 400mm ilgio, spalva balta",null,null,null,null,null,"Tvirtinimo varžtai komplekte, metalinis"]
[null,null,null,null,"Suma be PVM",{"$f":"IF((COUNT(C679:C852)<>COUNT(F679:F852)),\"\", SUM(F679:F852))","v":29848.9},{"$f":"IF((COUNT(C679:C852)<>COUNT(F679:F852)),\"Neužpildytos visų objektų kainos\", \"\")","v":""}]
[null,null,null,null,"PVM suma",6268.27]
[null,null,null,null,"Suma su PVM",{"$f":"IF(ISBLANK(F854), \"\", SUM(F853:F854))","v":36117.17}]
[]
["5.","Santechninės vėdinimo medžiagos - ortakiai, jų dalys"]
["5.1.","Paviršinis greičio reguliatorius, ištraukimo ventiliatoriui  230V; 3,15A; IP40",6,"vnt.",null,{"$f":"IF(ISBLANK(E858),\"\", PRODUCT(C858,E858))","v":""}]
["5.1.1.","Paviršinis greičio reguliatorius, ištraukimo ventiliatoriui  230V; 3,15A; IP40"]
["5.2.","Ištraukiamasis ventiliatorius D100, metalinis, 70W; 230V; našumas 450m3/h; triukšmo lygis 40dB; IP X4; ašinis",4,"vnt.",null,{"$f":"IF(ISBLANK(E860),\"\", PRODUCT(C860,E860))","v":""}]
["5.2.1.","Ištraukiamasis ventiliatorius D100, metalinis, 70W; 230V; našumas 450m3/h; triukšmo lygis 40dB; IP X4; ašinis"]
["5.3.","Ištraukiamasis ventiliatorius D125, metalinis, 70W; 230V; našumas 450m3/h; triukšmo lygis 45dB; IP X4; ašinis",4,"vnt.",null,{"$f":"IF(ISBLANK(E862),\"\", PRODUCT(C862,E862))","v":""}]
["5.3.1.","Ištraukiamasis ventiliatorius D125, metalinis, 70W; 230V; našumas 450m3/h; triukšmo lygis 45dB; IP X4; ašinis"]
["5.4.","Ištraukiamasis ventiliatorius D160, metalinis, 90W; 230V; našumas 560m3/h; triukšmo lygis 60dB; IP X4; ašinis  ",4,"vnt.",null,{"$f":"IF(ISBLANK(E864),\"\", PRODUCT(C864,E864))","v":""}]
["5.4.1.","Ištraukiamasis ventiliatorius D160, metalinis, 90W; 230V; našumas 560m3/h; triukšmo lygis 60dB; IP X4; ašinis  "]
["5.5.","Ištraukiamasis ventiliatorius D200, metalinis, 170W; 230V; našumas1200m3/h; triukšmo lygis 70dB; IP X4; ašinis",2,"vnt.",null,{"$f":"IF(ISBLANK(E866),\"\", PRODUCT(C866,E866))","v":""}]
["5.5.1.","Ištraukiamasis ventiliatorius D200, metalinis, 170W; 230V; našumas1200m3/h; triukšmo lygis 70dB; IP X4; ašinis"]
["5.6.","Ištraukiamasis ventiliatorius D250, metalinis, 210W; 230V; našumas 1600m3/h; triukšmo lygis 70dB; IP X4; ašinis",2,"vnt.",null,{"$f":"IF(ISBLANK(E868),\"\", PRODUCT(C868,E868))","v":""}]
["5.6.1.","Ištraukiamasis ventiliatorius D250, metalinis, 210W; 230V; našumas 1600m3/h; triukšmo lygis 70dB; IP X4; ašinis"]
["5.7.","Ištraukiamasis ventiliatorius D125, su laikmačiu ir grotelėmis, sieninis, našumas 145m3/h; 12W; 230V; su guoliais       ",10,"vnt.",null,{"$f":"IF(ISBLANK(E870),\"\", PRODUCT(C870,E870))","v":""}]
["5.7.1.","Ištraukiamasis ventiliatorius D125, su laikmačiu ir grotelėmis, sieninis, našumas 145m3/h; 12W; 230V; su guoliais       "]
["5.8.","Nerūdijančio plieno sąvaržos, lankstiems ortakiams tvirtinti D 0-250mm, veržiamos raktu ir atsuktuvu   ",60,"vnt.",null,{"$f":"IF(ISBLANK(E872),\"\", PRODUCT(C872,E872))","v":""}]
["5.8.1.","Nerūdijančio plieno sąvaržos, lankstiems ortakiams tvirtinti D 0-250mm, veržiamos raktu ir atsuktuvu  "]
["5.9.","Tvirtinimo kronšteinas, cinkuotas KRC 600, profiliuotas",20,"vnt.",null,{"$f":"IF(ISBLANK(E874),\"\", PRODUCT(C874,E874))","v":""}]
["5.9.1.","Tvirtinimo kronšteinas, cinkuotas KRC 600, profiliuotas"]
["5.10.","Montažinis profilis T , cinkuotas, be tarpinės",30,"m",null,{"$f":"IF(ISBLANK(E876),\"\", PRODUCT(C876,E876))","v":""}]
["5.10.1.","Montažinis profilis T , cinkuotas, be tarpinės"]
["5.11.","Difuzorius P-DVS oro tiekimui, metalas plastikas, baltos spalvos  D100  ",8,"vnt.",null,{"$f":"IF(ISBLANK(E878),\"\", PRODUCT(C878,E878))","v":""}]
["5.11.1.","Difuzorius P-DVS oro tiekimui, metalas plastikas, baltos spalvos  D100  "]
["5.12.","Difuzorius P-DVS oro tiekimui, metalas plastikas, baltos spalvos  D125  ",8,"vnt.",null,{"$f":"IF(ISBLANK(E880),\"\", PRODUCT(C880,E880))","v":""}]
["5.12.1.","Difuzorius P-DVS oro tiekimui, metalas plastikas, baltos spalvos  D125  "]
["5.13.","Difuzorius P-DVS oro tiekimui, metalas plastikas, baltos spalvos  D160  ",6,"vnt.",null,{"$f":"IF(ISBLANK(E882),\"\", PRODUCT(C882,E882))","v":""}]
["5.13.1.","Difuzorius P-DVS oro tiekimui, metalas plastikas, baltos spalvos  D160"]
["5.14.","Difuzorius P-DVS oro tiekimui, metalas plastikas, baltos spalvos  D200",6,"vnt.",null,{"$f":"IF(ISBLANK(E884),\"\", PRODUCT(C884,E884))","v":""}]
["5.14.1.","Difuzorius P-DVS oro tiekimui, metalas plastikas, baltos spalvos  D200"]
["5.15.","Difuzorius DVS oro ištraukimui, metalas plastikas, baltos spalvos D100 ",8,"vnt.",null,{"$f":"IF(ISBLANK(E886),\"\", PRODUCT(C886,E886))","v":""}]
["5.15.1.","Difuzorius DVS oro ištraukimui, metalas plastikas, baltos spalvos D100 "]
["5.16.","Difuzorius DVS oro ištraukimui, metalas plastikas, baltos spalvos D125",8,"vnt.",null,{"$f":"IF(ISBLANK(E888),\"\", PRODUCT(C888,E888))","v":""}]
["5.16.1.","Difuzorius DVS oro ištraukimui, metalas plastikas, baltos spalvos D125"]
["5.17.","Difuzorius DVS oro ištraukimui, metalas plastikas, baltos spalvos D160",6,"vnt.",null,{"$f":"IF(ISBLANK(E890),\"\", PRODUCT(C890,E890))","v":""}]
["5.17.1.","Difuzorius DVS oro ištraukimui, metalas plastikas, baltos spalvos D160"]
["5.18.","Difuzorius DVS oro ištraukimui, metalas plastikas, baltos spalvos D200",6,"vnt.",null,{"$f":"IF(ISBLANK(E892),\"\", PRODUCT(C892,E892))","v":""}]
["5.18.1.","Difuzorius DVS oro ištraukimui, metalas plastikas, baltos spalvos D200"]
["5.19.","Lauko ventiliacijos grotelės YGAV apvalios aliumininės ,aliuminio spalvos D125  ",4,"vnt.",null,{"$f":"IF(ISBLANK(E894),\"\", PRODUCT(C894,E894))","v":""}]
["5.19.1.","Lauko ventiliacijos grotelės YGAV apvalios aliumininės ,aliuminio spalvos D125  "]
["5.20.","Lauko ventiliacijos grotelės YGAV apvalios aliumininės ,aliuminio spalvos D160",4,"vnt.",null,{"$f":"IF(ISBLANK(E896),\"\", PRODUCT(C896,E896))","v":""}]
["5.20.1.","Lauko ventiliacijos grotelės YGAV apvalios aliumininės ,aliuminio spalvos D160"]
["5.21.","Lauko ventiliacijos grotelės YGAV apvalios aliumininės ,aliuminio spalvos D200",4,"vnt.",null,{"$f":"IF(ISBLANK(E898),\"\", PRODUCT(C898,E898))","v":""}]
["5.21.1.","Lauko ventiliacijos grotelės YGAV apvalios aliumininės ,aliuminio spalvos D200"]
["5.22.","Lankstus aliumininis ortakis, eksploatavimo temperatūra iki 200oC; L-3m. D100  ",5,"vnt.",null,{"$f":"IF(ISBLANK(E900),\"\", PRODUCT(C900,E900))","v":""}]
["5.22.1.","Lankstus aliumininis ortakis, eksploatavimo temperatūra iki 200oC; L-3m. D100  "]
["5.23.","Lankstus aliumininis ortakis, eksploatavimo temperatūra iki 200oC; L-3m. D125",5,"vnt.",null,{"$f":"IF(ISBLANK(E902),\"\", PRODUCT(C902,E902))","v":""}]
["5.23.1.","Lankstus aliumininis ortakis, eksploatavimo temperatūra iki 200oC; L-3m. D125"]
["5.24.","Lankstus aliumininis ortakis, eksploatavimo temperatūra iki 200oC; L-3m. D160",4,"vnt.",null,{"$f":"IF(ISBLANK(E904),\"\", PRODUCT(C904,E904))","v":""}]
["5.24.1.","Lankstus aliumininis ortakis, eksploatavimo temperatūra iki 200oC; L-3m. D160"]
["5.25.","Lankstus aliumininis ortakis, eksploatavimo temperatūra iki 200oC; L-3m. D200",4,"vnt.",null,{"$f":"IF(ISBLANK(E906),\"\", PRODUCT(C906,E906))","v":""}]
["5.25.1.","Lankstus aliumininis ortakis, eksploatavimo temperatūra iki 200oC; L-3m. D200"]
["5.26.","Cinkuotas spiralinis ortakis su standumo briauna  L-3m.  D100 ",30,"m",null,{"$f":"IF(ISBLANK(E908),\"\", PRODUCT(C908,E908))","v":""}]
["5.26.1.","Cinkuotas spiralinis ortakis su standumo briauna  L-3m.  D100 "]
["5.27.","Cinkuotas spiralinis ortakis su standumo briauna  L-3m.  D125",30,"m",null,{"$f":"IF(ISBLANK(E910),\"\", PRODUCT(C910,E910))","v":""}]
["5.27.1.","Cinkuotas spiralinis ortakis su standumo briauna  L-3m.  D125"]
["5.28.","Cinkuotas spiralinis ortakis su standumo briauna  L-3m.  D160",24,"m",null,{"$f":"IF(ISBLANK(E912),\"\", PRODUCT(C912,E912))","v":""}]
["5.28.1.","Cinkuotas spiralinis ortakis su standumo briauna  L-3m.  D160"]
["5.29.","Cinkuotas spiralinis ortakis su standumo briauna  L-3m.  D200",24,"m",null,{"$f":"IF(ISBLANK(E914),\"\", PRODUCT(C914,E914))","v":""}]
["5.29.1.","Cinkuotas spiralinis ortakis su standumo briauna  L-3m.  D200"]
["5.30.","Cinkuotas spiralinis ortakis su standumo briauna  L-3m.  D250",18,"m",null,{"$f":"IF(ISBLANK(E916),\"\", PRODUCT(C916,E916))","v":""}]
["5.30.1.","Cinkuotas spiralinis ortakis su standumo briauna  L-3m.  D250"]
["5.31.","Cinkuotas spiralinis ortakis su standumo briauna  L-3m.  D315",12,"m",null,{"$f":"IF(ISBLANK(E918),\"\", PRODUCT(C918,E918))","v":""}]
["5.31.1.","Cinkuotas spiralinis ortakis su standumo briauna  L-3m.  D315"]
["5.32.","Cinkuoto plieno alkūnė su tarpine 90o  D100 ",10,"vnt.",null,{"$f":"IF(ISBLANK(E920),\"\", PRODUCT(C920,E920))","v":""}]
["5.32.1.","Cinkuoto plieno alkūnė su tarpine 90o  D100 . Tinka objektui 5.26"]
["5.33.","Cinkuoto plieno alkūnė su tarpine 90o  D125",10,"vnt.",null,{"$f":"IF(ISBLANK(E922),\"\", PRODUCT(C922,E922))","v":""}]
["5.33.1.","Cinkuoto plieno alkūnė su tarpine 90o  D125 . Tinka objektui 5.27"]
["5.34.","Cinkuoto plieno alkūnė su tarpine 90o  D160",10,"vnt.",null,{"$f":"IF(ISBLANK(E924),\"\", PRODUCT(C924,E924))","v":""}]
["5.34.1.","Cinkuoto plieno alkūnė su tarpine 90o  D160 . Tinka objektui 5.28"]
["5.35.","Cinkuoto plieno alkūnė su tarpine 90o  D200",8,"vnt.",null,{"$f":"IF(ISBLANK(E926),\"\", PRODUCT(C926,E926))","v":""}]
["5.35.1.","Cinkuoto plieno alkūnė su tarpine 90o  D200 . Tinka objektui 5.29"]
["5.36.","Cinkuoto plieno mova su tarpine  D100 ",8,"vnt.",null,{"$f":"IF(ISBLANK(E928),\"\", PRODUCT(C928,E928))","v":""}]
["5.36.1.","Cinkuoto plieno mova su tarpine  D100 .Tinka objektui 5.26"]
["5.37.","Cinkuoto plieno mova su tarpine  D125",8,"vnt.",null,{"$f":"IF(ISBLANK(E930),\"\", PRODUCT(C930,E930))","v":""}]
["5.37.1.","Cinkuoto plieno mova su tarpine  D125 .Tinka objektui 5.27"]
["5.38.","Cinkuoto plieno mova su tarpine  D160",8,"vnt.",null,{"$f":"IF(ISBLANK(E932),\"\", PRODUCT(C932,E932))","v":""}]
["5.38.1.","Cinkuoto plieno mova su tarpine  D160 .Tinka objektui 5.28"]
["5.39.","Cinkuoto plieno mova su tarpine  D200",6,"vnt.",null,{"$f":"IF(ISBLANK(E934),\"\", PRODUCT(C934,E934))","v":""}]
["5.39.1.","Cinkuoto plieno mova su tarpine  D200 .Tinka objektui 5.29"]
["5.40.","Cinkuoto plieno pereiga su tarpine  D125-100",8,"vnt.",null,{"$f":"IF(ISBLANK(E936),\"\", PRODUCT(C936,E936))","v":""}]
["5.40.1.","Cinkuoto plieno pereiga su tarpine  D125-100.Tinka objektui 5.26 ir 5.27"]
["5.41.","Cinkuoto plieno pereiga su tarpine  D160-100",6,"vnt.",null,{"$f":"IF(ISBLANK(E938),\"\", PRODUCT(C938,E938))","v":""}]
["5.41.1.","Cinkuoto plieno pereiga su tarpine  D160-100.Tinka objektui 5.26 ir 5.28"]
["5.42.","Cinkuoto plieno pereiga su tarpine  D160-125",6,"vnt.",null,{"$f":"IF(ISBLANK(E940),\"\", PRODUCT(C940,E940))","v":""}]
["5.42.1.","Cinkuoto plieno pereiga su tarpine  D160-125.Tinka objektui 5.27 ir 5.28"]
["5.43.","Cinkuoto plieno pereiga su tarpine  D200-125",4,"vnt.",null,{"$f":"IF(ISBLANK(E942),\"\", PRODUCT(C942,E942))","v":""}]
["5.43.1.","Cinkuoto plieno pereiga su tarpine  D200-125.Tinka objektui 5.27 ir 5.29"]
["5.44.","Cinkuoto plieno pereiga su tarpine  D200-160",4,"vnt.",null,{"$f":"IF(ISBLANK(E944),\"\", PRODUCT(C944,E944))","v":""}]
["5.44.1.","Cinkuoto plieno pereiga su tarpine  D200-160.Tinka objektui 5.28 ir 5.29"]
["5.45.","Cinkuoto plieno balninė atšaka su tarpine  D125-100",10,"vnt.",null,{"$f":"IF(ISBLANK(E946),\"\", PRODUCT(C946,E946))","v":""}]
["5.45.1.","Cinkuoto plieno balninė atšaka su tarpine  D125-100.Tinka objektui 5.26 ir 5.27"]
["5.46.","Cinkuoto plieno balninė atšaka su tarpine  D160-100",8,"vnt.",null,{"$f":"IF(ISBLANK(E948),\"\", PRODUCT(C948,E948))","v":""}]
["5.46.1.","Cinkuoto plieno balninė atšaka su tarpine  D160-100.Tinka objektui 5.26 ir 5.28"]
["5.47.","Cinkuoto plieno balninė atšaka su tarpine  D160-125",6,"vnt.",null,{"$f":"IF(ISBLANK(E950),\"\", PRODUCT(C950,E950))","v":""}]
["5.47.1.","Cinkuoto plieno balninė atšaka su tarpine  D160-125.Tinka objektui 5.27 ir 5.28"]
["5.48.","Cinkuoto plieno balninė atšaka su tarpine  D200-160",6,"vnt.",null,{"$f":"IF(ISBLANK(E952),\"\", PRODUCT(C952,E952))","v":""}]
["5.48.1.","Cinkuoto plieno balninė atšaka su tarpine  D200-160.Tinka objektui 5.29 ir 5.28"]
["5.49.","Nerūdijančio plieno ortakis D100",6,"m",null,{"$f":"IF(ISBLANK(E954),\"\", PRODUCT(C954,E954))","v":""}]
["5.49.1.","Nerūdijančio plieno ortakis D100"]
["5.50.","Nerūdijančio plieno ortakis D125",6,"m",null,{"$f":"IF(ISBLANK(E956),\"\", PRODUCT(C956,E956))","v":""}]
["5.50.1.","Nerūdijančio plieno ortakis D125"]
["5.51.","Nerūdijančio plieno ortakis D160",6,"m",null,{"$f":"IF(ISBLANK(E958),\"\", PRODUCT(C958,E958))","v":""}]
["5.51.1.","Nerūdijančio plieno ortakis D160"]
["5.52.","Nerūdijančio plieno ortakis D180",6,"m",null,{"$f":"IF(ISBLANK(E960),\"\", PRODUCT(C960,E960))","v":""}]
["5.52.1.","Nerūdijančio plieno ortakis D180"]
["5.53.","Nerūdijančio plieno ortakis D200",6,"m",null,{"$f":"IF(ISBLANK(E962),\"\", PRODUCT(C962,E962))","v":""}]
["5.53.1.","Nerūdijančio plieno ortakis D200"]
["5.54.","Nerūdijančio plieno ortakis D315",32,"m",null,{"$f":"IF(ISBLANK(E964),\"\", PRODUCT(C964,E964))","v":""}]
["5.54.1.","Nerūdijančio plieno ortakis D315"]
["5.55.","Plastikinės vėdinimo grotelės  DL100RW, baltos",100,"vnt.",null,{"$f":"IF(ISBLANK(E966),\"\", PRODUCT(C966,E966))","v":""}]
["5.55.1.","255x190 mm, spalva balta, pajungimas d100 ortakiui"]
["5.56.","Plastikinės vėdinimo grotelės  baltos",100,"vnt.",null,{"$f":"IF(ISBLANK(E968),\"\", PRODUCT(C968,E968))","v":""}]
["5.56.1.","255[+-10]x190[+-10] mm, spalva balta, įleidžiamos į lubas"]
["5.57.","Plastikinės vėdinimo grotelės  baltos",100,"vnt.",null,{"$f":"IF(ISBLANK(E970),\"\", PRODUCT(C970,E970))","v":""}]
["5.57.1.","255[+-10]x190[+-10] mm, spalva balta, paviršinės"]
[null,null,null,null,"Suma be PVM",{"$f":"IF((COUNT(C858:C971)<>COUNT(F858:F971)),\"\", SUM(F858:F971))","v":""},{"$f":"IF((COUNT(C858:C971)<>COUNT(F858:F971)),\"Neužpildytos visų objektų kainos\", \"\")","v":"Neužpildytos visų objektų kainos"}]
[null,null,null,null,"PVM suma"]
[null,null,null,null,"Suma su PVM",{"$f":"IF(ISBLANK(F973), \"\", SUM(F972:F973))","v":""}]
[]
["6.","Santechninės vėdinimo medžiagos- ventkamerų oro filtrai"]
["6.1.","Ventkameros oro filtras KF SK  G3   420x807x500  4",2,"vnt.",null,{"$f":"IF(ISBLANK(E977),\"\", PRODUCT(C977,E977))","v":""}]
["6.1.1.","Ventkameros oro filtras KF SK  G3   420x807x500  4"]
["6.2.","Ventkameros oro filtras KF  G4   535x495x350  5",1,"vnt.",null,{"$f":"IF(ISBLANK(E979),\"\", PRODUCT(C979,E979))","v":""}]
["6.2.1.","Ventkameros oro filtras KF  G4   535x495x350  5"]
["6.3.","Ventkameros oro filtras KF  SK   F7  533x497x500  5",2,"vnt.",null,{"$f":"IF(ISBLANK(E981),\"\", PRODUCT(C981,E981))","v":""}]
["6.3.1.","Ventkameros oro filtras KF  SK   F7  533x497x500  5"]
["6.4.","Ventkameros oro filtras KF  F7    420x807x500   6         ",2,"vnt.",null,{"$f":"IF(ISBLANK(E983),\"\", PRODUCT(C983,E983))","v":""}]
["6.4.1.","Ventkameros oro filtras KF  F7    420x807x500   6         "]
["6.5.","Ventkameros oro filtras KF  SK  M5  420x807x500  4",2,"vnt.",null,{"$f":"IF(ISBLANK(E985),\"\", PRODUCT(C985,E985))","v":""}]
["6.5.1.","Ventkameros oro filtras KF  SK  M5  420x807x500  4"]
["6.6.","Ventkameros oro filtras PLT  XL  M5  605x305x50",1,"vnt.",null,{"$f":"IF(ISBLANK(E987),\"\", PRODUCT(C987,E987))","v":""}]
["6.6.1.","Ventkameros oro filtras PLT  XL  M5  605x305x50"]
["6.7.","Ventkameros oro filtras KF  SK  M5  540x385x250  7",2,"vnt.",null,{"$f":"IF(ISBLANK(E989),\"\", PRODUCT(C989,E989))","v":""}]
["6.7.1.","Ventkameros oro filtras KF  SK  M5  540x385x250  7"]
["6.8.","Ventkameros oro filtras KF  F7    390x290x500  6",2,"vnt.",null,{"$f":"IF(ISBLANK(E991),\"\", PRODUCT(C991,E991))","v":""}]
["6.8.1.","Ventkameros oro filtras KF  F7    390x290x500  6"]
["6.9.","Ventkameros oro filtras KF  M5   592x490x600  6",2,"vnt.",null,{"$f":"IF(ISBLANK(E993),\"\", PRODUCT(C993,E993))","v":""}]
["6.9.1.","Ventkameros oro filtras"]
["6.9.2.","Ventkameros oro filtras"]
["6.10.","Ventkameros oro filtras KF  M5   495x250x500  6",2,"vnt.",null,{"$f":"IF(ISBLANK(E996),\"\", PRODUCT(C996,E996))","v":""}]
["6.10.1.","Ventkameros oro filtras KF  M5   495x250x500  6"]
["6.11.","Ventkameros oro filtras  HEPA  EU13  460x460x80",16,"vnt.",null,{"$f":"IF(ISBLANK(E998),\"\", PRODUCT(C998,E998))","v":""}]
["6.11.1.","Ventkameros oro filtras HEPA  EU13  460x460x80"]
["6.12.","Ventkameros oro filtras KF  F5  540x385x250  7",2,"vnt.",null,{"$f":"IF(ISBLANK(E1000),\"\", PRODUCT(C1000,E1000))","v":""}]
["6.12.1.","Ventkameros oro filtras KF  F5  540x385x250  7"]
["6.13.","Ventkameros oro filtras KF  SK  M5  592x490x600  6",1,"vnt.",null,{"$f":"IF(ISBLANK(E1002),\"\", PRODUCT(C1002,E1002))","v":""}]
["6.13.1.","Ventkameros oro filtras KF  SK  M5  592x490x600  6"]
["6.14.","Ventkameros oro filtras KF  SK  G3  592x287x300  6",1,"vnt.",null,{"$f":"IF(ISBLANK(E1004),\"\", PRODUCT(C1004,E1004))","v":""}]
["6.14.1.","Ventkameros oro filtras KF  SK  G3  592x287x300  6"]
["6.15.","Ventkameros oro filtras KF  SK  F7  590x290x500  6",4,"vnt.",null,{"$f":"IF(ISBLANK(E1006),\"\", PRODUCT(C1006,E1006))","v":""}]
["6.15.1.","Ventkameros oro filtras KF  SK  F7  590x290x500  6"]
["6.16.","Ventkameros oro filtras KF  SK  F7  290x140x300  6",5,"vnt.",null,{"$f":"IF(ISBLANK(E1008),\"\", PRODUCT(C1008,E1008))","v":""}]
["6.16.1.","Ventkameros oro filtras KF  SK  F7  290x140x300  6"]
["6.17.","Ventkameros oro filtras KF  F7        390x190x380  4",5,"vnt.",null,{"$f":"IF(ISBLANK(E1010),\"\", PRODUCT(C1010,E1010))","v":""}]
["6.17.1.","Ventkameros oro filtras KF  F7        390x190x380  4"]
["6.18.","Ventkameros oro filtras KF  SK  G3  420x807x500  4",2,"vnt.",null,{"$f":"IF(ISBLANK(E1012),\"\", PRODUCT(C1012,E1012))","v":""}]
["6.18.1.","Ventkameros oro filtras KF  SK  G3  420x807x500  4"]
["6.19.","Ventkameros oro filtras KF  SK  M5  420x807x500  4 ",2,"vnt.",null,{"$f":"IF(ISBLANK(E1014),\"\", PRODUCT(C1014,E1014))","v":""}]
["6.19.1.","Ventkameros oro filtras KF  SK  M5  420x807x500  4 "]
["6.20.","Ventkameros oro filtras HEPA  EU13  610x610x87",24,"vnt.",null,{"$f":"IF(ISBLANK(E1016),\"\", PRODUCT(C1016,E1016))","v":""}]
["6.20.1.","Ventkameros oro filtras HEPA  EU13  610x610x87"]
["6.21.","Ventkameros oro filtras VSB  FLT  M5  490x490 ",4,"vnt.",null,{"$f":"IF(ISBLANK(E1018),\"\", PRODUCT(C1018,E1018))","v":""}]
["6.21.1.","Ventkameros oro filtras VSB  FLT  M5  490x490 "]
["6.22.","Ventkameros oro filtras VSB  FLT  M5   592x592",4,"vnt.",null,{"$f":"IF(ISBLANK(E1020),\"\", PRODUCT(C1020,E1020))","v":""}]
["6.22.1.","Ventkameros oro filtras VSB  FLT  M5   592x592"]
["6.23.","Ventkameros oro filtras VSB  FLT  M7  490x490",2,"vnt.",null,{"$f":"IF(ISBLANK(E1022),\"\", PRODUCT(C1022,E1022))","v":""}]
["6.23.1.","Ventkameros oro filtras VSB  FLT  M7  490x490"]
["6.24.","Ventkameros oro filtras VSB  FLT  M7  592x592",2,"vnt.",null,{"$f":"IF(ISBLANK(E1024),\"\", PRODUCT(C1024,E1024))","v":""}]
["6.24.1.","Ventkameros oro filtras VSB  FLT  M7  592x592"]
["6.25.","Ventkameros oro filtras VSB  FLT  M9  490x490      ",2,"vnt.",null,{"$f":"IF(ISBLANK(E1026),\"\", PRODUCT(C1026,E1026))","v":""}]
["6.25.1.","Ventkameros oro filtras VSB  FLT  M9  490x490      "]
["6.26.","Ventkameros oro filtras VSB  FLT  M9  592x592",2,"vnt.",null,{"$f":"IF(ISBLANK(E1028),\"\", PRODUCT(C1028,E1028))","v":""}]
["6.26.1.","Ventkameros oro filtras VSB  FLT  M9  592x592"]
["6.27.","Ventkameros oro filtras HEPA  EU13  460x460x87  ",37,"vnt.",null,{"$f":"IF(ISBLANK(E1030),\"\", PRODUCT(C1030,E1030))","v":""}]
["6.27.1.","Ventkameros oro filtras HEPA  EU13  460x460x87  "]
["6.28.","Ventkameros oro filtras VSB  FLT  M5  428x428",4,"vnt.",null,{"$f":"IF(ISBLANK(E1032),\"\", PRODUCT(C1032,E1032))","v":""}]
["6.28.1.","Ventkameros oro filtras VSB  FLT  M5  428x428"]
["6.29.","Ventkameros oro filtras  VSB  FLT  M5  592x592",4,"vnt.",null,{"$f":"IF(ISBLANK(E1034),\"\", PRODUCT(C1034,E1034))","v":""}]
["6.29.1.","Ventkameros oro filtras VSB  FLT  M5  592x592"]
["6.30.","Ventkameros oro filtras; Kompaktinis filtras  M5  800x400x46     ",2,"vnt.",null,{"$f":"IF(ISBLANK(E1036),\"\", PRODUCT(C1036,E1036))","v":""}]
["6.30.1.","Ventkameros oro filtras ;Kompaktinis filtras  M5  800x400x46     "]
["6.31.","Ventkameros oro filtras ;Kompaktinis filtras  F7    800x400x46     ",2,"vnt.",null,{"$f":"IF(ISBLANK(E1038),\"\", PRODUCT(C1038,E1038))","v":""}]
["6.31.1.","Ventkameros oro filtras ;Kompaktinis filtras  F7    800x400x46     "]
["6.32.","Ventkameros oro filtras KF  G4  535x495x350  5",1,"vnt.",null,{"$f":"IF(ISBLANK(E1040),\"\", PRODUCT(C1040,E1040))","v":""}]
["6.32.1.","Ventkameros oro filtras KF  G4  535x495x350  5"]
["6.33.","Ventkameros oro filtras KF  F9  535x495x600  6",1,"vnt.",null,{"$f":"IF(ISBLANK(E1042),\"\", PRODUCT(C1042,E1042))","v":""}]
["6.33.1.","Ventkameros oro filtras KF  F9  535x495x600  6"]
["6.34.","Ventkameros oro filtras HEPA tipo EU-13 klasė  610x610x78",7,"vnt.",null,{"$f":"IF(ISBLANK(E1044),\"\", PRODUCT(C1044,E1044))","v":""}]
["6.34.1.","Ventkameros oro filtras HEPA tipo EU-13 klasė  610x610x78"]
["6.35.","Ventkameros oro filtras KF  SK  F7  490x592x350  5      ",8,"vnt.",null,{"$f":"IF(ISBLANK(E1046),\"\", PRODUCT(C1046,E1046))","v":""}]
["6.35.1.","Ventkameros oro filtras KF  SK  F7  490x592x350  5      "]
["6.36.","Ventkameros oro filtras KF  SK  G4  490x592x350  5 ",8,"vnt.",null,{"$f":"IF(ISBLANK(E1048),\"\", PRODUCT(C1048,E1048))","v":""}]
["6.36.1.","Ventkameros oro filtras KF  SK  G4  490x592x350  5 "]
["6.37.","Ventkameros oro filtras KF  F7   490x490x300  5 ",8,"vnt.",null,{"$f":"IF(ISBLANK(E1050),\"\", PRODUCT(C1050,E1050))","v":""}]
["6.37.1.","Ventkameros oro filtras KF  F7   490x490x300  5 "]
["6.38.","Ventkameros oro filtras VSB  FLT  M5  490x490x300  3",8,"vnt.",null,{"$f":"IF(ISBLANK(E1052),\"\", PRODUCT(C1052,E1052))","v":""}]
["6.38.1.","Ventkameros oro filtras VSB  FLT  M5  490x490x300  3"]
["6.39.","Ventkameros oro filtras VSB  FLT  M5  592x592",3,"vnt.",null,{"$f":"IF(ISBLANK(E1054),\"\", PRODUCT(C1054,E1054))","v":""}]
["6.39.1.","Ventkameros oro filtras VSB  FLT  M5  592x592"]
["6.40.","Ventkameros oro filtras VSB  FLT  M5  592x287 ",3,"vnt.",null,{"$f":"IF(ISBLANK(E1056),\"\", PRODUCT(C1056,E1056))","v":""}]
["6.40.1.","Ventkameros oro filtras VSB  FLT  M5  592x287 "]
["6.41.","Ventkameros oro filtras KF  F7  592x592x300  6",3,"vnt.",null,{"$f":"IF(ISBLANK(E1058),\"\", PRODUCT(C1058,E1058))","v":""}]
["6.41.1.","Ventkameros oro filtras KF  F7  592x592x300  6"]
["6.42.","Ventkameros oro filtras KF  F7  592x287x300  6",3,"vnt.",null,{"$f":"IF(ISBLANK(E1060),\"\", PRODUCT(C1060,E1060))","v":""}]
["6.42.1.","Ventkameros oro filtras KF  F7  592x287x300  6"]
["6.43.","Ventkameros oro filtras KF SK M5 610x570x600",2,"vnt.",null,{"$f":"IF(ISBLANK(E1062),\"\", PRODUCT(C1062,E1062))","v":""}]
["6.43.1.","Ventkameros oro filtras KF SK M5 610x570x600"]
["6.44.","Ventkameros oro filtras KF SK G3 610x570x600",2,"vnt.",null,{"$f":"IF(ISBLANK(E1064),\"\", PRODUCT(C1064,E1064))","v":""}]
["6.44.1.","Ventkameros oro filtras VSB FLT G3 592x592"]
["6.45.","Ventkameros oro filtras KF SK M5 500x290x300",1,"vnt.",null,{"$f":"IF(ISBLANK(E1066),\"\", PRODUCT(C1066,E1066))","v":""}]
["6.45.1.","Ventkameros oro filtras KF SK M5 500x290x300"]
["6.46.","Ventkameros oro filtras KF G4 792x392x360",4,"vnt.",null,{"$f":"IF(ISBLANK(E1068),\"\", PRODUCT(C1068,E1068))","v":""}]
["6.46.1.","Ventkameros oro filtras KF G4 792x392x360"]
["6.47.","Ventkameros oro filtras KF F7 792x392x360",2,"vnt.",null,{"$f":"IF(ISBLANK(E1070),\"\", PRODUCT(C1070,E1070))","v":""}]
["6.47.1.","Ventkameros oro filtras KF F7 792x392x360"]
["6.48.","Ventkameros oro filtras KF F7 428x428x400",4,"vnt.",null,{"$f":"IF(ISBLANK(E1072),\"\", PRODUCT(C1072,E1072))","v":""}]
["6.48.1.","Ventkameros oro filtras KF F7 428x428x400"]
["6.49.","Ventkameros oro filtras KF F7 428x297x400",2,"vnt.",null,{"$f":"IF(ISBLANK(E1074),\"\", PRODUCT(C1074,E1074))","v":""}]
["6.49.1.","Ventkameros oro filtras KF F7 428x297x400"]
["6.50.","Ventkameros oro filtras KF F7 428x287x400",2,"vnt.",null,{"$f":"IF(ISBLANK(E1076),\"\", PRODUCT(C1076,E1076))","v":""}]
["6.50.1.","Ventkameros oro filtras KF F7 428x287x400"]
["6.51.","Ventkameros oro filtras PLT XL M5 400x385x46",2,"vnt.",null,{"$f":"IF(ISBLANK(E1078),\"\", PRODUCT(C1078,E1078))","v":""}]
["6.51.1.","Ventkameros oro filtras PLT XL M5 400x385x46"]
["6.52.","Ventkameros oro filtras KF F5 537x385x30",1,"vnt.",null,{"$f":"IF(ISBLANK(E1080),\"\", PRODUCT(C1080,E1080))","v":""}]
["6.52.1.","Ventkameros oro filtras KF F5 537x385x30"]
["6.53.","Ventkameros oro filtras KF F5 537x385x21",1,"vnt.",null,{"$f":"IF(ISBLANK(E1082),\"\", PRODUCT(C1082,E1082))","v":""}]
["6.53.1.","Ventkameros oro filtras KF F5 537x385x21"]
["6.54.","Filtruojanti, vandenį atstumianti aukštos kokybės polipropileno ir poliesterio medžiaga G4",40,"kv. m",null,{"$f":"IF(ISBLANK(E1084),\"\", PRODUCT(C1084,E1084))","v":""}]
["6.54.1.","Filtruojanti, vandenį atstumianti aukštos kokybės polipropileno ir poliesterio medžiaga G4"]
[null,null,null,null,"Suma be PVM",{"$f":"IF((COUNT(C977:C1085)<>COUNT(F977:F1085)),\"\", SUM(F977:F1085))","v":""},{"$f":"IF((COUNT(C977:C1085)<>COUNT(F977:F1085)),\"Neužpildytos visų objektų kainos\", \"\")","v":"Neužpildytos visų objektų kainos"}]
[null,null,null,null,"PVM suma"]
[null,null,null,null,"Suma su PVM",{"$f":"IF(ISBLANK(F1087), \"\", SUM(F1086:F1087))","v":""}]
[]
["7.","Šildymo sistemos dalys"]
["7.1.","Trieigis pamaišymo vožtuvas iš DZR vario lydinio PN 10. T.max. 130oC  DN25",2,"vnt.",null,{"$f":"IF(ISBLANK(E1091),\"\", PRODUCT(C1091,E1091))","v":""}]
["7.1.1.","Trieigis pamaišymo vožtuvas iš DZR vario lydinio PN 10. T.max. 130oC  DN25"]
["7.2.","Trieigis pamaišymo vožtuvas iš DZR vario lydinio PN 10 T max. 130o C DN32   ",1,"vnt.",null,{"$f":"IF(ISBLANK(E1093),\"\", PRODUCT(C1093,E1093))","v":""}]
["7.2.1.","Trieigis pamaišymo vožtuvas iš DZR vario lydinio PN 10 T max. 130o C DN32   "]
["7.3.","Trieigis pamaišymo vožtuvas iš DZR vario lydinio PN 10 T max. 130o C DN40",1,"vnt.",null,{"$f":"IF(ISBLANK(E1095),\"\", PRODUCT(C1095,E1095))","v":""}]
["7.3.1.","Trieigis pamaišymo vožtuvas iš DZR vario lydinio PN 10 T max. 130o C DN40"]
["7.4.","Manometras vertikalus DN 100 su patikra, PN10 darb. temp. 120oC, skalė 10bar. Pajungimas1/2",6,"vnt.",null,{"$f":"IF(ISBLANK(E1097),\"\", PRODUCT(C1097,E1097))","v":""}]
["7.4.1.","Manometras vertikalus DN 100 su patikra, PN10 darb. temp. 120oC, skalė 10bar. Pajungimas1/2"]
["7.5.","Manometras vertikalus DN 100 su patikra, PN10 darb. temp. 120oC, skalė 6bar. Pajungimas1/2",6,"vnt.",null,{"$f":"IF(ISBLANK(E1099),\"\", PRODUCT(C1099,E1099))","v":""}]
["7.5.1.","Manometras vertikalus DN 100 su patikra, PN10 darb. temp. 120oC, skalė 6bar. Pajungimas1/2"]
["7.6.","Manometras vertikalus DN63 su patikra, PN10 darb. temp. 120oC, skalė 6bar. Pajungimas ¼  ",6,"vnt.",null,{"$f":"IF(ISBLANK(E1101),\"\", PRODUCT(C1101,E1101))","v":""}]
["7.6.1.","Manometras vertikalus DN63 su patikra, PN10 darb. temp. 120oC, skalė 6bar. Pajungimas ¼  "]
["7.7.","Bimetalinis termometras DN63 PN10 darb. temp. 120oC, skalė 120oC, horizontalus pajungimas ½ , gilzės matmenys 50mm x Ø9mm",10,"vnt.",null,{"$f":"IF(ISBLANK(E1103),\"\", PRODUCT(C1103,E1103))","v":""}]
["7.7.1.","Bimetalinis termometras DN63 PN10 darb. temp. 120oC, skalė 120oC, horizontalus pajungimas ½ , gilzės matmenys 50mm x Ø9mm"]
["7.8.","Nerūdijančio plieno lankstus gofruotas vamzdis DN25  ",10,"m",null,{"$f":"IF(ISBLANK(E1105),\"\", PRODUCT(C1105,E1105))","v":""}]
["7.8.1.","Nerūdijančio plieno lankstus gofruotas vamzdis DN25  "]
["7.9.","Nerūdijančio plieno lankstus gofruotas vamzdis DN32  ",10,"m",null,{"$f":"IF(ISBLANK(E1107),\"\", PRODUCT(C1107,E1107))","v":""}]
["7.9.1.","Nerūdijančio plieno lankstus gofruotas vamzdis DN32  "]
["7.10.","Nerūdijančio plieno lankstaus gofruoto vamzdžio tiesi jungtis, vamzdis-metalas, vid. sriegis DN25",20,"vnt.",null,{"$f":"IF(ISBLANK(E1109),\"\", PRODUCT(C1109,E1109))","v":""}]
["7.10.1.","Nerūdijančio plieno lankstaus gofruoto vamzdžio tiesi jungtis, vamzdis-metalas, vid. sriegis DN25"]
["7.11.","Nerūdijančio plieno lankstaus gofruoto vamzdžio tiesi jungtis, vamzdis-metalas, vid. sriegis DN32",10,"vnt.",null,{"$f":"IF(ISBLANK(E1111),\"\", PRODUCT(C1111,E1111))","v":""}]
["7.11.1.","Nerūdijančio plieno lankstaus gofruoto vamzdžio tiesi jungtis, vamzdis-metalas, vid. sriegis DN32"]
["7.12.","Šilumos ir karšto vandens ruošimo sistemų valdiklis RVD 140A  [arba lygiavertis]",2,"vnt.",null,{"$f":"IF(ISBLANK(E1113),\"\", PRODUCT(C1113,E1113))","v":""}]
["7.12.1.","Šilumos ir karšto vandens ruošimo sistemų valdiklis RVD 140A  [arba lygiavertis]"]
[null,null,null,null,"Suma be PVM",{"$f":"IF((COUNT(C1091:C1114)<>COUNT(F1091:F1114)),\"\", SUM(F1091:F1114))","v":""},{"$f":"IF((COUNT(C1091:C1114)<>COUNT(F1091:F1114)),\"Neužpildytos visų objektų kainos\", \"\")","v":"Neužpildytos visų objektų kainos"}]
[null,null,null,null,"PVM suma"]
[null,null,null,null,"Suma su PVM",{"$f":"IF(ISBLANK(F1116), \"\", SUM(F1115:F1116))","v":""}]
[]
["8.","Neužšąlantis šildymo sistemos skystis"]
["8.1.","Glikolis, neužšąlantis šildymo sistemos skystis G1000",200,"L",{"$f":"[1]Pasiūlymas!$E$1120","v":1.74},{"$f":"IF(ISBLANK(E1120),\"\", PRODUCT(C1120,E1120))","v":348},{"$f":"[1]Pasiūlymas!$G$1120","v":"Šildymo Skystis G1000  20litrų"}]
["8.1.1.","Glikolis, neužšąlantis šildymo sistemos skystis G1000\n\n\n\n\n\nL\n\n\n\n\n\n200\n\n\n\nGlikolis, neužšąlantis šildymo sistemos skystis G1000\n\n\n\n\n\n\nL\n\n\n\n\n\n200\n\n\n\nGlikolis, neužšąlantis šildymo sistemos skystis G1000\n\n\n\n\n\n\nL\n\n\n\n\n\n200\n\n\n\nGlikolis, neužšąlantis šildymo sistemos skystis G1000\n",null,null,null,null,null,"Šildymo skystis glikokolis. Išfasuota po 20 litrų"]
[null,null,null,null,"Suma be PVM",{"$f":"IF((COUNT(C1120:C1121)<>COUNT(F1120:F1121)),\"\", SUM(F1120:F1121))","v":348},{"$f":"IF((COUNT(C1120:C1121)<>COUNT(F1120:F1121)),\"Neužpildytos visų objektų kainos\", \"\")","v":""}]
[null,null,null,null,"PVM suma",73.08]
[null,null,null,null,"Suma su PVM",{"$f":"IF(ISBLANK(F1123), \"\", SUM(F1122:F1123))","v":421.08}]

{"sheet":"Subtiekėjai","index":1,"n_rows":100,"n_cols":9,"rows_kept":100,"cut":false,"hidden":false,"merged":[[32,0,32,3],[32,4,32,9],[19,0,19,10],[16,1,16,3],[15,1,15,3],[22,0,22,9],[23,0,23,9],[25,0,25,9],[29,0,29,3],[29,4,29,9],[17,1,17,3],[17,4,17,5],[17,6,17,7],[17,8,17,9],[21,0,21,3],[21,4,21,9],[14,1,14,3],[15,4,15,5],[16,4,16,5],[8,0,8,1],[8,2,8,4],[8,5,8,7],[12,6,12,7],[13,6,13,7],[14,6,14,7],[15,6,15,7],[16,6,16,7],[13,1,13,3],[12,1,12,3],[12,4,12,5],[13,4,13,5],[14,4,14,5],[8,8,8,9],[10,0,10,9],[6,0,6,1],[6,2,6,4],[6,5,6,7],[6,8,6,9],[7,0,7,1],[7,2,7,4],[7,5,7,7],[7,8,7,9],[1,0,1,10],[5,0,5,1],[5,2,5,4],[5,5,5,7],[5,8,5,9],[4,0,4,1],[4,2,4,4],[4,5,4,7],[4,8,4,9],[3,0,3,1],[3,2,3,4],[3,5,3,7],[3,8,3,9],[12,8,12,9],[13,8,13,9],[14,8,14,9],[15,8,15,9],[16,8,16,9]]}
[]
["Subtiekėjai ir jiems perduodama vykdyti pirkimo sutarties dalis:"]
[]
["Eil. Nr",null,"Subtiekėjo pavadinimas",null,null,"Pirkimo objekto dalies, perduodamos vykdyti subtiekėjui, aprašymas",null,null,"Procentas perduodamos vykdyti pirkimo objekto dalies nuo pasiūlymo kainos su PVM (pildoma, jei ūkio subjektas vykdys sutartį)"]
[]
[]
[]
[]
[]
[]
["Kartu su pasiūlymu pateikiami šie dokumentai:"]
[]
["Eil.Nr.","Dokumentas",null,null,"Ar dokumnetas konfidencialus? (Taip/Ne)",null,"Prisegtos bylos (failo) pavadinimas ",null,"Paaiškinimas, kokia konkreti informacija dokumente yra konfidenciali"]
["1.","EBVPD",null,null,"Taip",null,"EBVPD",null,"Asmens duomenys"]
["2.","Tiekėjo deklaracija",null,null,"Ne",null,"Tiekėjo deklaracija"]
["3.","V. Povilaičio įgaliojimas",null,null,"Taip",null,"V. Povilaičio įgaliojimas",null,"Asmens duomenys"]
[]
[]
[]
["Pasirašydamas šį pasiūlymą, tvirtintu, kad:\n1) pasiūlymo dokumentuose pateikti duomenys yra tikri;\n2) siūlomas Pirkimo objektas visiškai atitinka Pirkimo dokumentuose nustatytus reikalavimus;\n3) sutinku su visomis Pirkimo dokumentuose nustatytomis sąlygomis;\n4) pasiūlymas galioja iki termino, nustatyto Pirkimo dokumentuose; \n5) mes esame / nesame (nereikalingą išbraukti) laikomi asocijuotais (susijusiais) su Perkančiuoju subjektu pagal Lietuvos Respublikoje galiojančių teisės aktų (Lietuvos Respublikos pelno mokesčio, Lietuvos Respublikos pridėtinės vertės mokesčio ir Lietuvos Respublikos gyventojų pajamų mokesčio įstatymų) nuostatas; \n6) savo pasiūlymo galiojimą užtikrinsiu pagal Specialiųjų sąlygų 6.1 punktą (jei taikoma)."]
[]
["Pasiūlymo galiojimo užtikrinimui pateikiame :"]
["Nereikalaujama pasiūlymo galiojimo užtikrinimo"]
["(Nurodyti užtikrinimo būdą, dydį, dokumentus)"]
[]
["\nPasiūlymas galioja iki termino, nustatyto pirkimo dokumentuose.\n\nPasiūlymo neatskiriama dalis yra (rašoma, jeigu buvo reikalauta prie pasiūlymo pridėti atitinkamą dokumentą)"]
[]
[]
[]
["Tiekėjo arba jo įgalioto asmens pareigų pavadinimas",null,null,null,"Komercijos direktorius"]
[]
[]
["Pasirašančio asmens vardas ir pavardė",null,null,null,"Vaidas Povilaitis"]
[]
[]
[]
[]
[]
[]
[]
[]
[]
[]
[]
[]
[]
[]
[]
[]
[]
[]
[]
[]
[]
[]
[]
[]
[]
[]
[]
[]
[]
[]
[]
[]
[]
[]
[]
[]
[]
[]
[]
[]
[]
[]
[]
[]
[]
[]
[]
[]
[]
[]
[]
[]
[]
[]
[]
[]
[]
[]
[]
[]
[]
[]
[]
[]
[]
[]
["2776 2019-07-22 10:57:33"]